{"text_format":"1","workbook":"xlsx","n_sheets":19,"sheets":["INSTRUCTIVO DILIGENCIAMIENTO","F1. COMP.LAB Y COM COMPOR","F2. CALIFIC. COMPOR.","CALIFICACION TOTAL","AREA FUNCIONAL","COMPETENCIAS COMPORTAMENTALES","F1. COMP.LAB Y COM COMPOR  (2)","F2. CALIFIC. COMPOR. (2)","F1. COMP.LAB Y COM COMPOR  (3)","F2. CALIFIC. COMPOR. (3)","F1. COMP.LAB Y COM COMPOR  (4)","F2. CALIFIC. COMPOR. (4)","F1. COMP.LAB Y COM COMPOR  (5)","F2. CALIFIC. COMPOR. (5)","F1. COMP.LAB Y COM COMPOR  (6)","F2. CALIFIC. COMPOR. (6)","F3.REPORTE CALIFICACION","NIVELES","CAUSALES DE EVENTUAL"],"not_rendered":{"charts":0,"images":2,"macros":1,"external_links":0,"defined_names":38,"comments":12,"pivot_tables":0},"unopened":[],"bounds":{"document_bytes":16777216,"sheet_cells":100000,"rows_first":2000,"rows_last":500,"rows_between":2000,"halvings":0,"cell_chars":16384,"cell_head_chars":4096},"cells_cut":0,"cells_raw":0,"read":"whole","date_system":"1900"}

{"sheet":"INSTRUCTIVO DILIGENCIAMIENTO","index":0,"n_rows":72,"n_cols":2,"rows_kept":72,"cut":false,"hidden":false,"merged":[[40,0,40,1],[45,0,45,1],[28,0,28,1],[33,0,33,1],[35,0,35,1],[0,0,0,1],[3,0,3,1],[15,0,15,1],[25,0,25,1],[39,0,39,1],[49,0,49,1],[50,0,50,1],[55,0,55,1],[56,0,56,1],[67,0,67,1],[57,0,57,1],[51,0,51,1]]}
["INSTRUCTIVO DILIGENCIAMIENTO FORMATO F1."]
["CAMPO","INFORMACION QUE DEBE CONTENER"]
["Periodo de Evaluacion Anual","Registre el año curso"]
["I. IDENTIFICACION DEL EVALUADO"]
["Numero de identificación","Digite en números arábicos el numero de la cedula de ciudadanía del funcionario a evaluar"]
["Primer apellido","Digite el primer apellido del funcionario a evaluar"]
["Segundo apellido","Digite el segundo apellido del funcionario a evaluar"]
["Primer Nombre","Digite el primer nombre del funcionario a evaluar"]
["Otros Nombres","Digite el Segundo nombre del funcionario a evaluar"]
["Tipo de Vinculación","Selección el tipo de vinculación que tiene con la Unidad Nacional de Protección "]
["Dependencia o Área","Seleccione la Dependencia o área funcional a la que pertenece el evaluado"]
["Grupo funcional ","Seleccione el grupo funcional  a la que pertenece el evaluado"]
["Denominación del empleo","Seleccione el cargo del funcionario a evaluar"]
["Nivel jerárquico","Seleccione el nivel al que corresponde según el cargo del funcionario a evaluar"]
["Propósito del empleo","Registre el propósito del empleo de acuerdo al manual de funciones "]
["II. IDENTIFICACION DEL EVALUADOR (JEFE INMEDIATO)"]
["Numero de identificación","Digite en números arábicos el numero de la cedula de ciudadanía del jefe inmediato"]
["Primer apellido","Digite el primer apellido del jefe inmediato"]
["Segundo apellido","Digite el segundo apellido del jefe inmediato"]
["Primer Nombre","Digite el primer nombre del jefe inmediato"]
["Otros Nombres","Digite el Segundo nombre del jefe inmediato"]
["Dependencia o Área","Seleccione la Dependencia o área funcional a la que pertenece el jefe inmediato"]
["Grupo funcional ","Seleccione el grupo funcional  a la que pertenece el jefe inmediato"]
["Denominación del empleo","Seleccione el cargo del jefe inmediato"]
["Nivel jerárquico","Seleccione el nivel al que corresponde según el cargo del jefe inmediato"]
["III. CONCERTACION DE COMPROMISOS"]
["concertación / Fijación de Compromisos","Registre con un X si va a realizar la concertación de los compromisos (del 1 al 21 de febrero)"]
["fecha","Registre la fecha de definición de los objetivos dentro de los tiempos establecidos por la comisión nacional del servicio civil"]
["V.CONCERTACIÓN DE COMPROMISOS LABORALES Y COMPETENCIAS COMPORTAMENTALES"]
["Metas del área o Dependencias a las cuales contribuye el empleo","Registre la meta de la dependencia de acuerdo a las necesidades del servicio que el jefe inmediato plante"]
["Compromisos laborales ","Describa el compromiso acordado entre el jefe inmediato y el funcionario con el objetivo de cumplir la meta, el compromiso debe ser medible, cuantificable, verificable dentro del periodo evaluado"]
["Peso porcentual del compromiso semestre 1","Registre el valor asignado al compromiso laboral teniendo en cuenta la sumatoria de estos alcance el 100%"]
["Peso porcentual del compromiso semestre 1","Registre el valor asignado al compromiso laboral teniendo en cuenta la sumatoria de estos alcance el 100%"]
["VI.FIJACION DE COMPETENCIAS COMPORTAMENTALES"]
["Competencia","Con base en el nivel Jerquico - Proponga las competencias comportamentales mas acordes para desarrollar la competencia "]
["VII. FIRMAS, RECLAMACIÓN U OBJECIÓN."]
["Firma Evaluado","Registre la firma del evaluado"]
["Firma Evaluador","Registre la firma del jefe inmediato"]
["Firma Comisión Evaluadora","Registre la firma de una persona que se encuentre en vinculación de libre y nombramiento de nivel jerárquico mas alto al jefe inmediato"]
["INSTRUCTIVO DILIGENCIAMIENTO FORMATO F2"]
["III. CONCERTACION DE COMPROMISOS"]
["Proceso: Evaluacion del Desempeño Laboral (Primera Parcial)","Registre la fecha del periodo de evaluación de la I parcial"]
["Proceso: Evaluacion del Desempeño Laboral (Segunda  Parcial)","Registre la fecha del periodo de evaluación de la II parcial"]
["Calificación del compromiso primera parcial semestral","Digite el porcentaje alcanzado en el momento de la evaluación teniendo en cuenta que cada uno equivale a 100"]
["Calificación del compromiso segundo  parcial semestral","Digite el porcentaje alcanzado en el momento de la evaluación teniendo en cuenta que cada uno equivale a 100"]
["IV. CALIFICACIÓN COMPETENCIAS COMPORTAMENTALES "]
["Primera Parcial semestral ","Seleccione según su criterio el valor alcanzado dentro del semestre a calificar (Muy alto:13 - 15  Alto: 10 - 12, Aceptable:7 - 9 , Bajo:4 - 6)"]
["Primera Segundo semestral ","Seleccione según su criterio el valor alcanzado dentro del semestre a calificar (Muy alto:13 - 15  Alto: 10 - 12, Aceptable:7 - 9 , Bajo:4 - 6)"]
[]
["NOTA: DESPUES DEL DILIGENCIAMIENTO DEL FORMATO F1 LA INFORMACION (EVALUDO, EVALUADOR, COMPROMISOS LABORALES Y COMPORTAMENTALES) PASARAN A LOS SIGUIENTES FORMATOS PARA EVITAR NUEVAMENTE DILIGENCIAMIENTO"]
["SI SE VA REALIZAR UNA PARCIAL EVENTUAL OPRIMIR EL BOTON QUE SE ENCUENTRA AL FINALIZAR EL FORMATO F1"]
["EVALUACIONES PARCIALES EVENTUALES "]
["CAMPO","INFORMACION QUE DEBE CONTENER"]
["Proceso: Evaluacion del Desempeño Laboral (Primera Parcial)","Registre la fecha del periodo de calificación de la evaluación eventual si se encuentra dentro del primer semestre"]
["Proceso: Evaluacion del Desempeño Laboral (Segunda  Parcial)","Registre la fecha del periodo de calificación de la evaluación eventual si se realiza dentro del segundo semestre"]
["I. IDENTIFICACION DEL EVALUADO"]
["la información la trae del formato inicial "]
["II. IDENTIFICACION DEL EVALUADOR (JEFE INMEDIATO)"]
["Numero de identificación","Digite en números arábicos el numero de la cedula de ciudadanía del nuevo evaluador"]
["Primer apellido","Digite el primer apellido del nuevo evaluador"]
["Segundo apellido","Digite el segundo apellido del nuevo evaluador"]
["Primer Nombre","Digite el primer nombre del nuevo evaluador"]
["Otros Nombres","Digite el Segundo nombre del nuevo evaluador"]
["Dependencia o Área","Seleccione la Dependencia o área funcional a la que pertenece el nuevo evaluador"]
["Grupo funcional ","Seleccione el grupo funcional  a la que pertenece el nuevo evaluador"]
["Denominación del empleo","Seleccione el cargo del nuevo evaluador"]
["Nivel jerárquico","Seleccione el nivel al que corresponde según el cargo del nuevo evaluador"]
["IV. PARCIALES EVENTUALES"]
["ajuste de compromisos","Registre con un X si va a realizar un ajuste de los compromisos "]
["Causales de Calificación Eventual","Selección la causal del por que esta realizando una calificación adicional"]
["ajuste de compromisos","Registre con un X si va a realizar un ajuste de los compromisos "]
["Causales de Calificacion Eventual","Selección la causal del por que esta realizando una calificacion adicional"]

{"sheet":"F1. COMP.LAB Y COM COMPOR","index":1,"n_rows":60,"n_cols":22,"rows_kept":60,"cut":false,"hidden":false,"merged":[[25,0,25,18],[26,0,26,18],[20,8,20,16],[19,0,19,1],[27,0,29,6],[27,7,29,15],[27,16,28,18],[20,17,20,18],[21,17,21,18],[21,8,21,16],[19,2,19,4],[19,5,19,7],[19,8,19,10],[19,11,19,14],[19,15,19,18],[23,10,24,10],[23,11,24,14],[49,6,51,11],[49,12,51,18],[47,17,47,18],[48,0,48,3],[15,7,16,18],[17,0,17,18],[18,0,18,1],[18,2,18,4],[18,8,18,10],[18,11,18,14],[18,15,18,18],[48,17,48,18],[37,1,37,3],[37,4,37,10],[37,11,37,18],[38,0,39,0],[38,1,39,3],[15,0,15,4],[15,5,16,6],[16,0,16,4],[20,4,20,7],[21,4,21,7],[21,0,21,3],[20,0,20,3],[42,11,43,18],[32,0,32,6],[33,0,33,6],[30,0,30,6],[31,0,31,6],[30,7,30,15],[31,7,31,15],[32,7,32,15],[33,7,33,15],[34,0,34,6],[34,7,34,15],[35,0,35,15],[36,0,36,18],[42,0,43,0],[42,1,43,3],[38,4,39,10],[38,11,39,18],[40,0,41,0],[40,1,41,3],[40,4,41,10],[40,11,41,18],[52,0,52,3],[52,4,52,5],[52,6,53,11],[52,12,53,18],[53,0,53,3],[53,4,53,5],[3,4,4,14],[0,4,0,14],[1,4,1,14],[2,4,2,14],[13,4,13,7],[12,5,12,7],[12,8,12,10],[12,11,12,14],[12,15,12,18],[10,0,10,18],[11,0,11,1],[11,2,11,4],[11,5,11,7],[11,8,11,10],[11,11,11,14],[11,15,11,18],[49,0,51,5],[42,4,43,10],[44,0,45,0],[44,1,45,3],[44,4,45,10],[44,11,45,18],[46,0,46,18],[47,0,47,3],[47,4,47,6],[47,7,47,9],[47,10,48,11],[47,12,47,14],[47,15,47,16],[48,4,48,6],[48,7,48,9],[48,12,48,14],[48,15,48,16],[0,15,6,18],[5,4,6,6],[5,10,6,11],[0,0,6,3],[22,0,22,18],[23,0,24,9],[12,0,12,1],[12,2,12,4],[13,11,13,18],[14,11,14,18],[13,8,13,10],[14,8,14,10],[13,0,13,3],[14,0,14,3],[14,4,14,7],[18,5,18,7],[7,0,9,2],[7,3,7,9],[7,10,9,11],[7,12,7,18],[8,6,9,6],[8,15,9,15],[59,0,59,2],[59,3,59,12],[59,13,59,15],[59,16,59,18],[55,0,55,16383],[56,0,56,5],[56,6,56,12],[56,13,56,18],[57,0,57,18],[58,0,58,2],[58,3,58,12],[58,13,58,15],[58,16,58,18]]}
[null,null,null,null," EVALUACION DE DESEMPEÑO FUNCIONARIOS PROVISIONALES Y/O DE LIBRE NOMBRAMIENTO Y REMOCIÓN"]
[null,null,null,null,"GESTIÓN ESTRATÉGICA DE TALENTO HUMANO"]
[null,null,null,null,"UNIDAD NACIONAL DE PROTECCIÓN"]
[null,null,null,null,"NOTA: FRENTE A LA EVALUACION DE DESEMPEÑO REALIZADA PARA EL PERSONAL QUE SE ENCUENTRA CON VINCULACION LABORAL DE CARÁCTER PROVISIONAL, NO PROCEDE DERECHOS DE CARRERA ADMINISTRATIVA , EL OBJETIVO ES EVALUAR Y CONTROLAR LA GESTION LABORAL DE LOS FUNCIONARIOS"]
[]
[null,null,null,null,"PERÍODO DE EVALUACIÓN                                                                                 ANUAL",null,null,"DÍA","MES","AÑO","AL",null,"DÍA","MES","AÑO"]
[null,null,null,null,null,null,null,1,2,null,null,null,31,1,{"$f":"J7+1","v":1}]
["PERÍODO DE EVALUACIÓN",null,null,"PROCESO: EVALUACIÓN DEL DESEMPEÑO LABORAL (PRIMERA SEMESTRE)",null,null,null,null,null,null,null,null,"PROCESO: EVALUACIÓN DEL DESEMPEÑO LABORAL (SEGUNDO SEMESTRE)"]
[null,null,null,"DÍA","MES","AÑO","AL","DÍA","MES","AÑO",null,null,"DÍA","MES","AÑO","AL","DÍA","MES","AÑO"]
[null,null,null,null,null,null,null,null,null,null,null,null,null,null,null,null,null,null,null,null,{"$f":"IFERROR((DAYS360(DATE(F10,E10,D10),DATE(J10,I10,H10))+1),0)","v":0},{"$f":"IFERROR((DAYS360(DATE(O10,N10,M10),DATE(S10,R10,Q10)+1)),0)","v":0}]
["I. IDENTIFICACIÓN DEL EVALUADO"]
["TIPO DE DOCUMENTO",null,"NÚMERO DE IDENTIFICACIÓN",null,null,"PRIMER APELLIDO",null,null,"SEGUNDO APELLIDO",null,null,"PRIMER NOMBRE",null,null,null,"OTROS NOMBRES"]
["CEDULA DE CIUDADANIA"]
["TIPO DE VINCULACIÓN",null,null,null,"DEPENDENCIA O ÁREA A LA QUE PERTENECE EL EVALUADO",null,null,null,"GRUPO FUNCIONAL AL QUE PERTENECE EL EVALUADO",null,null,"DENOMINACIÓN DEL EMPLEO"]
[]
["NIVEL JERÁRQUICO",null,null,null,null,"PROPÓSITO DEL EMPLEO:  "]
[]
["II. IDENTIFICACIÓN EVALUADOR. (Jefe inmediato del evaluado )"]
["TIPO DE DOCUMENTO",null,"NÚMERO DE IDENTIFICACIÓN",null,null,"PRIMER APELLIDO",null,null,"SEGUNDO APELLIDO",null,null,"PRIMER NOMBRE",null,null,null,"OTROS NOMBRES"]
["CEDULA DE CIUDADANIA"]
["DEPENDENCIA O ÁREA A LA QUE PERTENECE EL EVALUADOR",null,null,null,"GRUPO FUNCIONAL AL QUE PERTENECE EL EVALUADOR",null,null,null,"DENOMINACIÓN DEL EMPLEO",null,null,null,null,null,null,null,null,"NIVEL JERÁRQUICO"]
[]
["III. CONCERTACIÓN COMPROMISOS"]
["CONCERTACIÓN / FIJACIÓN DE COMPROMISOS",null,null,null,null,null,null,null,null,null,null,"FECHA:",null,null,null,"DIA","MES","AÑO"]
[]
["V. CONCERTACIÓN DE COMPROMISOS LABORALES Y COMPETENCIAS COMPORTAMENTALES."]
["COMPROMISOS LABORALES"]
["METAS DEL ÁREA O DEPENDENCIA A LAS CUALES CONTRIBUYE EL EMPLEO",null,null,null,null,null,null,"COMPROMISOS LABORALES.",null,null,null,null,null,null,null,null,"PESO PORCENTUAL DEL COMPROMISO"]
[]
[null,null,null,null,null,null,null,null,null,null,null,null,null,null,null,null,"SEMESTRE 1","SEMESTRE 2","TOTAL ANUAL"]
[null,null,null,null,null,null,null,null,null,null,null,null,null,null,null,null,null,null,{"$f":"IF(COUNTA(Q31,R31)=2,AVERAGE(Q31:R31),IF(COUNTA(Q31,R31)=1,SUM(Q31:R31),\" \"))","v":" "}]
[null,null,null,null,null,null,null,null,null,null,null,null,null,null,null,null,null,null,{"$f":"IF(COUNTA(Q32,R32)=2,AVERAGE(Q32:R32),IF(COUNTA(Q32,R32)=1,SUM(Q32:R32),\" \"))","v":" "}]
[null,null,null,null,null,null,null,null,null,null,null,null,null,null,null,null,null,null,{"$f":"IF(COUNTA(Q33,R33)=2,AVERAGE(Q33:R33),IF(COUNTA(Q33,R33)=1,SUM(Q33:R33),\" \"))","v":" "}]
[null,null,null,null,null,null,null,null,null,null,null,null,null,null,null,null,null,null,{"$f":"IF(COUNTA(Q34,R34)=2,AVERAGE(Q34:R34),IF(COUNTA(Q34,R34)=1,SUM(Q34:R34),\" \"))","v":" "}]
[null,null,null,null,null,null,null,null,null,null,null,null,null,null,null,null,null,null,{"$f":"IF(COUNTA(Q35,R35)=2,AVERAGE(Q35:R35),IF(COUNTA(Q35,R35)=1,SUM(Q35:R35),\" \"))","v":" "}]
[" PESO TOTAL PONDERADO DE LOS COMPROMISOS",null,null,null,null,null,null,null,null,null,null,null,null,null,null,null,{"$f":"IF(COUNT(Q31:Q35)<3,\"MÍNIMO TRES (03) COMPROMISOS\",IF(SUM(Q31:Q35)>1,CONCATENATE(\"ERROR!!: Sumatoria mayor a 100% (\",TEXT(SUM(Q31:Q35),\"0%)\")),IF(SUM(Q31:Q35)<1,CONCATENATE(\"ERROR!!: Sumatoria menor a 100% (\",TEXT(SUM(Q31:Q35),\"0%)\")),SUM(Q31:Q35))))","v":"MÍNIMO TRES (03) COMPROMISOS"},{"$f":"IF(COUNT(R31:R35)<3,\"MÍNIMO TRES (03) COMPROMISOS\",IF(SUM(R31:R35)>1,CONCATENATE(\"ERROR!!: Sumatoria mayor a 100% (\",TEXT(SUM(R31:R35),\"0%)\")),IF(SUM(R31:R35)<1,CONCATENATE(\"ERROR!!: Sumatoria menor a 100% (\",TEXT(SUM(R31:R35),\"0%)\")),SUM(R31:R35))))","v":"MÍNIMO TRES (03) COMPROMISOS"},{"$f":"IF(COUNT(S31:T35)<3,\"MÍNIMO TRES (03) COMPROMISOS\",IF(SUM(S31:T35)>1,CONCATENATE(\"ERROR!!: Sumatoria mayor a 100% (\",TEXT(SUM(S31:T35),\"0%)\")),IF(SUM(S31:T35)<1,CONCATENATE(\"ERROR!!: Sumatoria menor a 100% (\",TEXT(SUM(S31:T35),\"0%)\")),SUM(S31:T35))))","v":"MÍNIMO TRES (03) COMPROMISOS"}]
["VI. FIJACIÓN DE COMPETENCIAS COMPORTAMENTALES"]
["N°","COMPETENCIA",null,null,"DEFINICIÓN ",null,null,null,null,null,null,"CONDUCTAS ASOCIADAS"]
[{"$f":"IF(B39=\"\",\"1.  \",IF(AND(B39<>B41,B39<>B43,B39<>B45)=TRUE,\"1.  \",\"REPETIDA\"))","v":"1.  "},null,null,null,{"$f":"IFERROR(VLOOKUP($A$17&B39,'COMPETENCIAS COMPORTAMENTALES'!$C:$E,2,FALSE),\" \")","v":" "},null,null,null,null,null,null,{"$f":"IFERROR(VLOOKUP($A$17&B39,'COMPETENCIAS COMPORTAMENTALES'!$C:$E,3,FALSE),\" \")","v":" "}]
[]
[{"$f":"IF(B39=\"\",\"2.  \",IF(AND(B39<>B41,B41<>B43,B41<>B45)=TRUE,\"2.  \",\"REPETIDA\"))","v":"2.  "},null,null,null,{"$f":"IFERROR(VLOOKUP($A$17&B41,'COMPETENCIAS COMPORTAMENTALES'!$C:$E,2,FALSE),\" \")","v":" "},null,null,null,null,null,null,{"$f":"IFERROR(VLOOKUP($A$17&B41,'COMPETENCIAS COMPORTAMENTALES'!$C:$E,3,FALSE),\" \")","v":" "}]
[]
[{"$f":"IF(B39=\"\",\"3.  \",IF(AND(B43<>B39,B41<>B43,B43<>B45)=TRUE,\"3.  \",\"REPETIDA\"))","v":"3.  "},null,null,null,{"$f":"IFERROR(VLOOKUP($A$17&B43,'COMPETENCIAS COMPORTAMENTALES'!$C:$E,2,FALSE),\" \")","v":" "},null,null,null,null,null,null,{"$f":"IFERROR(VLOOKUP($A$17&B43,'COMPETENCIAS COMPORTAMENTALES'!$C:$E,3,FALSE),\" \")","v":" "}]
[]
[{"$f":"IF(B39=\"\",\"4.  \",IF(AND(B45<>B41,B45<>B43,B39<>B45)=TRUE,\"4.  \",\"REPETIDA\"))","v":"4.  "},null,null,null,{"$f":"IFERROR(VLOOKUP($A$17&B45,'COMPETENCIAS COMPORTAMENTALES'!$C:$E,2,FALSE),\" \")","v":" "},null,null,null,null,null,null,{"$f":"IFERROR(VLOOKUP($A$17&B45,'COMPETENCIAS COMPORTAMENTALES'!$C:$E,3,FALSE),\" \")","v":" "}]
[]
["VII. FIRMAS, RECLAMACIÓN U OBJECIÓN."]
["FIRMA DEL EVALUADO",null,null,null,"FIRMA DEL JEFE INMEDIATO",null,null,"FIRMA DEL EVALUADOR EN COMISIÓN EVALUADORA",null,null,"Renuencia del Evaluado para firmar la concertación  de compromisos",null,"DATOS DEL TESTIGO",null,null,"FIRMA DEL TESTIGO",null,"FECHA"]
[]
["RECLAMACIÓN U OBJECIÓN EN ÚNICA INSTANCIA ANTE LA COMISIÓN DE PERSONAL (Parágrafo del articulo 3º, del Acuerdo 617 de 2018)",null,null,null,null,null,"DECISIÓN DE LA COMISIÓN DE PERSONAL",null,null,null,null,null,"MOTIVACIÓN DE LA DECISIÓN"]
[]
[]
["Número de Radicado"]
["Fecha Reclamación (dd/mm/aa)"]
[]
["Archívese en: Carpeta historias laborales del funcionario"]
["GTH-FT-186/V1",null,null,null,null,null," Oficialización: 16/02/2021",null,null,null,null,null,null,"Página: 1 de 2 "]
["CONTROL DE CAMBIOS"]
["VERSIÓN INICIAL ",null,null,"DESCRIPCIÓN DE LA CREACIÓN O CAMBIO\nDEL DOCUMENTO",null,null,null,null,null,null,null,null,null,"FECHA",null,null,"VERSIÓN FINAL"]
[0,null,null,"Se realiza creación del formato con el fin de unificar los formatos existentes del proceso de evaluación de desempeño.",null,null,null,null,null,null,null,null,null,"2021-02-16",null,null,1]

{"sheet":"F2. CALIFIC. COMPOR.","index":2,"n_rows":61,"n_cols":19,"rows_kept":61,"cut":false,"hidden":false,"merged":[[3,4,3,14],[0,4,0,14],[1,4,1,14],[2,4,2,14],[11,15,11,18],[9,0,9,18],[10,0,10,1],[10,2,10,4],[10,5,10,7],[10,8,10,10],[10,11,10,14],[10,15,10,18],[11,0,11,1],[11,2,11,4],[11,5,11,7],[11,8,11,10],[11,11,11,14],[4,4,5,6],[4,10,5,11],[0,0,5,3],[0,15,5,18],[6,0,8,2],[6,3,6,9],[7,6,8,6],[12,8,12,10],[12,0,12,3],[17,0,17,1],[17,2,17,4],[17,5,17,7],[17,8,17,10],[17,11,17,14],[12,4,12,7],[13,4,13,7],[13,11,13,18],[13,8,13,10],[13,0,13,3],[14,5,15,6],[14,7,15,18],[15,0,15,4],[16,0,16,18],[12,11,12,18],[21,0,21,18],[22,0,25,3],[22,10,25,10],[22,11,23,18],[24,11,24,14],[24,15,24,18],[25,13,25,14],[25,17,25,18],[20,0,20,3],[20,4,20,7],[20,17,20,18],[27,13,27,14],[27,17,27,18],[28,0,28,3],[26,13,26,14],[26,17,26,18],[27,0,27,3],[26,0,26,3],[29,13,29,14],[29,17,29,18],[28,17,28,18],[29,0,29,3],[35,18,36,18],[32,0,32,10],[31,11,32,13],[31,14,32,14],[31,15,32,17],[31,18,32,18],[30,13,30,14],[30,17,30,18],[31,0,31,9],[44,0,45,1],[37,0,37,18],[38,0,41,1],[22,4,25,9],[26,4,26,9],[27,4,27,9],[28,4,28,9],[29,4,29,9],[30,4,30,9],[43,15,43,18],[45,15,45,18],[42,11,42,14],[42,15,42,18],[43,11,43,14],[33,0,34,10],[33,11,33,18],[34,11,34,14],[34,15,34,18],[35,0,36,10],[35,11,36,13],[35,14,36,14],[35,15,36,17],[30,0,30,3],[28,13,28,14],[55,0,55,10],[52,11,53,14],[49,11,49,14],[49,15,49,18],[48,0,49,1],[48,2,49,4],[48,5,49,10],[50,0,53,10],[50,15,51,18],[52,15,53,18],[50,11,51,14],[48,15,48,18],[48,11,48,14],[55,11,55,14],[55,15,55,18],[54,0,54,10],[54,11,54,12],[54,13,54,14],[54,15,54,16],[54,17,54,18],[56,0,56,16383],[57,0,57,5],[57,6,57,12],[57,13,57,18],[58,0,58,18],[19,8,19,16],[20,8,20,16],[44,11,44,14],[45,11,45,14],[46,11,46,14],[47,11,47,14],[38,15,41,18],[38,5,41,10],[38,2,41,4],[42,2,43,4],[44,2,45,4],[46,2,47,4],[42,5,43,10],[44,5,45,10],[46,5,47,10],[44,15,44,18],[38,11,41,14],[46,15,46,18],[47,15,47,18],[59,0,59,2],[59,3,59,12],[59,13,59,15],[59,16,59,18],[60,0,60,2],[60,3,60,12],[60,13,60,15],[60,16,60,18],[6,10,8,11],[6,12,6,18],[7,15,8,15],[19,0,19,3],[19,4,19,7],[19,17,19,18],[17,15,17,18],[18,0,18,1],[18,2,18,4],[18,5,18,7],[18,8,18,10],[18,11,18,14],[18,15,18,18],[14,0,14,4],[46,0,47,1],[42,0,43,1]]}
[null,null,null,null," EVALUACION DE DESEMPEÑO FUNCIONARIOS PROVISIONALES Y/O DE LIBRE NOMBRAMIENTO Y REMOCIÓN"]
[null,null,null,null,"GESTIÓN ESTRATÉGICA DE TALENTO HUMANO"]
[null,null,null,null,"UNIDAD NACIONAL DE PROTECCIÓN"]
[null,null,null,null,"NOTA: FRENTE A LA EVALUACION DE DESEMPEÑO REALIZADA PARA EL PERSONAL QUE SE ENCUENTRA CON VINCULACION LABORAL DE CARÁCTER PROVISIONAL, NO PROCEDE DERECHOS DE CARRERA ADMINISTRATIVA , EL OBJETIVO ES EVALUAR Y CONTROLAR LA GESTION LABORAL DE LOS FUNCIONARIOS"]
[null,null,null,null,"PERÍODO DE EVALUACIÓN                                                                                 ANUAL",null,null,"DÍA","MES","AÑO","AL",null,"DÍA","MES","AÑO"]
[null,null,null,null,null,null,null,{"$f":"'F1. COMP.LAB Y COM COMPOR'!H7","v":1},{"$f":"'F1. COMP.LAB Y COM COMPOR'!I7","v":2},{"$f":"'F1. COMP.LAB Y COM COMPOR'!J7","v":0},null,null,{"$f":"'F1. COMP.LAB Y COM COMPOR'!M7","v":31},{"$f":"'F1. COMP.LAB Y COM COMPOR'!N7","v":1},{"$f":"'F1. COMP.LAB Y COM COMPOR'!O7","v":1}]
["PERÍODO DE EVALUACIÓN",null,null,"PROCESO: EVALUACIÓN DEL DESEMPEÑO LABORAL (PRIMER SEMESTRE)",null,null,null,null,null,null,null,null,"PROCESO: EVALUACIÓN DEL DESEMPEÑO LABORAL (SEGUNDO SEMESTRE)"]
[null,null,null,"DÍA","MES","AÑO","AL","DÍA","MES","AÑO",null,null,"DÍA","MES","AÑO","AL","DÍA","MES","AÑO"]
[null,null,null,{"$f":"'F1. COMP.LAB Y COM COMPOR'!D10","v":0},{"$f":"'F1. COMP.LAB Y COM COMPOR'!E10","v":0},{"$f":"'F1. COMP.LAB Y COM COMPOR'!F10","v":0},null,{"$f":"'F1. COMP.LAB Y COM COMPOR'!H10","v":0},{"$f":"'F1. COMP.LAB Y COM COMPOR'!I10","v":0},{"$f":"'F1. COMP.LAB Y COM COMPOR'!J10","v":0},null,null,{"$f":"'F1. COMP.LAB Y COM COMPOR'!M10","v":0},{"$f":"'F1. COMP.LAB Y COM COMPOR'!N10","v":0},{"$f":"'F1. COMP.LAB Y COM COMPOR'!O10","v":0},null,{"$f":"'F1. COMP.LAB Y COM COMPOR'!Q10","v":0},{"$f":"'F1. COMP.LAB Y COM COMPOR'!R10","v":0},{"$f":"'F1. COMP.LAB Y COM COMPOR'!S10","v":0}]
["I. IDENTIFICACIÓN DEL EVALUADO"]
["TIPO DE DOCUMENTO",null,"NÚMERO DE IDENTIFICACIÓN",null,null,"PRIMER APELLIDO",null,null,"SEGUNDO APELLIDO",null,null,"PRIMER NOMBRE",null,null,null,"OTROS NOMBRES"]
["CEDULA DE CIUDADANIA",null,{"$f":"'F1. COMP.LAB Y COM COMPOR'!$C$13","v":0},null,null,{"$f":"'F1. COMP.LAB Y COM COMPOR'!$F$13","v":0},null,null,{"$f":"'F1. COMP.LAB Y COM COMPOR'!$I$13","v":0},null,null,{"$f":"'F1. COMP.LAB Y COM COMPOR'!$L$13","v":0},null,null,null,{"$f":"'F1. COMP.LAB Y COM COMPOR'!$P$13","v":0}]
["TIPO DE VINCULACION",null,null,null,"DEPENDENCIA O ÁREA A LA QUE PERTENECE EL EVALUADO",null,null,null,"GRUPO FUNCIONAL AL QUE PERTNENCE EL EVALUADO",null,null,"DENOMINACIÓN DEL EMPLEO"]
[{"$f":"'F1. COMP.LAB Y COM COMPOR'!$A$15","v":0},null,null,null,{"$f":"'F1. COMP.LAB Y COM COMPOR'!$E$15","v":0},null,null,null,{"$f":"'F1. COMP.LAB Y COM COMPOR'!I15","v":0},null,null,{"$f":"'F1. COMP.LAB Y COM COMPOR'!L15","v":0}]
["NIVEL JERÁRQUICO",null,null,null,null,"PROPÓSITO DEL EMPLEO:  ",null,{"$f":"'F1. COMP.LAB Y COM COMPOR'!$H$16","v":0}]
[{"$f":"'F1. COMP.LAB Y COM COMPOR'!$A$17","v":0}]
["II. IDENTIFICACIÓN EVALUADOR. (Jefe inmediato del evaluado )"]
["TIPO DE DOCUMENTO",null,"NÚMERO DE IDENTIFICACIÓN",null,null,"PRIMER APELLIDO",null,null,"SEGUNDO APELLIDO",null,null,"PRIMER NOMBRE",null,null,null,"OTROS NOMBRES"]
["CEDULA DE CIUDADANIA",null,{"$f":"'F1. COMP.LAB Y COM COMPOR'!C20","v":0},null,null,{"$f":"'F1. COMP.LAB Y COM COMPOR'!F20","v":0},null,null,{"$f":"'F1. COMP.LAB Y COM COMPOR'!I20","v":0},null,null,{"$f":"'F1. COMP.LAB Y COM COMPOR'!L20","v":0},null,null,null,{"$f":"'F1. COMP.LAB Y COM COMPOR'!$P$20","v":0}]
["DEPENDENCIA O ÁREA A LA QUE PERTENECE EL EVALUADOR",null,null,null,"GRUPO FUNCIONAL AL QUE PERTNENCE EL EVALUADO",null,null,null,"DENOMINACIÓN DEL EMPLEO",null,null,null,null,null,null,null,null,"NIVEL JERÁRQUICO"]
[{"$f":"'F1. COMP.LAB Y COM COMPOR'!A22","v":0},null,null,null,{"$f":"'F1. COMP.LAB Y COM COMPOR'!E22","v":0},null,null,null,{"$f":"'F1. COMP.LAB Y COM COMPOR'!$I$22","v":0},null,null,null,null,null,null,null,null,{"$f":"'F1. COMP.LAB Y COM COMPOR'!$R$22","v":0}]
["III. COMPROMISOS LABORALES"]
["METAS DE LA DEPENDENCIA A LAS CUALES CONTRIBUYE EL EMPLEO",null,null,null,"COMPROMISOS LABORALES.",null,null,null,null,null,"PESO PORCENTUAL DEL COMPROMISO EN EL AÑO","PORCENTAJE DE CUMPLIMIENTO. "]
[]
[null,null,null,null,null,null,null,null,null,null,null,"PRIMERA PARCIAL SEMESTRAL",null,null,null,"SEGUNDA PARCIAL SEMESTRAL"]
[null,null,null,null,null,null,null,null,null,null,null,"PORCENTAJE DE CUMPLIMIENTO DE OBJETIVO LOGRADO","CALIFICACIÓN DEL COMPROMISO","UBICACIÓN PORTAFOLIO DE EVIDENCIAS",null,"PORCENTAJE DE CUMPLIMIENTO DE OBJETIVO LOGRADO","CALIFICACIÓN DEL COMPROMISO","UBICACIÓN PORTAFOLIO DE EVIDENCIAS"]
[{"$f":"'F1. COMP.LAB Y COM COMPOR'!$A$31","v":0},null,null,null,{"$f":"'F1. COMP.LAB Y COM COMPOR'!$H$31","v":0},null,null,null,null,null,{"$f":"'F1. COMP.LAB Y COM COMPOR'!S31","v":" "},{"$f":"IFERROR(M27*K27/100,\" \")","v":" "},null,null,null,{"$f":"IFERROR(K27*Q27/100,\" \")","v":" "}]
[{"$f":"'F1. COMP.LAB Y COM COMPOR'!$A$32","v":0},null,null,null,{"$f":"'F1. COMP.LAB Y COM COMPOR'!$H$32","v":0},null,null,null,null,null,{"$f":"'F1. COMP.LAB Y COM COMPOR'!S32","v":" "},{"$f":"IFERROR(M28*K28/100,\" \")","v":" "},null,null,null,{"$f":"IFERROR(K28*Q28/100,\" \")","v":" "}]
[{"$f":"'F1. COMP.LAB Y COM COMPOR'!$A$33","v":0},null,null,null,{"$f":"'F1. COMP.LAB Y COM COMPOR'!$H$33","v":0},null,null,null,null,null,{"$f":"'F1. COMP.LAB Y COM COMPOR'!S33","v":" "},{"$f":"IFERROR(M29*K29/100,\" \")","v":" "},null,null,null,{"$f":"IFERROR(K29*Q29/100,\" \")","v":" "}]
[{"$f":"'F1. COMP.LAB Y COM COMPOR'!$A$34","v":0},null,null,null,{"$f":"'F1. COMP.LAB Y COM COMPOR'!$H$34","v":0},null,null,null,null,null,{"$f":"'F1. COMP.LAB Y COM COMPOR'!S34","v":" "},{"$f":"IFERROR(M30*K30/100,\" \")","v":" "},null,null,null,{"$f":"IFERROR(K30*Q30/100,\" \")","v":" "}]
[{"$f":"'F1. COMP.LAB Y COM COMPOR'!$A$35","v":0},null,null,null,{"$f":"'F1. COMP.LAB Y COM COMPOR'!$H$35","v":0},null,null,null,null,null,{"$f":"'F1. COMP.LAB Y COM COMPOR'!S35","v":" "},{"$f":"IFERROR(M31*K31/100,\" \")","v":" "},null,null,null,{"$f":"IFERROR(K31*Q31/100,\" \")","v":" "}]
[" TOTALES",null,null,null,null,null,null,null,null,null,{"$f":"SUM(K27:K31)","v":0},"RESULTADO TOTAL ",null,null,{"$f":"IFERROR(AVERAGE(M27:M31),0)","v":0},"RESULTADO TOTAL ",null,null,{"$f":"IFERROR(AVERAGE(Q27:Q31),0)","v":0}]
["TOTAL SEMESTRAL"]
["CALIFICACIONES PARCIALES SEMESTRALES COMPROMISOS LABORALES ",null,null,null,null,null,null,null,null,null,null,"CALIFICACIÓN TOTAL"]
[null,null,null,null,null,null,null,null,null,null,null,"CALIFICACIÓN PRIMER PARCIAL",null,null,null,"CALIFICACIÓN SEGUNDO PARCIAL"]
["CALIFICACIÒN TOTAL DE LOS COMPROMISOS LABORALES",null,null,null,null,null,null,null,null,null,null,"PESO PORCENTUAL DEL 85%",null,null,{"$f":"AVERAGE(O32*85%)","v":0},"PESO PORCENTUAL DEL 85%",null,null,{"$f":"AVERAGE(S32*85%)","v":0}]
[]
["IV. CALIFICACIÓN COMPETENCIAS COMPORTAMENTALES "]
["COMPETENCIA",null,"DEFINICIÓN ",null,null,"CONDUCTAS ASOCIADAS",null,null,null,null,null," PRIMERA PARCIAL SEMESTRAL",null,null,null,"SEGUNDA PARCIAL SEMESTRAL"]
[]
[]
[]
[{"$f":"'F1. COMP.LAB Y COM COMPOR'!B39","v":0},null,{"$f":"'F1. COMP.LAB Y COM COMPOR'!E39","v":" "},null,null,{"$f":"'F1. COMP.LAB Y COM COMPOR'!L39","v":" "},null,null,null,null,null,{"$f":"IFERROR(VLOOKUP(L44,'CALIFICACION TOTAL'!$A$1:$B$12,2,FALSE),\" \")","v":" "},null,null,null,{"$f":"IFERROR(VLOOKUP(P44,'CALIFICACION TOTAL'!$A$1:$B$12,2,FALSE),\" \")","v":" "}]
[]
[{"$f":"'F1. COMP.LAB Y COM COMPOR'!B41","v":0},null,{"$f":"'F1. COMP.LAB Y COM COMPOR'!E41","v":" "},null,null,{"$f":"'F1. COMP.LAB Y COM COMPOR'!L41","v":" "},null,null,null,null,null,{"$f":"IFERROR(VLOOKUP(L46,'CALIFICACION TOTAL'!$A$1:$B$12,2,FALSE),\" \")","v":" "},null,null,null,{"$f":"IFERROR(VLOOKUP(P46,'CALIFICACION TOTAL'!$A$1:$B$12,2,FALSE),\" \")","v":" "}]
[]
[{"$f":"'F1. COMP.LAB Y COM COMPOR'!B43","v":0},null,{"$f":"'F1. COMP.LAB Y COM COMPOR'!E43","v":" "},null,null,{"$f":"'F1. COMP.LAB Y COM COMPOR'!L43","v":" "},null,null,null,null,null,{"$f":"IFERROR(VLOOKUP(L48,'CALIFICACION TOTAL'!$A$1:$B$12,2,FALSE),\" \")","v":" "},null,null,null,{"$f":"IFERROR(VLOOKUP(P48,'CALIFICACION TOTAL'!$A$1:$B$12,2,FALSE),\" \")","v":" "}]
[]
[{"$f":"'F1. COMP.LAB Y COM COMPOR'!B45","v":0},null,{"$f":"'F1. COMP.LAB Y COM COMPOR'!E45","v":" "},null,null,{"$f":"'F1. COMP.LAB Y COM COMPOR'!L45","v":" "},null,null,null,null,null,{"$f":"IFERROR(VLOOKUP(L50,'CALIFICACION TOTAL'!$A$1:$B$12,2,FALSE),\" \")","v":" "},null,null,null,{"$f":"IFERROR(VLOOKUP(P50,'CALIFICACION TOTAL'!$A$1:$B$12,2,FALSE),\" \")","v":" "}]
[]
["CALIFICACIÓN EVALUACIÓN  DE LAS COMPETENCIAS COMPORTAMENTALES.",null,null,null,null,null,null,null,null,null,null,"CALIFICACIÓN PRIMERA PARCIAL SEMESTRAL (15%)",null,null,null,"CALIFICACIÓN SEGUNDA PARCIAL SEMESTRAL (15%)"]
[]
[null,null,null,null,null,null,null,null,null,null,null,{"$f":"((SUM(L44,L46,L48,L50)*100)/60)*0.15","v":0},null,null,null,{"$f":"((SUM(P44,P46,P48,P50)*100)/60)*0.15","v":0}]
[]
["TOTAL DIAS LABORADOS",null,null,null,null,null,null,null,null,null,null,{"$f":"IFERROR((DAYS360(DATE(F9,E9,D9),DATE(J9,I9,H9))+1),0)","v":0},null,{"$f":"IFERROR(L55/(L55+'F2. CALIFIC. COMPOR. (2)'!L55+'F2. CALIFIC. COMPOR. (3)'!L55+'F2. CALIFIC. COMPOR. (4)'!L55+'F2. CALIFIC. COMPOR. (5)'!L55+'F2. CALIFIC. COMPOR. (6)'!L55),0)","v":0},null,{"$f":"IFERROR((DAYS360(DATE(O9,N9,M9),DATE(S9,R9,Q9))+1),0)","v":0},null,{"$f":"IFERROR(P55/(P55+'F2. CALIFIC. COMPOR. (2)'!P55+'F2. CALIFIC. COMPOR. (3)'!P55+'F2. CALIFIC. COMPOR. (4)'!P55+'F2. CALIFIC. COMPOR. (5)'!P55+'F2. CALIFIC. COMPOR. (6)'!P55),0)","v":0}]
["CALIFICACION DEFINITIVA COMPROMISOS FUNCIONALES Y COMPORTAMENTALES",null,null,null,null,null,null,null,null,null,null,{"$f":"AVERAGE(O36+L53)","v":0},null,null,null,{"$f":"IFERROR(S36+P53,0)","v":0}]
["Archívese en: Carpeta historias laborales del funcionario"]
["GTH-FT-186/V1",null,null,null,null,null," Oficialización: 16/02/2021",null,null,null,null,null,null,"Página: 1 de 2 "]
["CONTROL DE CAMBIOS"]
["VERSIÓN INICIAL ",null,null,"DESCRIPCIÓN DE LA CREACIÓN O CAMBIO\nDEL DOCUMENTO",null,null,null,null,null,null,null,null,null,"FECHA",null,null,"VERSIÓN FINAL"]
[0,null,null,"Se realiza creación del formato con el fin de unificar los formatos existentes del proceso de evaluación de desempeño.",null,null,null,null,null,null,null,null,null,"2021-02-16",null,null,1]

{"sheet":"CALIFICACION TOTAL","index":3,"n_rows":12,"n_cols":2,"rows_kept":12,"cut":false,"hidden":true,"merged":[]}
[4,"BAJO"]
[5,"BAJO"]
[6,"BAJO"]
[7,"ACEPTABLE"]
[8,"ACEPTABLE"]
[9,"ACEPTABLE"]
[10,"ALTO"]
[11,"ALTO"]
[12,"ALTO"]
[13,"MUY ALTO"]
[14,"MUY ALTO"]
[15,"MUY ALTO"]

{"sheet":"AREA FUNCIONAL","index":4,"n_rows":19,"n_cols":11,"rows_kept":19,"cut":false,"hidden":true,"merged":[]}
["NÚMERO","DEPENDENCIA","DESPACHO DEL DIRECTOR GENERAL","OFICINA ASESORA JURIDICA","OFICINA ASESORA DE PLANEACIÓN E INFORMACIÓN","OFICINA DE CONTROL INTERNO","SECRETARÍA GENERAL","SUBDIRECCIÓN DE EVALUACIÓN DEL RIESGO","SUBDIRECCIÓN DE PROTECCIÓN","SUBDIRECCIÓN DE TALENTO HUMANO","SUBDIRECCION ESPECIALIZADA DE SEGURIDAD Y PROTECCION"]
[6,"SUBDIRECCIÓN_DE_PROTECCIÓN","DG DESPACHO DEL DIRECTOR","DESPACHO OAJ ASESORA JURÍDICA","GRUPO DE SERVICIO AL CIUDADANO (GSC)","DESPACHO OCI","GRUPO DE ARMAMENTO (GAR)","GRUPO SECRETARÍA TÉCNICA DEL COMITÉ DE EVALUACIÓN DEL RIESGO Y RECOMENDACIÓN DE MEDIDAS    (GUSEI)","GRUPO DE HOMBRES DE PROTECCIÓN (GHP)","DESPACHO STH","GRUPO DE GESTION DE VIATICOS Y DESPLAZAMIENTOS (GGVT)"]
[1,"OFICINA_ASESORA_JURIDICA",null,"GRUPO DE DEFENSA JURIDICA (GDJ)","GRUPO DE PLANEACIÓN INSTITUCIONAL Y GESTIÓN DE LA INFORMACIÓN (GPIGI) ",null,"DESPACHO SG","DESPACHO SER","DESPACHO SP","GRUPO DE CAPACITACIÓN (GC)","GRUPO CUERPO DE SEGURIDAD Y PROTECCION (GCSP)"]
[5,"SUBDIRECCIÓN_DE_EVALUACIÓN_DEL_RIESGO",null,null,"DESPACHO OAPI",null,"GRUPO DE COMISIÓN DE SERVICIOS Y AUTORIZACIONES DE VIAJE (GCA)","GRUPO TECNICO DE ANALISIS DE RIESGO RUTA DE PROTECCION INDIVIDUAL (GCTAR)","GRUPO DE DESMONTE DE MEDIDAS DE PROTECCIÓN (GDMP)","GRUPO DE NÓMINA (GN)","GRUPO DE ENLACE CON TALENTO HUMANO (GETH)"]
[3,"OFICINA_DE_CONTROL_INTERNO",null,null,"GRUPO DE GESTIÓN INTEGRADA Y MEJORA MIPG - SIG (GGIM)",null,"GRUPO DE GESTION ADMINISTRATIVA (GGA)","GRUPO SECRETARÍA TÉCNICA DEL COMITÉ DE EVALUACIÓN DEL RIESGO Y RECOMENDACIÓN DE MEDIDAS DE PROTECCION COLECTIVA  (GUSEC)","GRUPO CUERPO TECNICO DE VERIFICACIÓN (GCTV)","GRUPO DE REGISTRO Y CONTROL (GRC)","GRUPO DE AUTOMOTORES (GA)"]
[4,"SECRETARÍA_GENERAL",null,null,null,null,"GRUPO DE CONTABILIDAD (GCB)","GRUPO TECNICO DE ANALISIS DE RIESGO RUTA DE PROTECCION COLECTIVO (GCTARC)","GRUPO DE APOYO REENTRENAMIENTO OPERATIVO (GARO)","GRUPO DE SELECCIÓN Y EVALUACION (GES)","GRUPO DE CONTROL  DISCIPLINARIO INTERNO (GCDI)"]
[2,"OFICINA_ASESORA_DE_PLANEACIÓN_E_INFORMACIÓN",null,null,null,null,"GRUPO DE ALMACEN GENERAL (GAG)","GRUPO DE ANÁLISIS ESTRATÉGICO POBLACIONAL (GAEP)","GRUPO CONTROL DE  DESPLAZAMIENTO ESQUEMAS PROTECTIVOS ( GCDEP )","GRUPO SEGURIDAD Y SALUD EN EL TRABAJO, BIENESTAR E INCENTIVOS","DESPACHO SUBDIRECCION ESPECIALIZADA DE SEGURIDAD Y PROTECCION"]
[7,"SUBDIRECCIÓN_DE_TALENTO_HUMANO",null,null,null,null,"GRUPO DE TESORERIA (GT)",null,"GRUPO DE IMPLEMENTACIÓN (GI)",null,"GRUPO DE IMPLEMENTACION SUPERVISION Y FINALIZACION DE MEDIDAS (GISFM)"]
[8,"SUBDIRECCION_ESPECIALIZADA_DE_SEGURIDAD_Y_PROTECCION",null,null,null,null,"GRUPO DE PRESUPUESTO (GP)",null,"GRUPO DE SEGURIDAD ESPECIAL (GSE)",null,"GRUPO DE PLANEACION Y SEGUIMIENTO (GPS)"]
[9,"DESPACHO_DEL_DIRECTOR_GENERAL",null,null,null,null,"GRUPO DE CONTROL  DISCIPLINARIO INTERNO (GCDI)",null,"GRUPO DE VEHÍCULOS DE PROTECCIÓN (GRVP)",null,"GRUPO DE RECEPCION ANALISIS EVALUACION DEL RIESGO Y RECOMENDACIONES (GRAERR)"]
[null,null,null,null,null,null,"GRUPO DE GESTIÓN DOCUMENTAL (GGD)",null,"GRUPO REGIONAL DE PROTECCIÓN  CALI (GURPCL)",null,"GRUPO DE SEGURIDAD ESPECIAL (GSE)"]
[null,null,null,null,null,null,"NA",null,"GRUPO REGIONAL DE PROTECCIÓN  CÚCUTA (GURPCU)",null,"SECRETARÍA GENERAL"]
[null,null,null,null,null,null,"GRUPO DE CONVENIOS (GCV)",null,"GRUPO REGIONAL DE PROTECCIÓN BARRANQUILLA (GURPBA)",null,"NA"]
[null,null,null,null,null,null,"GRUPO DE CONTRATACIÓN (GC)",null,"GRUPO REGIONAL DE PROTECCIÓN CARTAGENA (GURPCA)"]
[null,null,null,null,null,null,null,null,"GRUPO REGIONAL DE PROTECCIÓN FLORENCIA (GURPF)"]
[null,null,null,null,null,null,null,null,"GRUPO REGIONAL DE PROTECCIÓN MEDELLIN (GURPM)"]
[null,null,null,null,null,null,null,null,"GRUPO REGIONAL DE PROTECCIÓN NEIVA (GURPN)"]
[null,null,null,null,null,null,null,null,"GRUPO REGIONAL DE PROTECCIÓN POPAYAN (GURPP)"]
[null,null,null,null,null,null,null,null,"GRUPO REGIONAL DE PROTECCIÓN VILLAVICENCIO (GURPV)"]

{"sheet":"COMPETENCIAS COMPORTAMENTALES","index":5,"n_rows":57,"n_cols":10,"rows_kept":57,"cut":false,"hidden":true,"merged":[]}
["NIVEL","Competencia","PARA BUSCAR","Definición de la competencia","Conductas asociadas","ASESOR","ASISTENCIAL","DIRECTIVO","PROFESIONAL","TECNICO"]
["ASESOR","ORIENTACIÓN A RESULTADOS",{"$f":"A2&B2","v":"ASESORORIENTACIÓN A RESULTADOS"},"Realizar las funciones y cumplir los compromisos organizacionales con eficacia y calidad. ","▪ Cumple con oportunidad en función de estándares, objetivos y metas establecidas por la entidad, las funciones que le son asignadas.\n▪ Asume la responsabilidad por sus resultados.\n▪ Gestiona recursos y tiempos para mejorar la productividad tomando las medidas necesarias para minimizar los riesgos.\n▪ Realiza todas las acciones necesarias para alcanzar los objetivos propuestos enfrentando los obstáculos que se presentan.","ADAPTACIÓN AL CAMBIO","ADAPTACIÓN AL CAMBIO","ADAPTACIÓN AL CAMBIO","ADAPTACIÓN AL CAMBIO","ADAPTACIÓN AL CAMBIO"]
["ASESOR","ORIENTACIÓN AL USUARIO Y AL CIUDADANO","ASESORORIENTACIÓN AL USUARIO Y AL CIUDADANO","Dirigir las decisiones y acciones a la satisfacción de las necesidades e intereses de los usuarios internos y externos, de conformidad con las responsabilidades públicas asignadas a la entidad.","▪ Atiende y valora las necesidades y peticiones de los usuarios y de ciudadanos en general.\n▪Considera las necesidades de los usuarios al diseñar proyectos o servicios.\n▪Da respuesta oportuna a las necesidades de los usuarios de conformidad con el servicio que ofrece la entidad.\n▪Establece diferentes canales de comunicación con el usuario para conocer sus necesidades y propuestas y responde a las mismas.\n▪Reconoce la interdependencia entre su trabajo y el de otros.","APRENDIZAJE CONTINUO","APRENDIZAJE CONTINUO","APRENDIZAJE CONTINUO","APORTE TÉCNICO-PROFESIONAL","APRENDIZAJE CONTINUO"]
["ASESOR","CONFIABILIDAD TÉCNICA","ASESORCONFIABILIDAD TÉCNICA","Contar con los conocimientos técnicos requeridos y aplicarlos a situaciones concretas de trabajo, con altos estándares de calidad","▪Mantiene actualizados sus conocimientos para apoyar la gestión de la entidad\n▪Conoce, maneja y sabe aplicar los conocimientos para el logro de resultados\n▪Emite conceptos técnicos u orientaciones claros, precisos, pertinentes y ajustados a los lineamientos normativos y organizacionales\n▪Genera conocimientos técnicos de interés para la entidad, los cuales son aprehendidos y utilizados en el actuar de la organización","COMPROMISO CON LA ORGANIZACIÓN","COLABORACIÓN","COMPROMISO CON LA ORGANIZACIÓN","APRENDIZAJE CONTINUO","COMPROMISO CON LA ORGANIZACIÓN"]
["ASESOR","COMPROMISO CON LA ORGANIZACIÓN","ASESORCOMPROMISO CON LA ORGANIZACIÓN","Alinear el propio comportamiento a las necesidades, prioridades y metas organizacionales.","▪Promueve las metas de la organización y respeta sus normas.\n▪Antepone las necesidades de la organización a sus propias necesidades.\n▪Apoya a la organización en situaciones difíciles.\n▪Demuestra sentido de pertenencia en todas sus actuaciones.","CONFIABILIDAD TÉCNICA","COMPROMISO CON LA ORGANIZACIÓN","LIDERAZGO EFECTIVO","COMPROMISO CON LA ORGANIZACIÓN","CONFIABILIDAD TÉCNICA"]
["ASESOR","CONOCIMIENTO DEL ENTORNO","ASESORCONOCIMIENTO DEL ENTORNO","Conocer e interpretar la organización, su funcionamiento y sus relaciones políticas y administrativas.","▪Comprende el entorno organizacional que enmarca las situaciones objeto de asesoría y lo toma como referente obligado para emitir juicios, conceptos o propuestas a desarrollar.\n▪Se informa permanentemente sobre políticas gubernamentales, problemas y demandas del entorno.                                                                           ▪Identifica las fuerzas políticas que afectan la organización y las posibles alianzas y las tiene en cuenta al emitir sus conceptos técnicos\n▪Orienta el desarrollo de estrategias que concilien las fuerzas políticas y las alianzas en pro de la organización","CONOCIMIENTO DEL ENTORNO","MANEJO DE LA INFORMACIÓN","ORIENTACIÓN A RESULTADOS","COMUNICACIÓN EFECTIVA","DISCIPLINA"]
["ASESOR","CONSTRUCCIÓN DE RELACIONES","ASESORCONSTRUCCIÓN DE RELACIONES","Capacidad para relacionarse en diferentes entornos con el fin de cumplir los objetivos institucionales","▪Utiliza sus contactos para conseguir objetivos.\n▪Comparte información para establecer lazos.\n▪Interactúa con otros de un modo efectivo y adecuado.                                  ▪Establecer y mantener relaciones cordiales y recíprocas con redes o grupos de personas internas y externas a la organización que faciliten la consecución de los objetivos institucionales.","CONSTRUCCIÓN DE RELACIONES","ORIENTACIÓN A RESULTADOS","ORIENTACIÓN AL USUARIO Y AL CIUDADANO","DIRECCIÓN Y DESARROLLO DE PERSONAL (personal a cargo)","ORIENTACIÓN A RESULTADOS"]
["ASESOR","INICIATIVA","ASESORINICIATIVA","Anticiparse a los problemas iniciando acciones para superar los obstáculos y alcanzar metas concretas","▪Prevé situaciones y alternativas de solución que orientan la toma de decisiones de la alta dirección.\n▪Enfrenta los problemas y propone acciones concretas para solucionarlos.\n▪Reconoce y hace viables las oportunidades.","CREATIVIDAD E INNOVACIÓN","ORIENTACIÓN AL USUARIO Y AL CIUDADANO","PLANEACIÓN","GESTIÓN DE PROCEDIMIENTOS","ORIENTACIÓN AL USUARIO Y AL CIUDADANO"]
["PROFESIONAL","ORIENTACIÓN A RESULTADOS ","PROFESIONALORIENTACIÓN A RESULTADOS ","Realizar las funciones y cumplir los compromisos organizacionales con eficacia y calidad. ","▪ Cumple con oportunidad en función de estándares, objetivos y metas establecidas por la entidad, las funciones que le son asignadas.\n▪ Asume la responsabilidad por sus resultados.\n▪ Gestiona recursos y tiempos para mejorar la productividad tomando las medidas necesarias para minimizar los riesgos.\n▪ Realiza todas las acciones necesarias para alcanzar los objetivos propuestos enfrentando los obstáculos que se presentan.","INICIATIVA","RELACIONES INTERPERSONALES","RESOLUCIÓN DE CONFLICTOS","ORIENTACIÓN A RESULTADOS ","RESPONSABILIDAD"]
["PROFESIONAL","ORIENTACIÓN AL USUARIO Y AL CIUDADANO","PROFESIONALORIENTACIÓN AL USUARIO Y AL CIUDADANO","Dirigir las decisiones y acciones a la satisfacción de las necesidades e intereses de los usuarios internos y externos, de conformidad con las responsabilidades públicas asignadas a la entidad.","▪ Atiende y valora las necesidades y peticiones de los usuarios y de ciudadanos en general.\n▪Considera las necesidades de los usuarios al diseñar proyectos o servicios.\n▪Da respuesta oportuna a las necesidades de los usuarios de conformidad con el servicio que ofrece la entidad.\n▪Establece diferentes canales de comunicación con el usuario para conocer sus necesidades y propuestas y responde a las mismas.\n▪Reconoce la interdependencia entre su trabajo y el de otros.","ORIENTACIÓN A RESULTADOS","TRABAJO EN EQUIPO","TOMA DE DECISIONES","ORIENTACIÓN AL USUARIO Y AL CIUDADANO","TRABAJO EN EQUIPO"]
["PROFESIONAL","APORTE TÉCNICO-PROFESIONAL","PROFESIONALAPORTE TÉCNICO-PROFESIONAL","Poner a disposición de la Administración sus saberes profesionales específicos y sus experiencias previas, gestionando la actualización de sus saberes expertos.","▪Aporta soluciones alternativas en lo que refiere a sus saberes específicos.\n▪ Informa su experiencia específica en el proceso de toma de decisiones que involucran aspectos de su especialidad.\n▪Anticipa problemas previsibles que advierte en su carácter de especialista.\n▪Asume la interdisciplinariedad aprendiendo puntos de vista diversos y alternativos al propio, para analizar y ponderar soluciones posibles.","ORIENTACIÓN AL USUARIO Y AL CIUDADANO",null,"TRABAJO EN EQUIPO","TOMA DE DECISIONES (personal a cargo)"]
["PROFESIONAL","COMPROMISO CON LA ORGANIZACIÓN","PROFESIONALCOMPROMISO CON LA ORGANIZACIÓN","Alinear el propio comportamiento a las necesidades, prioridades y metas organizacionales.","▪Promueve las metas de la organización y respeta sus normas.\n▪Antepone las necesidades de la organización a sus propias necesidades.\n▪Apoya a la organización en situaciones difíciles.\n▪Demuestra sentido de pertenencia en todas sus actuaciones.","TRABAJO EN EQUIPO",null,"VISIÓN ESTRATÉGICA","TRABAJO EN EQUIPO"]
["PROFESIONAL","APRENDIZAJE CONTINUO","PROFESIONALAPRENDIZAJE CONTINUO","Identificar, incorporar y aplicar nuevos conocimientos sobre regulaciones vigentes, tecnologías disponibles, métodos y programas de trabajo, para mantener actualizada la efectividad de sus prácticas laborales y su visión del contexto","▪Aprende de la experiencia de otros y de la propia.\n▪Se adapta y aplica nuevas tecnologías que se implanten en la organización.\n▪Aplica los conocimientos adquiridos a los desafíos que se presentan en el desarrollo del trabajo.\n▪Investiga, indaga y profundiza en los temas de su entorno área de desempeño.\n▪Reconoce las propias limitaciones y las necesidades de mejorar su preparación.\n▪Asimila nueva información y la aplica correctamente.",null,null,"PENSAMIENTO SISTÉMICO","INSTRUMENTACIÓN DE DECISIONES"]
["PROFESIONAL","COMUNICACIÓN EFECTIVA","PROFESIONALCOMUNICACIÓN EFECTIVA","Establecer comunicación efectiva y positiva con superiores jerárquicos, pares y ciudadanos, tanto en la expresión escrita, como verbal y gestual.","▪Utiliza canales de comunicación, en su diversa expresión, con claridad, precisión y tono agradable para el receptor\n▪Redacta textos, informes, mensajes, cuadros o gráficas con claridad en la expresión para hacer efectiva y sencilla la comprensión\n▪Mantiene escucha y lectura atenta a efectos de comprender mejor los mensajes o información recibida\n▪Da respuesta a cada comunicación recibida de modo inmediato\n\n ",null,null,"GESTIÓN DEL DESARROLLO DE LAS PERSONAS"]
["PROFESIONAL","GESTIÓN DE PROCEDIMIENTOS","PROFESIONALGESTIÓN DE PROCEDIMIENTOS","Desarrollar las tareas a cargo en el marco de los procedimientos vigentes y proponer e introducir acciones para acelerar la mejora continua y la productividad.","▪Ejecuta sus tareas con los criterios de calidad establecidos                       ▪Revisa procedimientos e instrumentos para mejorar tiempos y resultados y para anticipar soluciones a problemas                                               ▪Desarrolla las actividades de acuerdo con las pautas y protocolos definidos"]
["ASESOR","CREATIVIDAD E INNOVACIÓN","ASESORCREATIVIDAD E INNOVACIÓN","Generar y desarrollar nuevas ideas, conceptos, métodos y soluciones.","▪Ofrece respuestas alternativas.\n▪Aprovecha las oportunidades y problemas para dar soluciones novedosas.\n▪Desarrolla nuevas formas de hacer y tecnologías.\n▪Busca nuevas alternativas de solución y se arriesga a romper esquemas tradicionales.\n▪Inicia acciones para superar los obstáculos y alcanzar metas específicas."]
["PROFESIONAL","LIDERAZGO DE GRUPOS DE TRABAJO (PERSONAL A CARGO)","PROFESIONALLIDERAZGO DE GRUPOS DE TRABAJO (PERSONAL A CARGO)","Asumir el rol de orientador, guíar al grupo o equipo de trabajo, utilizando la autoridad con arreglo a las normas y promoviendo la Efectividad en la consecución de objetivos y metas institucionales.","▪Establece los objetivos del grupo de forma clara y equilibrada.\n▪Asegura que los integrantes del grupo compartan planes, programas y proyectos institucionales.\n▪Orienta y coordina el trabajo del grupo para la identificación de planes y actividades a seguir.\n▪Facilita la colaboración con otras áreas y dependencias.\n▪Escucha y tiene en cuenta las opiniones de los integrantes del grupo.\n▪Gestiona los recursos necesarios para poder cumplir con las metas propuestas.\n▪Garantiza los recursos necesarios para poder cumplir con las metas propuestas.\n▪Garantiza que el grupo tenga la información necesaria.\n▪Explica las razones de las decisiones."]
["PROFESIONAL","TOMA DE DECISIONES (PERSONAL A CARGO)","PROFESIONALTOMA DE DECISIONES (PERSONAL A CARGO)","Elegir entre una o varias alternativas para solucionar un problema y tomar las acciones concretas y consecuentes con la elección realizada.","▪Elige con oportunidad, entre muchas alternativas, los proyectos a realizar, estableciendo responsabilidades precisas con base en las prioridades de la entidad\n▪Toma en cuenta la opinión técnica de sus colaboradores al analizar las alternativas existentes para tomar una decisión y desarrollarla\n▪Decide en situaciones de alta complejidad e incertidumbre teniendo en consideración la consecución de logros y objetivos de la entidad\n▪Efectúa los cambios que considera necesarios para solucionar los problemas detectados o atender situaciones particulares y se hace responsable de la decisión tomada"]
["TECNICO","ORIENTACIÓN A RESULTADOS","TECNICOORIENTACIÓN A RESULTADOS","Realizar las funciones y cumplir los compromisos organizacionales con eficacia y calidad. ","▪ Cumple con oportunidad en función de estándares, objetivos y metas establecidas por la entidad, las funciones que le son asignadas.\n▪ Asume la responsabilidad por sus resultados.\n▪ Gestiona recursos y tiempos para mejorar la productividad tomando las medidas necesarias para minimizar los riesgos.\n▪ Realiza todas las acciones necesarias para alcanzar los objetivos propuestos enfrentando los obstáculos que se presentan."]
["TECNICO","ORIENTACIÓN AL USUARIO Y AL CIUDADANO","TECNICOORIENTACIÓN AL USUARIO Y AL CIUDADANO","Dirigir las decisiones y acciones a la satisfacción de las necesidades e intereses de los usuarios internos y externos, de conformidad con las responsabilidades públicas asignadas a la entidad.","▪ Atiende y valora las necesidades y peticiones de los usuarios y de ciudadanos en general.\n▪Considera las necesidades de los usuarios al diseñar proyectos o servicios.\n▪Da respuesta oportuna a las necesidades de los usuarios de conformidad con el servicio que ofrece la entidad.\n▪Establece diferentes canales de comunicación con el usuario para conocer sus necesidades y propuestas y responde a las mismas.\n▪Reconoce la interdependencia entre su trabajo y el de otros."]
["TECNICO","DISCIPLINA","TECNICODISCIPLINA","Adaptarse a las políticas institucionales y generar información acorde con los procesos.","▪Recibe instrucciones y desarrolla actividades acorde con las mismas\n▪Acepta la supervisión constante                                                                 ▪Revisa de manera permanente los cambio en los procesos"]
["TECNICO","COMPROMISO CON LA ORGANIZACIÓN","TECNICOCOMPROMISO CON LA ORGANIZACIÓN","Alinear el propio comportamiento a las necesidades, prioridades y metas organizacionales.","▪Promueve las metas de la organización y respeta sus normas.\n▪Antepone las necesidades de la organización a sus propias necesidades.\n▪Apoya a la organización en situaciones difíciles.\n▪Demuestra sentido de pertenencia en todas sus actuaciones."]
["TECNICO","CONFIABILIDAD TÉCNICA","TECNICOCONFIABILIDAD TÉCNICA","Contar con los conocimientos técnicos requeridos y aplicarlos a situaciones concretas de trabajo, con altos estándares de calidad","▪Aplica el conocimiento técnico en el desarrollo de sus responsabilidades\n▪Mantiene actualizado su conocimiento técnico para apoyar su gestión\n▪Resuelve problemas utilizando conocimientos técnicos de su especialidad, para apoyar el cumplimiento de metas y objetivos institucionales\n▪Emite conceptos técnicos, juicios o propuestas claros, precisos, pertinentes y ajustados a los lineamientos normativos y organizacionales"]
["TECNICO","TRABAJO EN EQUIPO","TECNICOTRABAJO EN EQUIPO","Trabajar con otros de forma integrada y armónica para la consecución de metas institucionales comunes","▪Identifica claramente los objetivos del grupo y orienta su trabajo a la consecución de los mismos.\n▪Colabora con otros para la realización de actividades y metas grupales."]
["TECNICO","RESPONSABILIDAD","TECNICORESPONSABILIDAD","Conoce la magnitud de sus acciones y la forma de afrontarlas","▪Utiliza el tiempo de manera eficiente\n▪Maneja adecuadamente los implementos requeridos para la ejecución de su tarea\n▪Realiza sus tareas con criterios de productividad, calidad, eficiencia y efectividad\n▪Cumple con eficiencia la tarea encomendada"]
["ASISTENCIAL","ORIENTACIÓN A RESULTADOS","ASISTENCIALORIENTACIÓN A RESULTADOS","Realizar las funciones y cumplir los compromisos organizacionales con eficacia y calidad. ","▪ Cumple con oportunidad en función de estándares, objetivos y metas establecidas por la entidad, las funciones que le son asignadas.\n▪ Asume la responsabilidad por sus resultados.\n▪ Gestiona recursos y tiempos para mejorar la productividad tomando las medidas necesarias para minimizar los riesgos.\n▪ Realiza todas las acciones necesarias para alcanzar los objetivos propuestos enfrentando los obstáculos que se presentan."]
["ASISTENCIAL","ORIENTACIÓN AL USUARIO Y AL CIUDADANO","ASISTENCIALORIENTACIÓN AL USUARIO Y AL CIUDADANO","Dirigir las decisiones y acciones a la satisfacción de las necesidades e intereses de los usuarios internos y externos, de conformidad con las responsabilidades públicas asignadas a la entidad.","▪ Atiende y valora las necesidades y peticiones de los usuarios y de ciudadanos en general.\n▪Considera las necesidades de los usuarios al diseñar proyectos o servicios.\n▪Da respuesta oportuna a las necesidades de los usuarios de conformidad con el servicio que ofrece la entidad.\n▪Establece diferentes canales de comunicación con el usuario para conocer sus necesidades y propuestas y responde a las mismas.\n▪Reconoce la interdependencia entre su trabajo y el de otros."]
["ASISTENCIAL","COMPROMISO CON LA ORGANIZACIÓN","ASISTENCIALCOMPROMISO CON LA ORGANIZACIÓN","Alinear el propio comportamiento a las necesidades, prioridades y metas organizacionales.","▪Promueve las metas de la organización y respeta sus normas.\n▪Antepone las necesidades de la organización a sus propias necesidades.\n▪Apoya a la organización en situaciones difíciles.\n▪Demuestra sentido de pertenencia en todas sus actuaciones."]
["ASISTENCIAL","MANEJO DE LA INFORMACIÓN","ASISTENCIALMANEJO DE LA INFORMACIÓN","Manejar con respeto las informaciones personales e institucionales de que dispone.","▪Evade temas que indagan sobre información confidencial.\n▪Recoge sólo información imprescindible para el desarrollo de la tarea.\n▪Organiza y guarda de forma adecuada la información a su cuidado, teniendo en cuenta las normas legales y de la organización.\n▪No hace pública información laboral o de las personas que pueda afectar la organización o las personas.\n▪Es capaz de discernir que se puede hacer público y que no.\n▪Transmite información oportuna y objetiva. \n"]
["ASISTENCIAL","ADAPTACIÓN AL CAMBIO","ASISTENCIALADAPTACIÓN AL CAMBIO","Enfrentarse con flexibilidad y versatilidad a situaciones nuevas para aceptar los cambios positiva y constructivamente.","▪Acepta y se adapta fácilmente los cambios.\n▪Responde al cambio con flexibilidad.\n▪Promueve el cambio\n*Apoya a la entidad en nuevas decisiones y coopera activamente en la implementación de nuevos objetivos, formas de trabajo y procedimientos"]
["ASISTENCIAL","RELACIONES INTERPERSONALES","ASISTENCIALRELACIONES INTERPERSONALES","Establecer y mantener relaciones de trabajo amistosas y positivas, basadas en la comunicación abierta y fluida y en el respeto por los demás.","▪Escucha con interés a las personas y capta las preocupaciones, intereses y necesidades de los demás.\n▪Transmite eficazmente las ideas, sentimientos e información impidiendo con ello malos entendidos o situaciones confusas que puedan generar conflictos."]
["ASISTENCIAL","COLABORACIÓN","ASISTENCIALCOLABORACIÓN","Cooperar con los demás con el fin de alcanzar los objetivos institucionales","▪Ayuda al logro de los objetivos articulando sus actuaciones con los demás.\n▪Cumple los compromisos que adquiere.\n▪Facilita la labor de sus superiores y compañeros de trabajo."]
["DIRECTIVO","ORIENTACIÓN A RESULTADOS","DIRECTIVOORIENTACIÓN A RESULTADOS","Realizar las funciones y cumplir los compromisos organizacionales con eficacia y calidad. ","▪ Cumple con oportunidad en función de estándares, objetivos y metas establecidas por la entidad, las funciones que le son asignadas.\n▪ Asume la responsabilidad por sus resultados.\n▪ Gestiona recursos y tiempos para mejorar la productividad tomando las medidas necesarias para minimizar los riesgos.\n▪ Realiza todas las acciones necesarias para alcanzar los objetivos propuestos enfrentando los obstáculos que se presentan."]
["DIRECTIVO","ORIENTACIÓN AL USUARIO Y AL CIUDADANO",{"$f":"A34&B34","v":"DIRECTIVOORIENTACIÓN AL USUARIO Y AL CIUDADANO"},"Dirigir las decisiones y acciones a la satisfacción de las necesidades e intereses de los usuarios internos y externos, de conformidad con las responsabilidades públicas asignadas a la entidad.","▪ Atiende y valora las necesidades y peticiones de los usuarios y de ciudadanos en general.\n▪Considera las necesidades de los usuarios al diseñar proyectos o servicios.\n▪Da respuesta oportuna a las necesidades de los usuarios de conformidad con el servicio que ofrece la entidad.\n▪Establece diferentes canales de comunicación con el usuario para conocer sus necesidades y propuestas y responde a las mismas.\n▪Reconoce la interdependencia entre su trabajo y el de otros."]
["DIRECTIVO","COMPROMISO CON LA ORGANIZACIÓN","DIRECTIVOCOMPROMISO CON LA ORGANIZACIÓN","Alinear el propio comportamiento a las necesidades, prioridades y metas organizacionales.","▪Promueve las metas de la organización y respeta sus normas.\n▪Antepone las necesidades de la organización a sus propias necesidades.\n▪Apoya a la organización en situaciones difíciles.\n▪Demuestra sentido de pertenencia en todas sus actuaciones."]
["DIRECTIVO","LIDERAZGO EFECTIVO","DIRECTIVOLIDERAZGO EFECTIVO","Generar equipos, optimizando la aplicación del talento disponible y creando un entorno positivo y de compromiso para el logro de los resultados.","▪Traduce la visión y logra que cada miembro del equipo se comprometa y aporte, en un entorno participativo y de toma de decisiones\n▪Forma equipos y les delega responsabilidades y tareas en función de las competencias, el potencial y los intereses de los miembros del equipo\n▪Crea compromiso y moviliza a los miembros de su equipo a gestionar, aceptar retos, desafíos y directrices, superando intereses personales para alcanzar las metas\n▪Brinda apoyo y motiva a su equipo en momentos de adversidad, a la vez que comparte las mejores prácticas y desempeños y celebra el éxito con su gente, incidiendo positivamente en la calidad de vida laboral\n▪Propicia, favorece y acompaña las condiciones para generar y mantener un clima laboral positivo en un entorno de inclusión.\n▪Fomenta la comunicación clara y concreta en un entorno de respeto"]
["DIRECTIVO","PLANEACIÓN","DIRECTIVOPLANEACIÓN","Determinar eficazmente las metas y prioridades institucionales, identificando las acciones, los responsables, los plazos y los recursos requeridos para alcanzarlas.","▪Prevé situaciones y escenarios futuros\n▪Establece los planes de acción necesarios para el desarrollo de los objetivos estratégicos, teniendo en cuenta actividades, responsables, plazos y recursos requeridos; promoviendo altos estándares de desempeño\n▪Hace seguimiento a la planeación institucional, con base en los indicadores y metas planeadas, verificando que se realicen los ajustes y retroalimentando el proceso\n▪Orienta la planeación institucional con una visión estratégica, que tiene en cuenta las necesidades y expectativas de los usuarios y ciudadanos\n▪Optimiza el uso de los recursos\n▪Concreta oportunidades que generan valor a corto, mediano y largo plazo"]
["DIRECTIVO","TOMA DE DECISIONES","DIRECTIVOTOMA DE DECISIONES","Elegir entre una o varias alternativas para solucionar un problema o atender una situación, comprometiéndose con acciones concretas y consecuentes con la decisión.","• Elige con oportunidad, entre muchas alternativas, los proyectos a realizar.\n• Efectúa cambios complejos y comprometidos en sus actividades o en las funciones que tiene asignadas cuando detecta problemas o dificultades para su realización.\n• Decide bajo presión.\n• Decide en situaciones de alta complejidad e incertidumbre."]
["DIRECTIVO","CONOCIMIENTO DEL ENTORNO","DIRECTIVOCONOCIMIENTO DEL ENTORNO","Estar al tanto de las circunstancias y las relaciones de poder que influyen en el entorno organizacional","• Es consciente de las condiciones específicas del entorno organizacional.\n• Está al día en los acontecimientos claves del sector y del Estado.\n• Conoce y hace seguimiento a las políticas gubernamentales.\n• Identifica las fuerzas políticas que afectan la organización y las posibles alianzas para cumplir con los propósitos organizacionales."]
["ASESOR","APRENDIZAJE CONTINUO","ASESORAPRENDIZAJE CONTINUO","Identificar, incorporar y aplicar nuevos conocimientos sobre regulaciones vigentes, tecnologías disponibles, métodos y programas de trabajo, para mantener actualizada la efectividad de sus prácticas laborales y su visión del contexto","▪Aprende de la experiencia de otros y de la propia.\n▪Se adapta y aplica nuevas tecnologías que se implanten en la organización.\n▪Aplica los conocimientos adquiridos a los desafíos que se presentan en el desarrollo del trabajo.\n▪Investiga, indaga y profundiza en los temas de su entorno área de desempeño.\n▪Reconoce las propias limitaciones y las necesidades de mejorar su preparación.\n▪Asimila nueva información y la aplica correctamente."]
["TECNICO","APRENDIZAJE CONTINUO","TECNICOAPRENDIZAJE CONTINUO","Identificar, incorporar y aplicar nuevos conocimientos sobre regulaciones vigentes, tecnologías disponibles, métodos y programas de trabajo, para mantener actualizada la efectividad de sus prácticas laborales y su visión del contexto","▪Aprende de la experiencia de otros y de la propia.\n▪Se adapta y aplica nuevas tecnologías que se implanten en la organización.\n▪Aplica los conocimientos adquiridos a los desafíos que se presentan en el desarrollo del trabajo.\n▪Investiga, indaga y profundiza en los temas de su entorno área de desempeño.\n▪Reconoce las propias limitaciones y las necesidades de mejorar su preparación.\n▪Asimila nueva información y la aplica correctamente."]
["ASISTENCIAL","APRENDIZAJE CONTINUO","ASISTENCIALAPRENDIZAJE CONTINUO","Identificar, incorporar y aplicar nuevos conocimientos sobre regulaciones vigentes, tecnologías disponibles, métodos y programas de trabajo, para mantener actualizada la efectividad de sus prácticas laborales y su visión del contexto","▪Aprende de la experiencia de otros y de la propia.\n▪Se adapta y aplica nuevas tecnologías que se implanten en la organización.\n▪Aplica los conocimientos adquiridos a los desafíos que se presentan en el desarrollo del trabajo.\n▪Investiga, indaga y profundiza en los temas de su entorno área de desempeño.\n▪Reconoce las propias limitaciones y las necesidades de mejorar su preparación.\n▪Asimila nueva información y la aplica correctamente."]
["PROFESIONAL","TRABAJO EN EQUIPO","PROFESIONALTRABAJO EN EQUIPO","\nTrabajar con otros de forma integrada y armónica para la consecución de metas institucionales comunes","▪Identifica claramente los objetivos del grupo y orienta su trabajo a la consecución de los mismos.\n▪Colabora con otros para la realización de actividades y metas grupales."]
["ASESOR","TRABAJO EN EQUIPO","ASESORTRABAJO EN EQUIPO","\nTrabajar con otros de forma integrada y armónica para la consecución de metas institucionales comunes","▪Identifica claramente los objetivos del grupo y orienta su trabajo a la consecución de los mismos.\n▪Colabora con otros para la realización de actividades y metas grupales."]
["ASISTENCIAL","TRABAJO EN EQUIPO","ASISTENCIALTRABAJO EN EQUIPO","\nTrabajar con otros de forma integrada y armónica para la consecución de metas institucionales comunes","▪Identifica claramente los objetivos del grupo y orienta su trabajo a la consecución de los mismos.\n▪Colabora con otros para la realización de actividades y metas grupales."]
["DIRECTIVO","TRABAJO EN EQUIPO","DIRECTIVOTRABAJO EN EQUIPO","\nTrabajar con otros de forma integrada y armónica para la consecución de metas institucionales comunes","▪Identifica claramente los objetivos del grupo y orienta su trabajo a la consecución de los mismos.\n▪Colabora con otros para la realización de actividades y metas grupales."]
["TECNICO","ADAPTACIÓN AL CAMBIO","TECNICOADAPTACIÓN AL CAMBIO","Enfrentarse con flexibilidad y versatilidad a situaciones nuevas para aceptar los cambios positiva y constructivamente.","▪Acepta y se adapta fácilmente los cambios.\n▪Responde al cambio con flexibilidad.\n▪Promueve el cambio.                                                                                     *Apoya a la entidad en nuevas decisiones y coopera activamente en la implementación de nuevos objetivos, formas de trabajo y procedimientos"]
["ASESOR","ADAPTACIÓN AL CAMBIO","ASESORADAPTACIÓN AL CAMBIO","Enfrentarse con flexibilidad y versatilidad a situaciones nuevas para aceptar los cambios positiva y constructivamente.","▪Acepta y se adapta fácilmente los cambios.\n▪Responde al cambio con flexibilidad.\n▪Promueve el cambio.                                                                                     *Apoya a la entidad en nuevas decisiones y coopera activamente en la implementación de nuevos objetivos, formas de trabajo y procedimientos"]
["DIRECTIVO","ADAPTACIÓN AL CAMBIO","DIRECTIVOADAPTACIÓN AL CAMBIO","Enfrentarse con flexibilidad y versatilidad a situaciones nuevas para aceptar los cambios positiva y constructivamente.","▪Acepta y se adapta fácilmente los cambios.\n▪Responde al cambio con flexibilidad.\n▪Promueve el cambio.       \n*Apoya a la entidad en nuevas decisiones y coopera activamente en la implementación de nuevos objetivos, formas de trabajo y procedimientos"]
["PROFESIONAL","ADAPTACIÓN AL CAMBIO","PROFESIONALADAPTACIÓN AL CAMBIO","Enfrentarse con flexibilidad y versatilidad a situaciones nuevas para aceptar los cambios positiva y constructivamente.","▪Acepta y se adapta fácilmente los cambios.\n▪Responde al cambio con flexibilidad.\n▪Promueve el cambio.                                                                                          *Apoya a la entidad en nuevas decisiones y coopera activamente en la implementación de nuevos objetivos, formas de trabajo y procedimientos"]
["DIRECTIVO","APRENDIZAJE CONTINUO","DIRECTIVOAPRENDIZAJE CONTINUO","Identificar, incorporar y aplicar nuevos conocimientos sobre regulaciones vigentes, tecnologías disponibles, métodos y programas de trabajo, para mantener actualizada la efectividad de sus prácticas laborales y su visión del contexto","▪Aprende de la experiencia de otros y de la propia.                                                  ▪Se adapta y aplica nuevas tecnologías que se implanten en la organización.\n▪Aplica los conocimientos adquiridos a los desafíos que se presentan en el desarrollo del trabajo.\n▪Investiga, indaga y profundiza en los temas de su entorno área de desempeño.\n▪Reconoce las propias limitaciones y las necesidades de mejorar su preparación.\n▪Asimila nueva información y la aplica correctamente."]
["DIRECTIVO","RESOLUCIÓN DE CONFLICTOS","DIRECTIVORESOLUCIÓN DE CONFLICTOS","Capacidad para identificar situaciones que generen conflicto, prevenirlas o afrontarlas ofreciendo alternativas de solución y evitando las consecuencias negativas","▪Establece estrategias que permitan prevenir los conflictos o detectarlos a tiempo\n▪Evalúa las causas del conflicto de manera objetiva para tomar decisiones\n▪Aporta opiniones, ideas o sugerencias para solucionar los conflictos en el equipo\n▪Asume como propia la solución acordada por el equipo▪Aplica soluciones de conflictos anteriores para situaciones similares"]
["PROFESIONAL","DIRECCIÓN Y DESARROLLO DE PERSONAL (personal a cargo)","PROFESIONALDIRECCIÓN Y DESARROLLO DE PERSONAL (personal a cargo)","Favorecer el aprendizaje y desarrollo de los colaboradores, identificando potencialidades personales y profesionales para facilitar el cumplimiento de objetivos institucionales\n\n ","•·Identifica, ubica y desarrolla el talento humano a su cargo\n•·Orienta la identificación de necesidades de formación y capacitación y apoya la ejecución de las acciones propuestas para satisfacerlas\n•·Hace uso de las habilidades y recursos del talento humano a su cargo, para alcanzar las metas y los estándares de productividad\n•·Establece espacios regulares de retroalimentación y reconocimiento del buen desempeño en pro del mejoramiento continuo de las personas y la organización"]
["DIRECTIVO","PENSAMIENTO SISTÉMICO","DIRECTIVOPENSAMIENTO SISTÉMICO","Comprender y afrontar la realidad y sus conexiones para abordar el funcionamiento integral y articulado de la organización e incidir en los resultados esperados","* Integra varias áreas de conocimiento para interpretar las interacciones del entorno.\n* Comprende y gestiona las interrelaciones entre las causas y los efectos dentro de los diferentes procesos en los que participa.\n* Identifica la dinámica de los sistemas en los que se ve inmerso y sus conexiones para afrontar los retos del entorno.\n* Participa activamente en el equipo considerando su complejidad e interdependencia para impactar en los resultados esperados.\n* Influye positivamente al equipo desde una perspectiva sistémica, generando una dinámica propia que integre diversos enfoques para interpretar el entorno."]
["DIRECTIVO","GESTIÓN DEL DESARROLLO DE LAS PERSONAS","DIRECTIVOGESTIÓN DEL DESARROLLO DE LAS PERSONAS","Forjar un clima laboral en el que los intereses de los equipos y de las personas se armonicen con los objetivos y resultados de la organización, generando oportunidades de aprendizaje y desarrollo, además de incentivos para reforzar el alto rendimiento","· Identifica las competencias de los miembros del equipo, las evalúa y las impulsa activamente para su desarrollo y aplicación a las tareas asignadas.\n· Promueve la formación de equipos con interdependencias positivas y genera espacios de aprendizaje colaborativo, poniendo en común experiencias, hallazgos y problemas.\n· Organiza los entornos de trabajo para fomentar la polivalencia profesional de los miembros del equipo, facilitando la rotación de puestos y de tareas.\n· Asume una función orientadora para promover y afianzar las mejores prácticas y desempeños.\n· Empodera a los miembros del equipo dándoles autonomía y poder de decisión, preservando la equidad interna y generando compromiso en su equipo de trabajo.\n· Se capacita permanentemente y actualiza sus competencias y estrategias directivas."]
["DIRECTIVO","VISIÓN ESTRATÉGICA","DIRECTIVOVISIÓN ESTRATÉGICA","Anticipar oportunidades y riesgos en el mediano y largo plazo para el área a cargo, la organización y su entorno, de modo tal que la estrategia directiva identifique la alternativa más adecuada frente a cada situación presente o eventual, comunicando al equipo la lógica de las decisiones directivas que contribuyan al beneficio de la entidad y del país","· Articula objetivos, recursos y metas de forma tal que los resultados generen valor.\n· Adopta alternativas si el contexto presenta obstrucciones a la ejecución de la planeación anual, involucrando al equipo, aliados y superiores para el logro de los objetivos.\n· Vincula a los actores con incidencia potencial en los resultados del área a su cargo, para articular acciones o anticipar negociaciones necesarias.\n· Monitorea periódicamente los resultados alcanzados e introduce cambios en la planeación para alcanzarlos.\n· Presenta nuevas estrategias ante aliados y superiores para contribuir al logro de los objetivos institucionales.\n· Comunica de manera asertiva, clara y contundente el objetivo o la meta, logrando la motivación y compromiso de los equipos de trabajo."]
["PROFESIONAL","INSTRUMENTACIÓN DE DECISIONES","PROFESIONALINSTRUMENTACIÓN DE DECISIONES","Decidir sobre las cuestiones en las que es responsable con criterios de economía, eficacia, eficiencia y transparencia de la decisión.","· Discrimina con efectividad entre las decisiones que deben ser elevadas a un superior, socializadas al equipo de trabajo o pertenecen a la esfera individual de trabajo.\n· Adopta decisiones sobre ellas con base en información válida y rigurosa.\n· Maneja criterios objetivos para analizar la materia a decidir con las personas involucradas.\n· Asume los efectos de sus decisiones y también de las adoptadas por el equipo de trabajo al que pertenece."]

{"sheet":"F1. COMP.LAB Y COM COMPOR  (2)","index":6,"n_rows":56,"n_cols":22,"rows_kept":56,"cut":false,"hidden":true,"merged":[[0,0,6,3],[0,4,0,14],[0,15,6,18],[1,4,1,14],[2,4,2,14],[3,4,4,14],[5,4,6,6],[5,10,6,11],[10,0,10,18],[11,0,11,1],[11,2,11,4],[11,5,11,7],[11,8,11,10],[11,11,11,14],[11,15,11,18],[7,0,9,2],[7,3,7,9],[7,10,9,11],[7,12,7,18],[8,6,9,6],[8,15,9,15],[13,0,13,3],[13,4,13,7],[13,8,13,10],[13,11,13,18],[14,0,14,3],[14,4,14,7],[14,8,14,10],[14,11,14,18],[12,0,12,1],[12,2,12,4],[12,5,12,7],[12,8,12,10],[12,11,12,14],[12,15,12,18],[18,15,18,18],[19,0,19,1],[19,2,19,4],[19,5,19,7],[19,8,19,10],[19,11,19,14],[19,15,19,18],[15,0,15,4],[15,5,16,6],[15,7,16,18],[16,0,16,4],[17,0,17,18],[18,0,18,1],[18,2,18,4],[18,5,18,7],[18,8,18,10],[18,11,18,14],[22,0,22,18],[23,5,24,6],[23,0,24,3],[20,0,20,3],[20,4,20,7],[20,8,20,16],[20,17,20,18],[21,0,21,3],[21,4,21,7],[21,8,21,16],[21,17,21,18],[23,13,24,18],[23,10,24,12],[23,4,24,4],[31,0,31,6],[31,7,31,15],[32,0,32,6],[32,7,32,15],[33,0,33,6],[33,7,33,15],[25,0,25,18],[26,0,26,18],[27,0,29,6],[27,7,29,15],[27,16,28,18],[30,0,30,6],[30,7,30,15],[38,0,39,0],[38,1,39,3],[38,4,39,10],[38,11,39,18],[40,0,41,0],[40,1,41,3],[40,4,41,10],[40,11,41,18],[34,0,34,6],[34,7,34,15],[35,0,35,15],[36,0,36,18],[37,1,37,3],[37,4,37,10],[37,11,37,18],[42,0,43,0],[42,1,43,3],[42,4,43,10],[42,11,43,18],[44,0,45,0],[44,1,45,3],[44,4,45,10],[44,11,45,18],[46,0,46,18],[48,7,48,9],[48,12,48,14],[48,15,48,16],[48,17,48,18],[49,0,51,5],[49,6,51,11],[49,12,51,18],[47,10,48,11],[47,12,47,14],[47,15,47,16],[47,17,47,18],[48,0,48,3],[48,4,48,6],[47,0,47,3],[47,4,47,6],[47,7,47,9],[54,0,54,16383],[55,0,55,5],[55,6,55,12],[55,13,55,18],[52,0,52,3],[52,4,52,5],[52,6,53,11],[52,12,53,18],[53,0,53,3],[53,4,53,5]]}
[null,null,null,null," EVALUACION DE DESEMPEÑO FUNCIONARIOS PROVISIONALES Y/O DE LIBRE NOMBRAMIENTO Y REMOCIÓN"]
[null,null,null,null,"GESTIÓN ESTRATÉGICA DE TALENTO HUMANO"]
[null,null,null,null,"UNIDAD NACIONAL DE PROTECCIÓN"]
[null,null,null,null,"NOTA: FRENTE A LA EVALUACION DE DESEMPEÑO REALIZADA PARA EL PERSONAL QUE SE ENCUENTRA CON VINCULACION LABORAL DE CARÁCTER PROVISIONAL, NO PROCEDE DERECHOS DE CARRERA ADMINISTRATIVA , EL OBJETIVO ES EVALUAR Y CONTROLAR LA GESTION LABORAL DE LOS FUNCIONARIOS"]
[]
[null,null,null,null,"PERÍODO DE EVALUACIÓN                                                                                 ANUAL",null,null,"DÍA","MES","AÑO","AL",null,"DÍA","MES","AÑO"]
[null,null,null,null,null,null,null,{"$f":"'F1. COMP.LAB Y COM COMPOR'!H7","v":1},{"$f":"'F1. COMP.LAB Y COM COMPOR'!I7","v":2},{"$f":"'F1. COMP.LAB Y COM COMPOR'!J7","v":0},null,null,{"$f":"'F1. COMP.LAB Y COM COMPOR'!M7","v":31},{"$f":"'F1. COMP.LAB Y COM COMPOR'!N7","v":1},{"$f":"'F1. COMP.LAB Y COM COMPOR'!O7","v":1}]
["PERÍODO DE EVALUACIÓN",null,null,"PROCESO: EVALUACIÓN DEL DESEMPEÑO LABORAL (PRIMER SEMESTRE)",null,null,null,null,null,null,null,null,"PROCESO: EVALUACIÓN DEL DESEMPEÑO LABORAL (SEGUNDO SEMESTRE)"]
[null,null,null,"DÍA","MES","AÑO","AL","DÍA","MES","AÑO",null,null,"DÍA","MES","AÑO","AL","DÍA","MES","AÑO"]
[null,null,null,null,null,null,null,null,null,null,null,null,null,null,null,null,null,null,null,null,{"$f":"IFERROR((DAYS360(DATE(F10,E10,D10),DATE(J10,I10,H10))+1),0)","v":0},{"$f":"IFERROR((DAYS360(DATE(O10,N10,M10),DATE(S10,R10,Q10)+1)),0)","v":0}]
["I. IDENTIFICACIÓN DEL EVALUADO"]
["Tipo de Documento",null,"Número de identificación",null,null,"Primer apellido",null,null,"Segundo apellido",null,null,"Primer nombre",null,null,null,"Otros nombres"]
["CEDULA DE CIUDADANIA",null,{"$f":"'F1. COMP.LAB Y COM COMPOR'!C13","v":0},null,null,{"$f":"'F1. COMP.LAB Y COM COMPOR'!F13","v":0},null,null,{"$f":"'F1. COMP.LAB Y COM COMPOR'!I13","v":0},null,null,{"$f":"'F1. COMP.LAB Y COM COMPOR'!L13","v":0},null,null,null,{"$f":"'F1. COMP.LAB Y COM COMPOR'!P13","v":0}]
["Tipo de Vinculación",null,null,null,"Dependencia o área a la que pertenece el evaluado",null,null,null,"Grupo Funcional al que pertenece el evaluado",null,null,"Denominación del empleo"]
[]
["Nivel jerárquico",null,null,null,null,"Propósito del empleo:  "]
[]
["II. IDENTIFICACIÓN EVALUADOR. (Jefe inmediato del evaluado )"]
["Tipo de documento",null,"Número de identificación",null,null,"Primer apellido",null,null,"Segundo apellido",null,null,"Primer nombre",null,null,null,"Otros nombres"]
["CEDULA DE CIUDADANIA"]
[" Área o Dependencia a la que pertenece el evaluador",null,null,null,"Grupo Funcional al que pertenece el evaluador",null,null,null,"Denominación del empleo",null,null,null,null,null,null,null,null,"Nivel jerárquico"]
[]
["IV. PARCIALES EVENTUALES"]
["Ajuste de compromisos",null,null,null,null,"Fecha:",null,"DIA","MES","AÑO","Causales de Calificación Eventual"]
[]
["V. CONCERTACIÓN DE COMPROMISOS LABORALES Y COMPETENCIAS COMPORTAMENTALES."]
["COMPROMISOS LABORALES"]
["Metas del Área o Dependencia a las cuales contribuye el empleo",null,null,null,null,null,null,"Compromisos Laborales.",null,null,null,null,null,null,null,null,"Peso porcentual del compromiso"]
[]
[null,null,null,null,null,null,null,null,null,null,null,null,null,null,null,null,"Semestre 1","Semestre 2","Total anual"]
[null,null,null,null,null,null,null,null,null,null,null,null,null,null,null,null,null,null,{"$f":"IF(COUNTA(Q31,R31)=2,AVERAGE(Q31:R31),IF(COUNTA(Q31,R31)=1,SUM(Q31:R31),\" \"))","v":" "}]
[null,null,null,null,null,null,null,null,null,null,null,null,null,null,null,null,null,null,{"$f":"IF(COUNTA(Q32,R32)=2,AVERAGE(Q32:R32),IF(COUNTA(Q32,R32)=1,SUM(Q32:R32),\" \"))","v":" "}]
[null,null,null,null,null,null,null,null,null,null,null,null,null,null,null,null,null,null,{"$f":"IF(COUNTA(Q33,R33)=2,AVERAGE(Q33:R33),IF(COUNTA(Q33,R33)=1,SUM(Q33:R33),\" \"))","v":" "}]
[null,null,null,null,null,null,null,null,null,null,null,null,null,null,null,null,null,null,{"$f":"IF(COUNTA(Q34,R34)=2,AVERAGE(Q34:R34),IF(COUNTA(Q34,R34)=1,SUM(Q34:R34),\" \"))","v":" "}]
[null,null,null,null,null,null,null,null,null,null,null,null,null,null,null,null,null,null,{"$f":"IF(COUNTA(Q35,R35)=2,AVERAGE(Q35:R35),IF(COUNTA(Q35,R35)=1,SUM(Q35:R35),\" \"))","v":" "}]
[" PESO TOTAL PONDERADO DE LOS COMPROMISOS",null,null,null,null,null,null,null,null,null,null,null,null,null,null,null,{"$f":"IF(COUNT(Q31:Q35)<3,\"MÍNIMO TRES (03) COMPROMISOS\",IF(SUM(Q31:Q35)>1,CONCATENATE(\"ERROR!!: Sumatoria mayor a 100% (\",TEXT(SUM(Q31:Q35),\"0%)\")),IF(SUM(Q31:Q35)<1,CONCATENATE(\"ERROR!!: Sumatoria menor a 100% (\",TEXT(SUM(Q31:Q35),\"0%)\")),SUM(Q31:Q35))))","v":"MÍNIMO TRES (03) COMPROMISOS"},{"$f":"IF(COUNT(R31:R35)<3,\"MÍNIMO TRES (03) COMPROMISOS\",IF(SUM(R31:R35)>1,CONCATENATE(\"ERROR!!: Sumatoria mayor a 100% (\",TEXT(SUM(R31:R35),\"0%)\")),IF(SUM(R31:R35)<1,CONCATENATE(\"ERROR!!: Sumatoria menor a 100% (\",TEXT(SUM(R31:R35),\"0%)\")),SUM(R31:R35))))","v":"MÍNIMO TRES (03) COMPROMISOS"},{"$f":"IF(COUNT(S31:T35)<3,\"MÍNIMO TRES (03) COMPROMISOS\",IF(SUM(S31:T35)>1,CONCATENATE(\"ERROR!!: Sumatoria mayor a 100% (\",TEXT(SUM(S31:T35),\"0%)\")),IF(SUM(S31:T35)<1,CONCATENATE(\"ERROR!!: Sumatoria menor a 100% (\",TEXT(SUM(S31:T35),\"0%)\")),SUM(S31:T35))))","v":"MÍNIMO TRES (03) COMPROMISOS"}]
["VI. FIJACIÓN DE COMPETENCIAS COMPORTAMENTALES"]
["N°","COMPETENCIA",null,null,"DEFINICIÓN ",null,null,null,null,null,null,"CONDUCTAS ASOCIADAS"]
[{"$f":"IF(B39=\"\",\"1.  \",IF(AND(B39<>B41,B39<>B43,B39<>B45)=TRUE,\"1.  \",\"REPETIDA\"))","v":"1.  "},null,null,null,{"$f":"IFERROR(VLOOKUP($A$17&B39,'COMPETENCIAS COMPORTAMENTALES'!$C:$E,2,FALSE),\" \")","v":" "},null,null,null,null,null,null,{"$f":"IFERROR(VLOOKUP($A$17&B39,'COMPETENCIAS COMPORTAMENTALES'!$C:$E,3,FALSE),\" \")","v":" "}]
[]
[{"$f":"IF(B39=\"\",\"2.  \",IF(AND(B39<>B41,B41<>B43,B41<>B45)=TRUE,\"2.  \",\"REPETIDA\"))","v":"2.  "},null,null,null,{"$f":"IFERROR(VLOOKUP($A$17&B41,'COMPETENCIAS COMPORTAMENTALES'!$C:$E,2,FALSE),\" \")","v":" "},null,null,null,null,null,null,{"$f":"IFERROR(VLOOKUP($A$17&B41,'COMPETENCIAS COMPORTAMENTALES'!$C:$E,3,FALSE),\" \")","v":" "}]
[]
[{"$f":"IF(B39=\"\",\"3.  \",IF(AND(B43<>B39,B41<>B43,B43<>B45)=TRUE,\"3.  \",\"REPETIDA\"))","v":"3.  "},null,null,null,{"$f":"IFERROR(VLOOKUP($A$17&B43,'COMPETENCIAS COMPORTAMENTALES'!$C:$E,2,FALSE),\" \")","v":" "},null,null,null,null,null,null,{"$f":"IFERROR(VLOOKUP($A$17&B43,'COMPETENCIAS COMPORTAMENTALES'!$C:$E,3,FALSE),\" \")","v":" "}]
[]
[{"$f":"IF(B39=\"\",\"4.  \",IF(AND(B45<>B41,B45<>B43,B39<>B45)=TRUE,\"4.  \",\"REPETIDA\"))","v":"4.  "},null,null,null,{"$f":"IFERROR(VLOOKUP($A$17&B45,'COMPETENCIAS COMPORTAMENTALES'!$C:$E,2,FALSE),\" \")","v":" "},null,null,null,null,null,null,{"$f":"IFERROR(VLOOKUP($A$17&B45,'COMPETENCIAS COMPORTAMENTALES'!$C:$E,3,FALSE),\" \")","v":" "}]
[]
["VII. FIRMAS, RECLAMACIÓN U OBJECIÓN."]
["FIRMA DEL EVALUADO",null,null,null,"FIRMA DEL JEFE INMEDIATO",null,null,"FIRMA DEL EVALUADOR EN COMISIÓN EVALUADORA",null,null,"Renuencia del Evaluado para firmar la concertación  de compromisos",null,"DATOS DEL TESTIGO",null,null,"FIRMA DEL TESTIGO",null,"FECHA"]
[]
["RECLAMACIÓN U OBJECIÓN EN ÚNICA INSTANCIA ANTE LA COMISIÓN DE PERSONAL (Parágrafo del articulo 3º, del Acuerdo 617 de 2018)",null,null,null,null,null,"DECISIÓN DE LA COMISIÓN DE PERSONAL",null,null,null,null,null,"MOTIVACIÓN DE LA DECISIÓN"]
[]
[]
["Número de Radicado"]
["Fecha Reclamación (dd/mm/aa)"]
["Archívese en: Carpeta historias laborales del funcionario"]
["GTH-FT-186/V1",null,null,null,null,null," Oficialización: 16/02/2021",null,null,null,null,null,null,"Página: 1 de 2 "]

{"sheet":"F2. CALIFIC. COMPOR. (2)","index":7,"n_rows":58,"n_cols":22,"rows_kept":58,"cut":false,"hidden":true,"merged":[[0,0,5,3],[0,4,0,14],[0,15,5,18],[1,4,1,14],[2,4,2,14],[3,4,3,14],[4,4,5,6],[4,10,5,11],[54,11,54,12],[54,13,54,14],[54,15,54,16],[54,17,54,18],[9,0,9,18],[10,0,10,1],[10,2,10,4],[10,5,10,7],[10,8,10,10],[10,11,10,14],[10,15,10,18],[6,0,8,2],[6,3,6,9],[6,10,8,11],[6,12,6,18],[7,6,8,6],[7,15,8,15],[12,0,12,3],[12,4,12,7],[12,8,12,10],[12,11,12,18],[13,0,13,3],[13,4,13,7],[13,8,13,10],[13,11,13,18],[11,0,11,1],[11,2,11,4],[11,5,11,7],[11,8,11,10],[11,11,11,14],[11,15,11,18],[14,0,14,4],[14,5,15,6],[14,7,15,18],[15,0,15,4],[16,0,16,18],[17,0,17,1],[17,2,17,4],[17,5,17,7],[17,8,17,10],[17,11,17,14],[19,0,19,3],[19,4,19,7],[19,8,19,16],[19,17,19,18],[20,0,20,3],[20,4,20,7],[20,8,20,16],[20,17,20,18],[17,15,17,18],[18,0,18,1],[18,2,18,4],[18,5,18,7],[18,8,18,10],[18,11,18,14],[18,15,18,18],[21,0,21,18],[22,0,25,3],[22,4,25,9],[22,10,25,10],[22,11,23,18],[24,11,24,14],[24,15,24,18],[25,13,25,14],[25,17,25,18],[28,0,28,3],[28,4,28,9],[28,13,28,14],[28,17,28,18],[29,0,29,3],[29,4,29,9],[29,13,29,14],[29,17,29,18],[26,0,26,3],[26,4,26,9],[26,13,26,14],[26,17,26,18],[27,0,27,3],[27,4,27,9],[27,13,27,14],[27,17,27,18],[30,0,30,3],[30,4,30,9],[30,13,30,14],[30,17,30,18],[31,0,31,9],[31,11,32,13],[31,14,32,14],[31,15,32,17],[31,18,32,18],[32,0,32,10],[37,0,37,18],[38,0,41,1],[38,2,41,4],[38,5,41,10],[38,11,41,14],[38,15,41,18],[33,0,34,10],[33,11,33,18],[34,11,34,14],[34,15,34,18],[35,0,36,10],[35,11,36,13],[35,14,36,14],[35,15,36,17],[35,18,36,18],[44,0,45,1],[44,2,45,4],[44,5,45,10],[44,11,44,14],[44,15,44,18],[45,11,45,14],[45,15,45,18],[42,0,43,1],[42,2,43,4],[42,5,43,10],[42,11,42,14],[42,15,42,18],[43,11,43,14],[43,15,43,18],[48,0,49,1],[48,2,49,4],[48,5,49,10],[48,11,48,14],[48,15,48,18],[49,11,49,14],[49,15,49,18],[46,0,47,1],[46,2,47,4],[46,5,47,10],[46,11,46,14],[46,15,46,18],[47,11,47,14],[47,15,47,18],[56,0,56,16383],[57,0,57,5],[57,6,57,12],[57,13,57,18],[55,0,55,10],[55,11,55,14],[55,15,55,18],[50,0,53,10],[50,11,51,14],[50,15,51,18],[52,11,53,14],[52,15,53,18],[54,0,54,10]]}
[null,null,null,null," EVALUACION DE DESEMPEÑO FUNCIONARIOS PROVISIONALES Y/O DE LIBRE NOMBRAMIENTO Y REMOCIÓN"]
[null,null,null,null,"GESTIÓN ESTRATÉGICA DE TALENTO HUMANO"]
[null,null,null,null,"UNIDAD NACIONAL DE PROTECCIÓN"]
[null,null,null,null,"NOTA: FRENTE A LA EVALUACION DE DESEMPEÑO REALIZADA PARA EL PERSONAL QUE SE ENCUENTRA CON VINCULACION LABORAL DE CARÁCTER PROVISIONAL, NO PROCEDE DERECHOS DE CARRERA ADMINISTRATIVA , EL OBJETIVO ES EVALUAR Y CONTROLAR LA GESTION LABORAL DE LOS FUNCIONARIOS"]
[null,null,null,null,"PERÍODO DE EVALUACIÓN                                                                                 ANUAL",null,null,"DÍA","MES","AÑO","AL",null,"DÍA","MES","AÑO"]
[null,null,null,null,null,null,null,{"$f":"'F1. COMP.LAB Y COM COMPOR  (2)'!H7","v":1},{"$f":"'F1. COMP.LAB Y COM COMPOR  (2)'!I7","v":2},{"$f":"'F1. COMP.LAB Y COM COMPOR  (2)'!J7","v":0},null,null,{"$f":"'F1. COMP.LAB Y COM COMPOR  (2)'!M7","v":31},{"$f":"'F1. COMP.LAB Y COM COMPOR  (2)'!N7","v":1},{"$f":"'F1. COMP.LAB Y COM COMPOR  (2)'!O7","v":1}]
["PERÍODO DE EVALUACIÓN",null,null,"PROCESO: EVALUACIÓN DEL DESEMPEÑO LABORAL (PRIMER SEMESTRE)",null,null,null,null,null,null,null,null,"PROCESO: EVALUACIÓN DEL DESEMPEÑO LABORAL (SEGUNDO SEMESTRE)"]
[null,null,null,"DÍA","MES","AÑO","AL","DÍA","MES","AÑO",null,null,"DÍA","MES","AÑO","AL","DÍA","MES","AÑO"]
[null,null,null,{"$f":"'F1. COMP.LAB Y COM COMPOR  (2)'!D10","v":0},{"$f":"'F1. COMP.LAB Y COM COMPOR  (2)'!E10","v":0},{"$f":"'F1. COMP.LAB Y COM COMPOR  (2)'!F10","v":0},null,{"$f":"'F1. COMP.LAB Y COM COMPOR  (2)'!H10","v":0},{"$f":"'F1. COMP.LAB Y COM COMPOR  (2)'!I10","v":0},{"$f":"'F1. COMP.LAB Y COM COMPOR  (2)'!J10","v":0},null,null,{"$f":"'F1. COMP.LAB Y COM COMPOR  (2)'!M10","v":0},{"$f":"'F1. COMP.LAB Y COM COMPOR  (2)'!N10","v":0},{"$f":"'F1. COMP.LAB Y COM COMPOR  (2)'!O10","v":0},null,{"$f":"'F1. COMP.LAB Y COM COMPOR  (2)'!Q10","v":0},{"$f":"'F1. COMP.LAB Y COM COMPOR  (2)'!R10","v":0},{"$f":"'F1. COMP.LAB Y COM COMPOR  (2)'!S10","v":0}]
["I. IDENTIFICACIÓN DEL EVALUADO",null,null,null,null,null,null,null,null,null,null,null,null,null,null,null,null,null,null,null,{"$f":"IFERROR((DATE(J10,I10,H10)-DATE(F10,E10,D10))+1,0)","v":0},{"$f":"IFERROR((DATE(S10,R10,Q10)-DATE(O10,N10,M10))+1,0)","v":0}]
["Tipo de Documento",null,"Número de identificación",null,null,"Primer apellido",null,null,"Segundo apellido",null,null,"Primer nombre",null,null,null,"Otros nombres"]
["CEDULA DE CIUDADANIA",null,{"$f":"'F1. COMP.LAB Y COM COMPOR  (2)'!C13","v":0},null,null,{"$f":"'F1. COMP.LAB Y COM COMPOR  (2)'!F13","v":0},null,null,{"$f":"'F1. COMP.LAB Y COM COMPOR  (2)'!I13","v":0},null,null,{"$f":"'F1. COMP.LAB Y COM COMPOR  (2)'!L13","v":0},null,null,null,{"$f":"'F1. COMP.LAB Y COM COMPOR  (2)'!P13","v":0}]
["TIPO DE VINCULACION",null,null,null,"Dependencia o área a la que pertenece el evaluado",null,null,null,"Grupo Funcional al que pertenece el evaluado",null,null,"Denominación del empleo"]
[{"$f":"'F1. COMP.LAB Y COM COMPOR  (2)'!A15","v":0},null,null,null,{"$f":"'F1. COMP.LAB Y COM COMPOR  (2)'!E15","v":0},null,null,null,{"$f":"'F1. COMP.LAB Y COM COMPOR  (2)'!I15","v":0},null,null,{"$f":"'F1. COMP.LAB Y COM COMPOR  (2)'!L15","v":0}]
["Nivel jerárquico",null,null,null,null,"Propósito del empleo:  ",null,{"$f":"'F1. COMP.LAB Y COM COMPOR  (2)'!H16","v":0}]
[{"$f":"'F1. COMP.LAB Y COM COMPOR  (2)'!A17","v":0}]
["II. IDENTIFICACIÓN EVALUADOR. (Jefe inmediato del evaluado )"]
["Tipo de documento",null,"Número de identificación",null,null,"Primer apellido",null,null,"Segundo apellido",null,null,"Primer nombre",null,null,null,"Otros nombres"]
["CEDULA DE CIUDADANIA",null,{"$f":"'F1. COMP.LAB Y COM COMPOR  (2)'!C20","v":0},null,null,{"$f":"'F1. COMP.LAB Y COM COMPOR  (2)'!F20","v":0},null,null,{"$f":"'F1. COMP.LAB Y COM COMPOR  (2)'!I20","v":0},null,null,{"$f":"'F1. COMP.LAB Y COM COMPOR  (2)'!L20","v":0},null,null,null,{"$f":"'F1. COMP.LAB Y COM COMPOR  (2)'!P20:S20","v":0}]
[" Área o Dependencia a la que pertenece el evaluador",null,null,null,"Grupo Funcional al que pertenece el evaluador",null,null,null,"Denominación del empleo",null,null,null,null,null,null,null,null,"Nivel jerárquico"]
[{"$f":"'F1. COMP.LAB Y COM COMPOR  (2)'!A22","v":0},null,null,null,{"$f":"'F1. COMP.LAB Y COM COMPOR  (2)'!E22","v":0},null,null,null,{"$f":"'F1. COMP.LAB Y COM COMPOR  (2)'!I22","v":0},null,null,null,null,null,null,null,null,{"$f":"'F1. COMP.LAB Y COM COMPOR  (2)'!R22","v":0}]
["III. COMPROMISOS LABORALES"]
["Metas de la Dependencia a las cuales contribuye el empleo",null,null,null,"Compromisos Laborales.",null,null,null,null,null,"Peso porcentual del compromiso en el año","Porcentaje de Cumplimiento. "]
[]
[null,null,null,null,null,null,null,null,null,null,null,"PRIMERA PARCIAL SEMESTRAL",null,null,null,"SEGUNDA PARCIAL SEMESTRAL"]
[null,null,null,null,null,null,null,null,null,null,null,"porcentaje de cumplimiento de objetivo logrado","CALIFICACIÓN DEL COMPROMISO","UBICACIÓN PORTAFOLIO DE EVIDENCIAS",null,"porcentaje de cumplimiento de objetivo logrado","CALIFICACIÓN DEL COMPROMISO","UBICACIÓN PORTAFOLIO DE EVIDENCIAS"]
[{"$f":"'F1. COMP.LAB Y COM COMPOR  (2)'!A31","v":0},null,null,null,{"$f":"'F1. COMP.LAB Y COM COMPOR  (2)'!H31","v":0},null,null,null,null,null,{"$f":"'F1. COMP.LAB Y COM COMPOR  (2)'!S31","v":" "},{"$f":"IFERROR(M27*K27/100,\" \")","v":" "},null,null,null,{"$f":"IFERROR(K27*Q27/100,\" \")","v":" "}]
[{"$f":"'F1. COMP.LAB Y COM COMPOR  (2)'!A32","v":0},null,null,null,{"$f":"'F1. COMP.LAB Y COM COMPOR  (2)'!H32","v":0},null,null,null,null,null,{"$f":"'F1. COMP.LAB Y COM COMPOR  (2)'!S32","v":" "},{"$f":"IFERROR(M28*K28/100,\" \")","v":" "},null,null,null,{"$f":"IFERROR(K28*Q28/100,\" \")","v":" "}]
[{"$f":"'F1. COMP.LAB Y COM COMPOR  (2)'!A33","v":0},null,null,null,{"$f":"'F1. COMP.LAB Y COM COMPOR  (2)'!H33","v":0},null,null,null,null,null,{"$f":"'F1. COMP.LAB Y COM COMPOR  (2)'!S33","v":" "},{"$f":"IFERROR(M29*K29/100,\" \")","v":" "},null,null,null,{"$f":"IFERROR(K29*Q29/100,\" \")","v":" "}]
[{"$f":"'F1. COMP.LAB Y COM COMPOR  (2)'!A34","v":0},null,null,null,{"$f":"'F1. COMP.LAB Y COM COMPOR  (2)'!H34","v":0},null,null,null,null,null,{"$f":"'F1. COMP.LAB Y COM COMPOR  (2)'!S34","v":" "},{"$f":"IFERROR(M30*K30/100,\" \")","v":" "},null,null,null,{"$f":"IFERROR(K30*Q30/100,\" \")","v":" "}]
[{"$f":"'F1. COMP.LAB Y COM COMPOR  (2)'!A35","v":0},null,null,null,{"$f":"'F1. COMP.LAB Y COM COMPOR  (2)'!H35","v":0},null,null,null,null,null,{"$f":"'F1. COMP.LAB Y COM COMPOR  (2)'!S35","v":" "},{"$f":"IFERROR(M31*K31/100,\" \")","v":" "},null,null,null,{"$f":"IFERROR(K31*Q31/100,\" \")","v":" "}]
[" TOTALES",null,null,null,null,null,null,null,null,null,{"$f":"SUM(K27:K31)","v":0},"Resultado total ",null,null,{"$f":"IFERROR(AVERAGE(M27:M31),0)","v":0},"Resultado total ",null,null,{"$f":"IFERROR(AVERAGE(Q27:Q31),0)","v":0}]
["TOTAL SEMESTRAL"]
["Calificaciones parciales semestrales compromisos laborales ",null,null,null,null,null,null,null,null,null,null,"Calificación total"]
[null,null,null,null,null,null,null,null,null,null,null,"Calificacion primer parcial",null,null,null,"Calificacion Segundo parcial"]
["CALIFICACIÒN TOTAL DE LOS COMPROMISOS LABORALES",null,null,null,null,null,null,null,null,null,null,"Peso porcentual del 85%",null,null,{"$f":"AVERAGE(O32*85%)","v":0},"Peso porcentual del 85%",null,null,{"$f":"AVERAGE(S32*85%)","v":0}]
[]
["IV. CALIFICACIÓN COMPETENCIAS COMPORTAMENTALES DEL EMPLEADO PÚBLICO."]
["COMPETENCIA",null,"DEFINICIÓN ",null,null,"CONDUCTAS ASOCIADAS",null,null,null,null,null," PRIMERA PARCIAL SEMESTRAL",null,null,null,"SEGUNDA PARCIAL SEMESTRAL"]
[]
[]
[]
[{"$f":"'F1. COMP.LAB Y COM COMPOR  (2)'!B39","v":0},null,{"$f":"'F1. COMP.LAB Y COM COMPOR  (2)'!E39","v":" "},null,null,{"$f":"'F1. COMP.LAB Y COM COMPOR  (2)'!L39","v":" "},null,null,null,null,null,{"$f":"IFERROR(VLOOKUP(L44,'CALIFICACION TOTAL'!$A$1:$B$12,2,FALSE),\" \")","v":" "},null,null,null,{"$f":"IFERROR(VLOOKUP(P44,'CALIFICACION TOTAL'!$A$1:$B$12,2,FALSE),\" \")","v":" "}]
[]
[{"$f":"'F1. COMP.LAB Y COM COMPOR  (2)'!B41","v":0},null,{"$f":"'F1. COMP.LAB Y COM COMPOR  (2)'!E41","v":" "},null,null,{"$f":"'F1. COMP.LAB Y COM COMPOR  (2)'!L41","v":" "},null,null,null,null,null,{"$f":"IFERROR(VLOOKUP(L46,'CALIFICACION TOTAL'!$A$1:$B$12,2,FALSE),\" \")","v":" "},null,null,null,{"$f":"IFERROR(VLOOKUP(P46,'CALIFICACION TOTAL'!$A$1:$B$12,2,FALSE),\" \")","v":" "}]
[]
[{"$f":"'F1. COMP.LAB Y COM COMPOR  (2)'!B43","v":0},null,{"$f":"'F1. COMP.LAB Y COM COMPOR  (2)'!E43","v":" "},null,null,{"$f":"'F1. COMP.LAB Y COM COMPOR  (2)'!L43","v":" "},null,null,null,null,null,{"$f":"IFERROR(VLOOKUP(L48,'CALIFICACION TOTAL'!$A$1:$B$12,2,FALSE),\" \")","v":" "},null,null,null,{"$f":"IFERROR(VLOOKUP(P48,'CALIFICACION TOTAL'!$A$1:$B$12,2,FALSE),\" \")","v":" "}]
[]
[{"$f":"'F1. COMP.LAB Y COM COMPOR  (2)'!B45","v":0},null,{"$f":"'F1. COMP.LAB Y COM COMPOR  (2)'!E45","v":" "},null,null,{"$f":"'F1. COMP.LAB Y COM COMPOR  (2)'!L45","v":" "},null,null,null,null,null,{"$f":"IFERROR(VLOOKUP(L50,'CALIFICACION TOTAL'!$A$1:$B$12,2,FALSE),\" \")","v":" "},null,null,null,{"$f":"IFERROR(VLOOKUP(P50,'CALIFICACION TOTAL'!$A$1:$B$12,2,FALSE),\" \")","v":" "}]
[]
["CALIFICACIÓN EVALUACIÓN  DE LAS COMPETENCIAS COMPORTAMENTALES.",null,null,null,null,null,null,null,null,null,null,"CALIFICACIÓN PRIMERA PARCIAL SEMESTRAL (15%)",null,null,null,"CALIFICACIÓN SEGUNDA PARCIAL SEMESTRAL (15%)"]
[]
[null,null,null,null,null,null,null,null,null,null,null,{"$f":"((SUM(L44,L46,L48,L50)*100)/60)*0.15","v":0},null,null,null,{"$f":"((SUM(P44,P46,P48,P50)*100)/60)*0.15","v":0}]
[]
["TOTAL DIAS LABORADOS",null,null,null,null,null,null,null,null,null,null,{"$f":"IFERROR((DAYS360(DATE(F9,E9,D9),DATE(J9,I9,H9))+1),0)","v":0},null,{"$f":"IFERROR(L55/(L55+'F2. CALIFIC. COMPOR.'!L55+'F2. CALIFIC. COMPOR. (3)'!L55+'F2. CALIFIC. COMPOR. (4)'!L55+'F2. CALIFIC. COMPOR. (5)'!L55+'F2. CALIFIC. COMPOR. (6)'!L55),0)","v":0},null,{"$f":"IFERROR((DAYS360(DATE(O9,N9,M9),DATE(S9,R9,Q9))+1),0)","v":0},null,{"$f":"IFERROR(P55/(P55+'F2. CALIFIC. COMPOR.'!P55+'F2. CALIFIC. COMPOR. (3)'!P55+'F2. CALIFIC. COMPOR. (4)'!P55+'F2. CALIFIC. COMPOR. (5)'!P55+'F2. CALIFIC. COMPOR. (6)'!P55),0)","v":0}]
["CALIFICACION DEFINITIVA COMPROMISOS FUNCIONALES Y COMPORTAMENTALES",null,null,null,null,null,null,null,null,null,null,{"$f":"AVERAGE(O36+L53)","v":0},null,null,null,{"$f":"IFERROR(S36+P53,0)","v":0}]
["Archívese en: Carpeta historias laborales del funcionario"]
["GTH-FT-186/V1",null,null,null,null,null," Oficialización: 16/02/2021",null,null,null,null,null,null,"Página: 1 de 2 "]

{"sheet":"F1. COMP.LAB Y COM COMPOR  (3)","index":8,"n_rows":56,"n_cols":22,"rows_kept":56,"cut":false,"hidden":true,"merged":[[0,0,6,3],[0,4,0,14],[0,15,6,18],[1,4,1,14],[2,4,2,14],[3,4,4,14],[5,4,6,6],[5,10,6,11],[10,0,10,18],[11,0,11,1],[11,2,11,4],[11,5,11,7],[11,8,11,10],[11,11,11,14],[11,15,11,18],[7,0,9,2],[7,3,7,9],[7,10,9,11],[7,12,7,18],[8,6,9,6],[8,15,9,15],[13,0,13,3],[13,4,13,7],[13,8,13,10],[13,11,13,18],[14,0,14,3],[14,4,14,7],[14,8,14,10],[14,11,14,18],[12,0,12,1],[12,2,12,4],[12,5,12,7],[12,8,12,10],[12,11,12,14],[12,15,12,18],[15,0,15,4],[15,5,16,6],[15,7,16,18],[16,0,16,4],[17,0,17,18],[18,0,18,1],[18,2,18,4],[18,5,18,7],[18,8,18,10],[18,11,18,14],[20,0,20,3],[20,4,20,7],[20,8,20,16],[20,17,20,18],[21,0,21,3],[21,4,21,7],[21,8,21,16],[21,17,21,18],[18,15,18,18],[19,0,19,1],[19,2,19,4],[19,5,19,7],[19,8,19,10],[19,11,19,14],[19,15,19,18],[25,0,25,18],[26,0,26,18],[27,0,29,6],[27,7,29,15],[27,16,28,18],[30,0,30,6],[30,7,30,15],[22,0,22,18],[23,0,24,3],[23,4,24,4],[23,5,24,6],[23,10,24,12],[23,13,24,18],[34,0,34,6],[34,7,34,15],[35,0,35,15],[36,0,36,18],[37,1,37,3],[37,4,37,10],[37,11,37,18],[31,0,31,6],[31,7,31,15],[32,0,32,6],[32,7,32,15],[33,0,33,6],[33,7,33,15],[42,0,43,0],[42,1,43,3],[42,4,43,10],[42,11,43,18],[44,0,45,0],[44,1,45,3],[44,4,45,10],[44,11,45,18],[38,0,39,0],[38,1,39,3],[38,4,39,10],[38,11,39,18],[40,0,41,0],[40,1,41,3],[40,4,41,10],[40,11,41,18],[48,7,48,9],[48,12,48,14],[48,15,48,16],[48,17,48,18],[49,0,51,5],[49,6,51,11],[49,12,51,18],[46,0,46,18],[47,0,47,3],[47,4,47,6],[47,7,47,9],[47,10,48,11],[47,12,47,14],[47,15,47,16],[47,17,47,18],[48,0,48,3],[48,4,48,6],[54,0,54,16383],[55,0,55,5],[55,6,55,12],[55,13,55,18],[52,0,52,3],[52,4,52,5],[52,6,53,11],[52,12,53,18],[53,0,53,3],[53,4,53,5]]}
[null,null,null,null," EVALUACION DE DESEMPEÑO FUNCIONARIOS PROVISIONALES Y/O DE LIBRE NOMBRAMIENTO Y REMOCIÓN"]
[null,null,null,null,"GESTIÓN ESTRATÉGICA DE TALENTO HUMANO"]
[null,null,null,null,"UNIDAD NACIONAL DE PROTECCIÓN"]
[null,null,null,null,"NOTA: FRENTE A LA EVALUACION DE DESEMPEÑO REALIZADA PARA EL PERSONAL QUE SE ENCUENTRA CON VINCULACION LABORAL DE CARÁCTER PROVISIONAL, NO PROCEDE DERECHOS DE CARRERA ADMINISTRATIVA , EL OBJETIVO ES EVALUAR Y CONTROLAR LA GESTION LABORAL DE LOS FUNCIONARIOS"]
[]
[null,null,null,null,"PERÍODO DE EVALUACIÓN                                                                                 ANUAL",null,null,"DÍA","MES","AÑO","AL",null,"DÍA","MES","AÑO"]
[null,null,null,null,null,null,null,{"$f":"'F1. COMP.LAB Y COM COMPOR  (2)'!H7","v":1},{"$f":"'F1. COMP.LAB Y COM COMPOR  (2)'!I7","v":2},{"$f":"'F1. COMP.LAB Y COM COMPOR  (2)'!J7","v":0},null,null,{"$f":"'F1. COMP.LAB Y COM COMPOR  (2)'!M7","v":31},{"$f":"'F1. COMP.LAB Y COM COMPOR  (2)'!N7","v":1},{"$f":"'F1. COMP.LAB Y COM COMPOR  (2)'!O7","v":1}]
["PERÍODO DE EVALUACIÓN",null,null,"PROCESO: EVALUACIÓN DEL DESEMPEÑO LABORAL (PRIMER SEMESTRE)",null,null,null,null,null,null,null,null,"PROCESO: EVALUACIÓN DEL DESEMPEÑO LABORAL (SEGUNDO SEMESTRE)"]
[null,null,null,"DÍA","MES","AÑO","AL","DÍA","MES","AÑO",null,null,"DÍA","MES","AÑO","AL","DÍA","MES","AÑO"]
[null,null,null,null,null,null,null,null,null,null,null,null,null,null,null,null,null,null,null,null,{"$f":"IFERROR((DAYS360(DATE(F10,E10,D10),DATE(J10,I10,H10))+1),0)","v":0},{"$f":"IFERROR((DAYS360(DATE(O10,N10,M10),DATE(S10,R10,Q10)+1)),0)","v":0}]
["I. IDENTIFICACIÓN DEL EVALUADO"]
["Tipo de Documento",null,"Número de identificación",null,null,"Primer apellido",null,null,"Segundo apellido",null,null,"Primer nombre",null,null,null,"Otros nombres"]
["CEDULA DE CIUDADANIA",null,{"$f":"'F1. COMP.LAB Y COM COMPOR'!C13","v":0},null,null,{"$f":"'F1. COMP.LAB Y COM COMPOR'!F13","v":0},null,null,{"$f":"'F1. COMP.LAB Y COM COMPOR'!I13","v":0},null,null,{"$f":"'F1. COMP.LAB Y COM COMPOR'!L13","v":0},null,null,null,{"$f":"'F1. COMP.LAB Y COM COMPOR'!P13","v":0}]
["Tipo de Vinculación",null,null,null,"Dependencia o área a la que pertenece el evaluado",null,null,null,"Grupo Funcional al que pertenece el evaluado",null,null,"Denominación del empleo"]
[]
["Nivel jerárquico",null,null,null,null,"Propósito del empleo:  "]
[]
["II. IDENTIFICACIÓN EVALUADOR. (Jefe inmediato del evaluado )"]
["Tipo de documento",null,"Número de identificación",null,null,"Primer apellido",null,null,"Segundo apellido",null,null,"Primer nombre",null,null,null,"Otros nombres"]
["CEDULA DE CIUDADANIA"]
[" Área o Dependencia a la que pertenece el evaluador",null,null,null,"Grupo Funcional al que pertenece el evaluador",null,null,null,"Denominación del empleo",null,null,null,null,null,null,null,null,"Nivel jerárquico"]
[]
["IV. PARCIALES EVENTUALES"]
["Ajuste de compromisos",null,null,null,null,"Fecha:",null,"DIA","MES","AÑO","Causales de Calificación Eventual"]
[]
["V. CONCERTACIÓN DE COMPROMISOS LABORALES Y COMPETENCIAS COMPORTAMENTALES."]
["COMPROMISOS LABORALES"]
["Metas del Área o Dependencia a las cuales contribuye el empleo",null,null,null,null,null,null,"Compromisos Laborales.",null,null,null,null,null,null,null,null,"Peso porcentual del compromiso"]
[]
[null,null,null,null,null,null,null,null,null,null,null,null,null,null,null,null,"Semestre 1","Semestre 2","Total anual"]
[null,null,null,null,null,null,null,null,null,null,null,null,null,null,null,null,null,null,{"$f":"IF(COUNTA(Q31,R31)=2,AVERAGE(Q31:R31),IF(COUNTA(Q31,R31)=1,SUM(Q31:R31),\" \"))","v":" "}]
[null,null,null,null,null,null,null,null,null,null,null,null,null,null,null,null,null,null,{"$f":"IF(COUNTA(Q32,R32)=2,AVERAGE(Q32:R32),IF(COUNTA(Q32,R32)=1,SUM(Q32:R32),\" \"))","v":" "}]
[null,null,null,null,null,null,null,null,null,null,null,null,null,null,null,null,null,null,{"$f":"IF(COUNTA(Q33,R33)=2,AVERAGE(Q33:R33),IF(COUNTA(Q33,R33)=1,SUM(Q33:R33),\" \"))","v":" "}]
[null,null,null,null,null,null,null,null,null,null,null,null,null,null,null,null,null,null,{"$f":"IF(COUNTA(Q34,R34)=2,AVERAGE(Q34:R34),IF(COUNTA(Q34,R34)=1,SUM(Q34:R34),\" \"))","v":" "}]
[null,null,null,null,null,null,null,null,null,null,null,null,null,null,null,null,null,null,{"$f":"IF(COUNTA(Q35,R35)=2,AVERAGE(Q35:R35),IF(COUNTA(Q35,R35)=1,SUM(Q35:R35),\" \"))","v":" "}]
[" PESO TOTAL PONDERADO DE LOS COMPROMISOS",null,null,null,null,null,null,null,null,null,null,null,null,null,null,null,{"$f":"IF(COUNT(Q31:Q35)<3,\"MÍNIMO TRES (03) COMPROMISOS\",IF(SUM(Q31:Q35)>1,CONCATENATE(\"ERROR!!: Sumatoria mayor a 100% (\",TEXT(SUM(Q31:Q35),\"0%)\")),IF(SUM(Q31:Q35)<1,CONCATENATE(\"ERROR!!: Sumatoria menor a 100% (\",TEXT(SUM(Q31:Q35),\"0%)\")),SUM(Q31:Q35))))","v":"MÍNIMO TRES (03) COMPROMISOS"},{"$f":"IF(COUNT(R31:R35)<3,\"MÍNIMO TRES (03) COMPROMISOS\",IF(SUM(R31:R35)>1,CONCATENATE(\"ERROR!!: Sumatoria mayor a 100% (\",TEXT(SUM(R31:R35),\"0%)\")),IF(SUM(R31:R35)<1,CONCATENATE(\"ERROR!!: Sumatoria menor a 100% (\",TEXT(SUM(R31:R35),\"0%)\")),SUM(R31:R35))))","v":"MÍNIMO TRES (03) COMPROMISOS"},{"$f":"IF(COUNT(S31:T35)<3,\"MÍNIMO TRES (03) COMPROMISOS\",IF(SUM(S31:T35)>1,CONCATENATE(\"ERROR!!: Sumatoria mayor a 100% (\",TEXT(SUM(S31:T35),\"0%)\")),IF(SUM(S31:T35)<1,CONCATENATE(\"ERROR!!: Sumatoria menor a 100% (\",TEXT(SUM(S31:T35),\"0%)\")),SUM(S31:T35))))","v":"MÍNIMO TRES (03) COMPROMISOS"}]
["VI. FIJACIÓN DE COMPETENCIAS COMPORTAMENTALES"]
["N°","COMPETENCIA",null,null,"DEFINICIÓN ",null,null,null,null,null,null,"CONDUCTAS ASOCIADAS"]
[{"$f":"IF(B39=\"\",\"1.  \",IF(AND(B39<>B41,B39<>B43,B39<>B45)=TRUE,\"1.  \",\"REPETIDA\"))","v":"1.  "},null,null,null,{"$f":"IFERROR(VLOOKUP($A$17&B39,'COMPETENCIAS COMPORTAMENTALES'!$C:$E,2,FALSE),\" \")","v":" "},null,null,null,null,null,null,{"$f":"IFERROR(VLOOKUP($A$17&B39,'COMPETENCIAS COMPORTAMENTALES'!$C:$E,3,FALSE),\" \")","v":" "}]
[]
[{"$f":"IF(B39=\"\",\"2.  \",IF(AND(B39<>B41,B41<>B43,B41<>B45)=TRUE,\"2.  \",\"REPETIDA\"))","v":"2.  "},null,null,null,{"$f":"IFERROR(VLOOKUP($A$17&B41,'COMPETENCIAS COMPORTAMENTALES'!$C:$E,2,FALSE),\" \")","v":" "},null,null,null,null,null,null,{"$f":"IFERROR(VLOOKUP($A$17&B41,'COMPETENCIAS COMPORTAMENTALES'!$C:$E,3,FALSE),\" \")","v":" "}]
[]
[{"$f":"IF(B39=\"\",\"3.  \",IF(AND(B43<>B39,B41<>B43,B43<>B45)=TRUE,\"3.  \",\"REPETIDA\"))","v":"3.  "},null,null,null,{"$f":"IFERROR(VLOOKUP($A$17&B43,'COMPETENCIAS COMPORTAMENTALES'!$C:$E,2,FALSE),\" \")","v":" "},null,null,null,null,null,null,{"$f":"IFERROR(VLOOKUP($A$17&B43,'COMPETENCIAS COMPORTAMENTALES'!$C:$E,3,FALSE),\" \")","v":" "}]
[]
[{"$f":"IF(B39=\"\",\"4.  \",IF(AND(B45<>B41,B45<>B43,B39<>B45)=TRUE,\"4.  \",\"REPETIDA\"))","v":"4.  "},null,null,null,{"$f":"IFERROR(VLOOKUP($A$17&B45,'COMPETENCIAS COMPORTAMENTALES'!$C:$E,2,FALSE),\" \")","v":" "},null,null,null,null,null,null,{"$f":"IFERROR(VLOOKUP($A$17&B45,'COMPETENCIAS COMPORTAMENTALES'!$C:$E,3,FALSE),\" \")","v":" "}]
[]
["VII. FIRMAS, RECLAMACIÓN U OBJECIÓN."]
["FIRMA DEL EVALUADO",null,null,null,"FIRMA DEL JEFE INMEDIATO",null,null,"FIRMA DEL EVALUADOR EN COMISIÓN EVALUADORA",null,null,"Renuencia del Evaluado para firmar la concertación  de compromisos",null,"DATOS DEL TESTIGO",null,null,"FIRMA DEL TESTIGO",null,"FECHA"]
[]
["RECLAMACIÓN U OBJECIÓN EN ÚNICA INSTANCIA ANTE LA COMISIÓN DE PERSONAL (Parágrafo del articulo 3º, del Acuerdo 617 de 2018)",null,null,null,null,null,"DECISIÓN DE LA COMISIÓN DE PERSONAL",null,null,null,null,null,"MOTIVACIÓN DE LA DECISIÓN"]
[]
[]
["Número de Radicado"]
["Fecha Reclamación (dd/mm/aa)"]
["Archívese en: Carpeta historias laborales del funcionario"]
["GTH-FT-186/V1",null,null,null,null,null," Oficialización: 16/02/2021",null,null,null,null,null,null,"Página: 1 de 2 "]

{"sheet":"F2. CALIFIC. COMPOR. (3)","index":9,"n_rows":58,"n_cols":22,"rows_kept":58,"cut":false,"hidden":true,"merged":[[0,0,5,3],[0,4,0,14],[0,15,5,18],[1,4,1,14],[2,4,2,14],[3,4,3,14],[4,4,5,6],[4,10,5,11],[54,11,54,12],[54,13,54,14],[54,15,54,16],[54,17,54,18],[9,0,9,18],[10,0,10,1],[10,2,10,4],[10,5,10,7],[10,8,10,10],[10,11,10,14],[10,15,10,18],[6,0,8,2],[6,3,6,9],[6,10,8,11],[6,12,6,18],[7,6,8,6],[7,15,8,15],[12,0,12,3],[12,4,12,7],[12,8,12,10],[12,11,12,18],[13,0,13,3],[13,4,13,7],[13,8,13,10],[13,11,13,18],[11,0,11,1],[11,2,11,4],[11,5,11,7],[11,8,11,10],[11,11,11,14],[11,15,11,18],[14,0,14,4],[14,5,15,6],[14,7,15,18],[15,0,15,4],[16,0,16,18],[17,0,17,1],[17,2,17,4],[17,5,17,7],[17,8,17,10],[17,11,17,14],[19,0,19,3],[19,4,19,7],[19,8,19,16],[19,17,19,18],[20,0,20,3],[20,4,20,7],[20,8,20,16],[20,17,20,18],[17,15,17,18],[18,0,18,1],[18,2,18,4],[18,5,18,7],[18,8,18,10],[18,11,18,14],[18,15,18,18],[21,0,21,18],[22,0,25,3],[22,4,25,9],[22,10,25,10],[22,11,23,18],[24,11,24,14],[24,15,24,18],[25,13,25,14],[25,17,25,18],[28,0,28,3],[28,4,28,9],[28,13,28,14],[28,17,28,18],[29,0,29,3],[29,4,29,9],[29,13,29,14],[29,17,29,18],[26,0,26,3],[26,4,26,9],[26,13,26,14],[26,17,26,18],[27,0,27,3],[27,4,27,9],[27,13,27,14],[27,17,27,18],[30,0,30,3],[30,4,30,9],[30,13,30,14],[30,17,30,18],[31,0,31,9],[31,11,32,13],[31,14,32,14],[31,15,32,17],[31,18,32,18],[32,0,32,10],[37,0,37,18],[38,0,41,1],[38,2,41,4],[38,5,41,10],[38,11,41,14],[38,15,41,18],[33,0,34,10],[33,11,33,18],[34,11,34,14],[34,15,34,18],[35,0,36,10],[35,11,36,13],[35,14,36,14],[35,15,36,17],[35,18,36,18],[44,0,45,1],[44,2,45,4],[44,5,45,10],[44,11,44,14],[44,15,44,18],[45,11,45,14],[45,15,45,18],[42,0,43,1],[42,2,43,4],[42,5,43,10],[42,11,42,14],[42,15,42,18],[43,11,43,14],[43,15,43,18],[48,0,49,1],[48,2,49,4],[48,5,49,10],[48,11,48,14],[48,15,48,18],[49,11,49,14],[49,15,49,18],[46,0,47,1],[46,2,47,4],[46,5,47,10],[46,11,46,14],[46,15,46,18],[47,11,47,14],[47,15,47,18],[56,0,56,16383],[57,0,57,5],[57,6,57,12],[57,13,57,18],[55,0,55,10],[55,11,55,14],[55,15,55,18],[50,0,53,10],[50,11,51,14],[50,15,51,18],[52,11,53,14],[52,15,53,18],[54,0,54,10]]}
[null,null,null,null," EVALUACION DE DESEMPEÑO FUNCIONARIOS PROVISIONALES Y/O DE LIBRE NOMBRAMIENTO Y REMOCIÓN"]
[null,null,null,null,"GESTIÓN ESTRATÉGICA DE TALENTO HUMANO"]
[null,null,null,null,"UNIDAD NACIONAL DE PROTECCIÓN"]
[null,null,null,null,"NOTA: FRENTE A LA EVALUACION DE DESEMPEÑO REALIZADA PARA EL PERSONAL QUE SE ENCUENTRA CON VINCULACION LABORAL DE CARÁCTER PROVISIONAL, NO PROCEDE DERECHOS DE CARRERA ADMINISTRATIVA , EL OBJETIVO ES EVALUAR Y CONTROLAR LA GESTION LABORAL DE LOS FUNCIONARIOS"]
[null,null,null,null,"PERÍODO DE EVALUACIÓN                                                                                 ANUAL",null,null,"DÍA","MES","AÑO","AL",null,"DÍA","MES","AÑO"]
[null,null,null,null,null,null,null,{"$f":"'F1. COMP.LAB Y COM COMPOR  (3)'!H7","v":1},{"$f":"'F1. COMP.LAB Y COM COMPOR  (3)'!I7","v":2},{"$f":"'F1. COMP.LAB Y COM COMPOR  (3)'!J7","v":0},null,null,{"$f":"'F1. COMP.LAB Y COM COMPOR  (3)'!M7","v":31},{"$f":"'F1. COMP.LAB Y COM COMPOR  (3)'!N7","v":1},{"$f":"'F1. COMP.LAB Y COM COMPOR  (3)'!O7","v":1}]
["PERÍODO DE EVALUACIÓN",null,null,"PROCESO: EVALUACIÓN DEL DESEMPEÑO LABORAL (PRIMER SEMESTRE)",null,null,null,null,null,null,null,null,"PROCESO: EVALUACIÓN DEL DESEMPEÑO LABORAL (SEGUNDO SEMESTRE)"]
[null,null,null,"DÍA","MES","AÑO","AL","DÍA","MES","AÑO",null,null,"DÍA","MES","AÑO","AL","DÍA","MES","AÑO"]
[null,null,null,{"$f":"'F1. COMP.LAB Y COM COMPOR  (3)'!D10","v":0},{"$f":"'F1. COMP.LAB Y COM COMPOR  (3)'!E10","v":0},{"$f":"'F1. COMP.LAB Y COM COMPOR  (3)'!F10","v":0},null,{"$f":"'F1. COMP.LAB Y COM COMPOR  (3)'!H10","v":0},{"$f":"'F1. COMP.LAB Y COM COMPOR  (3)'!I10","v":0},{"$f":"'F1. COMP.LAB Y COM COMPOR  (3)'!J10","v":0},null,null,{"$f":"'F1. COMP.LAB Y COM COMPOR  (3)'!M10","v":0},{"$f":"'F1. COMP.LAB Y COM COMPOR  (3)'!N10","v":0},{"$f":"'F1. COMP.LAB Y COM COMPOR  (3)'!O10","v":0},null,{"$f":"'F1. COMP.LAB Y COM COMPOR  (3)'!Q10","v":0},{"$f":"'F1. COMP.LAB Y COM COMPOR  (3)'!R10","v":0},{"$f":"'F1. COMP.LAB Y COM COMPOR  (3)'!S10","v":0}]
["I. IDENTIFICACIÓN DEL EVALUADO",null,null,null,null,null,null,null,null,null,null,null,null,null,null,null,null,null,null,null,{"$f":"IFERROR((DATE(J10,I10,H10)-DATE(F10,E10,D10))+1,0)","v":0},{"$f":"IFERROR((DATE(S10,R10,Q10)-DATE(O10,N10,M10))+1,0)","v":0}]
["Tipo de Documento",null,"Número de identificación",null,null,"Primer apellido",null,null,"Segundo apellido",null,null,"Primer nombre",null,null,null,"Otros nombres"]
["CEDULA DE CIUDADANIA",null,{"$f":"'F1. COMP.LAB Y COM COMPOR  (3)'!C13","v":0},null,null,{"$f":"'F1. COMP.LAB Y COM COMPOR  (3)'!F13","v":0},null,null,{"$f":"'F1. COMP.LAB Y COM COMPOR  (3)'!I13","v":0},null,null,{"$f":"'F1. COMP.LAB Y COM COMPOR  (3)'!L13","v":0},null,null,null,{"$f":"'F1. COMP.LAB Y COM COMPOR  (3)'!P13","v":0}]
["TIPO DE VINCULACION",null,null,null,"Dependencia o área a la que pertenece el evaluado",null,null,null,"Grupo Funcional al que pertenece el evaluado",null,null,"Denominación del empleo"]
[{"$f":"'F1. COMP.LAB Y COM COMPOR  (3)'!A15","v":0},null,null,null,{"$f":"'F1. COMP.LAB Y COM COMPOR  (3)'!$E$15","v":0},null,null,null,{"$f":"'F1. COMP.LAB Y COM COMPOR  (3)'!I15","v":0},null,null,{"$f":"'F1. COMP.LAB Y COM COMPOR  (3)'!L15","v":0}]
["Nivel jerárquico",null,null,null,null,"Propósito del empleo:  ",null,{"$f":"'F1. COMP.LAB Y COM COMPOR  (3)'!$H$16","v":0}]
[{"$f":"'F1. COMP.LAB Y COM COMPOR  (3)'!A17","v":0}]
["II. IDENTIFICACIÓN EVALUADOR. (Jefe inmediato del evaluado )"]
["Tipo de documento",null,"Número de identificación",null,null,"Primer apellido",null,null,"Segundo apellido",null,null,"Primer nombre",null,null,null,"Otros nombres"]
["CEDULA DE CIUDADANIA",null,{"$f":"'F1. COMP.LAB Y COM COMPOR  (3)'!C20","v":0},null,null,{"$f":"'F1. COMP.LAB Y COM COMPOR  (3)'!F20","v":0},null,null,{"$f":"'F1. COMP.LAB Y COM COMPOR  (3)'!I20","v":0},null,null,{"$f":"'F1. COMP.LAB Y COM COMPOR  (3)'!L20","v":0},null,null,null,{"$f":"'F1. COMP.LAB Y COM COMPOR  (3)'!$P$20","v":0}]
[" Área o Dependencia a la que pertenece el evaluador",null,null,null,"Grupo Funcional al que pertenece el evaluador",null,null,null,"Denominación del empleo",null,null,null,null,null,null,null,null,"Nivel jerárquico"]
[{"$f":"'F1. COMP.LAB Y COM COMPOR  (3)'!A22","v":0},null,null,null,{"$f":"'F1. COMP.LAB Y COM COMPOR  (3)'!E22","v":0},null,null,null,{"$f":"'F1. COMP.LAB Y COM COMPOR  (3)'!$I$22","v":0},null,null,null,null,null,null,null,null,{"$f":"'F1. COMP.LAB Y COM COMPOR  (3)'!$R$22","v":0}]
["III. COMPROMISOS LABORALES"]
["Metas de la Dependencia a las cuales contribuye el empleo",null,null,null,"Compromisos Laborales.",null,null,null,null,null,"Peso porcentual del compromiso en el año","Porcentaje de Cumplimiento. "]
[]
[null,null,null,null,null,null,null,null,null,null,null,"PRIMERA PARCIAL SEMESTRAL",null,null,null,"SEGUNDA PARCIAL SEMESTRAL"]
[null,null,null,null,null,null,null,null,null,null,null,"porcentaje de cumplimiento de objetivo logrado","CALIFICACIÓN DEL COMPROMISO","UBICACIÓN PORTAFOLIO DE EVIDENCIAS",null,"porcentaje de cumplimiento de objetivo logrado","CALIFICACIÓN DEL COMPROMISO","UBICACIÓN PORTAFOLIO DE EVIDENCIAS"]
[{"$f":"'F1. COMP.LAB Y COM COMPOR  (3)'!A31","v":0},null,null,null,{"$f":"'F1. COMP.LAB Y COM COMPOR  (3)'!H31","v":0},null,null,null,null,null,{"$f":"'F1. COMP.LAB Y COM COMPOR  (3)'!S31","v":" "},{"$f":"IFERROR(M27*K27/100,\" \")","v":" "},null,null,null,{"$f":"IFERROR(K27*Q27/100,\" \")","v":" "}]
[{"$f":"'F1. COMP.LAB Y COM COMPOR  (3)'!A32","v":0},null,null,null,{"$f":"'F1. COMP.LAB Y COM COMPOR  (3)'!H32","v":0},null,null,null,null,null,{"$f":"'F1. COMP.LAB Y COM COMPOR  (3)'!S32","v":" "},{"$f":"IFERROR(M28*K28/100,\" \")","v":" "},null,null,null,{"$f":"IFERROR(K28*Q28/100,\" \")","v":" "}]
[{"$f":"'F1. COMP.LAB Y COM COMPOR  (3)'!A33","v":0},null,null,null,{"$f":"'F1. COMP.LAB Y COM COMPOR  (3)'!H33","v":0},null,null,null,null,null,{"$f":"'F1. COMP.LAB Y COM COMPOR  (3)'!S33","v":" "},{"$f":"IFERROR(M29*K29/100,\" \")","v":" "},null,null,null,{"$f":"IFERROR(K29*Q29/100,\" \")","v":" "}]
[{"$f":"'F1. COMP.LAB Y COM COMPOR  (3)'!A34","v":0},null,null,null,{"$f":"'F1. COMP.LAB Y COM COMPOR  (3)'!H34","v":0},null,null,null,null,null,{"$f":"'F1. COMP.LAB Y COM COMPOR  (3)'!S34","v":" "},{"$f":"IFERROR(M30*K30/100,\" \")","v":" "},null,null,null,{"$f":"IFERROR(K30*Q30/100,\" \")","v":" "}]
[{"$f":"'F1. COMP.LAB Y COM COMPOR  (3)'!A35","v":0},null,null,null,{"$f":"'F1. COMP.LAB Y COM COMPOR  (3)'!H35","v":0},null,null,null,null,null,{"$f":"'F1. COMP.LAB Y COM COMPOR  (3)'!S35","v":" "},{"$f":"IFERROR(M31*K31/100,\" \")","v":" "},null,null,null,{"$f":"IFERROR(K31*Q31/100,\" \")","v":" "}]
[" TOTALES",null,null,null,null,null,null,null,null,null,{"$f":"SUM(K27:K31)","v":0},"Resultado total ",null,null,{"$f":"IFERROR(AVERAGE(M27:M31),0)","v":0},"Resultado total ",null,null,{"$f":"IFERROR(AVERAGE(Q27:Q31),0)","v":0}]
["TOTAL SEMESTRAL"]
["Calificaciones parciales semestrales compromisos laborales ",null,null,null,null,null,null,null,null,null,null,"Calificación total"]
[null,null,null,null,null,null,null,null,null,null,null,"Calificacion primer parcial",null,null,null,"Calificacion Segundo parcial"]
["CALIFICACIÒN TOTAL DE LOS COMPROMISOS LABORALES",null,null,null,null,null,null,null,null,null,null,"Peso porcentual del 85%",null,null,{"$f":"AVERAGE(O32*85%)","v":0},"Peso porcentual del 85%",null,null,{"$f":"AVERAGE(S32*85%)","v":0}]
[]
["IV. CALIFICACIÓN COMPETENCIAS COMPORTAMENTALES DEL EMPLEADO PÚBLICO."]
["COMPETENCIA",null,"DEFINICIÓN ",null,null,"CONDUCTAS ASOCIADAS",null,null,null,null,null," PRIMERA PARCIAL SEMESTRAL",null,null,null,"SEGUNDA PARCIAL SEMESTRAL"]
[]
[]
[]
[{"$f":"'F1. COMP.LAB Y COM COMPOR  (3)'!B39","v":0},null,{"$f":"'F1. COMP.LAB Y COM COMPOR  (3)'!E39","v":" "},null,null,{"$f":"'F1. COMP.LAB Y COM COMPOR  (3)'!L39","v":" "},null,null,null,null,null,{"$f":"IFERROR(VLOOKUP(L44,'CALIFICACION TOTAL'!$A$1:$B$12,2,FALSE),\" \")","v":" "},null,null,null,{"$f":"IFERROR(VLOOKUP(P44,'CALIFICACION TOTAL'!$A$1:$B$12,2,FALSE),\" \")","v":" "}]
[]
[{"$f":"'F1. COMP.LAB Y COM COMPOR  (3)'!B41","v":0},null,{"$f":"'F1. COMP.LAB Y COM COMPOR  (3)'!E41","v":" "},null,null,{"$f":"'F1. COMP.LAB Y COM COMPOR  (3)'!L41","v":" "},null,null,null,null,null,{"$f":"IFERROR(VLOOKUP(L46,'CALIFICACION TOTAL'!$A$1:$B$12,2,FALSE),\" \")","v":" "},null,null,null,{"$f":"IFERROR(VLOOKUP(P46,'CALIFICACION TOTAL'!$A$1:$B$12,2,FALSE),\" \")","v":" "}]
[]
[{"$f":"'F1. COMP.LAB Y COM COMPOR  (3)'!B43","v":0},null,{"$f":"'F1. COMP.LAB Y COM COMPOR  (3)'!E43","v":" "},null,null,{"$f":"'F1. COMP.LAB Y COM COMPOR  (3)'!L43","v":" "},null,null,null,null,null,{"$f":"IFERROR(VLOOKUP(L48,'CALIFICACION TOTAL'!$A$1:$B$12,2,FALSE),\" \")","v":" "},null,null,null,{"$f":"IFERROR(VLOOKUP(P48,'CALIFICACION TOTAL'!$A$1:$B$12,2,FALSE),\" \")","v":" "}]
[]
[{"$f":"'F1. COMP.LAB Y COM COMPOR  (3)'!B45","v":0},null,{"$f":"'F1. COMP.LAB Y COM COMPOR  (3)'!E45","v":" "},null,null,{"$f":"'F1. COMP.LAB Y COM COMPOR  (3)'!L45","v":" "},null,null,null,null,null,{"$f":"IFERROR(VLOOKUP(L50,'CALIFICACION TOTAL'!$A$1:$B$12,2,FALSE),\" \")","v":" "},null,null,null,{"$f":"IFERROR(VLOOKUP(P50,'CALIFICACION TOTAL'!$A$1:$B$12,2,FALSE),\" \")","v":" "}]
[]
["CALIFICACIÓN EVALUACIÓN  DE LAS COMPETENCIAS COMPORTAMENTALES.",null,null,null,null,null,null,null,null,null,null,"CALIFICACIÓN PRIMERA PARCIAL SEMESTRAL (15%)",null,null,null,"CALIFICACIÓN SEGUNDA PARCIAL SEMESTRAL (15%)"]
[]
[null,null,null,null,null,null,null,null,null,null,null,{"$f":"((SUM(L44,L46,L48,L50)*100)/60)*0.15","v":0},null,null,null,{"$f":"((SUM(P44,P46,P48,P50)*100)/60)*0.15","v":0}]
[]
["TOTAL DIAS LABORADOS",null,null,null,null,null,null,null,null,null,null,{"$f":"IFERROR((DAYS360(DATE(F9,E9,D9),DATE(J9,I9,H9))+1),0)","v":0},null,{"$f":"IFERROR(L55/(L55+'F2. CALIFIC. COMPOR. (2)'!L55+'F2. CALIFIC. COMPOR.'!L55+'F2. CALIFIC. COMPOR. (4)'!L55+'F2. CALIFIC. COMPOR. (5)'!L55+'F2. CALIFIC. COMPOR. (6)'!L55),0)","v":0},null,{"$f":"IFERROR((DAYS360(DATE(O9,N9,M9),DATE(S9,R9,Q9))+1),0)","v":0},null,{"$f":"IFERROR(P55/(P55+'F2. CALIFIC. COMPOR. (2)'!P55+'F2. CALIFIC. COMPOR.'!P55+'F2. CALIFIC. COMPOR. (4)'!P55+'F2. CALIFIC. COMPOR. (5)'!P55+'F2. CALIFIC. COMPOR. (6)'!P55),0)","v":0}]
["CALIFICACION DEFINITIVA COMPROMISOS FUNCIONALES Y COMPORTAMENTALES",null,null,null,null,null,null,null,null,null,null,{"$f":"AVERAGE(O36+L53)","v":0},null,null,null,{"$f":"IFERROR(S36+P53,0)","v":0}]
["Archívese en: Carpeta historias laborales del funcionario"]
["GTH-FT-186/V1",null,null,null,null,null," Oficialización: 16/02/2021",null,null,null,null,null,null,"Página: 1 de 2 "]

{"sheet":"F1. COMP.LAB Y COM COMPOR  (4)","index":10,"n_rows":56,"n_cols":22,"rows_kept":56,"cut":false,"hidden":true,"merged":[[0,0,6,3],[0,4,0,14],[0,15,6,18],[1,4,1,14],[2,4,2,14],[3,4,4,14],[5,4,6,6],[5,10,6,11],[10,0,10,18],[11,0,11,1],[11,2,11,4],[11,5,11,7],[11,8,11,10],[11,11,11,14],[11,15,11,18],[7,0,9,2],[7,3,7,9],[7,10,9,11],[7,12,7,18],[8,6,9,6],[8,15,9,15],[13,0,13,3],[13,4,13,7],[13,8,13,10],[13,11,13,18],[14,0,14,3],[14,4,14,7],[14,8,14,10],[14,11,14,18],[12,0,12,1],[12,2,12,4],[12,5,12,7],[12,8,12,10],[12,11,12,14],[12,15,12,18],[15,0,15,4],[15,5,16,6],[15,7,16,18],[16,0,16,4],[17,0,17,18],[18,0,18,1],[18,2,18,4],[18,5,18,7],[18,8,18,10],[18,11,18,14],[20,0,20,3],[20,4,20,7],[20,8,20,16],[20,17,20,18],[21,0,21,3],[21,4,21,7],[21,8,21,16],[21,17,21,18],[18,15,18,18],[19,0,19,1],[19,2,19,4],[19,5,19,7],[19,8,19,10],[19,11,19,14],[19,15,19,18],[25,0,25,18],[26,0,26,18],[27,0,29,6],[27,7,29,15],[27,16,28,18],[30,0,30,6],[30,7,30,15],[22,0,22,18],[23,0,24,3],[23,4,24,4],[23,5,24,6],[23,10,24,12],[23,13,24,18],[34,0,34,6],[34,7,34,15],[35,0,35,15],[36,0,36,18],[37,1,37,3],[37,4,37,10],[37,11,37,18],[31,0,31,6],[31,7,31,15],[32,0,32,6],[32,7,32,15],[33,0,33,6],[33,7,33,15],[42,0,43,0],[42,1,43,3],[42,4,43,10],[42,11,43,18],[44,0,45,0],[44,1,45,3],[44,4,45,10],[44,11,45,18],[38,0,39,0],[38,1,39,3],[38,4,39,10],[38,11,39,18],[40,0,41,0],[40,1,41,3],[40,4,41,10],[40,11,41,18],[48,7,48,9],[48,12,48,14],[48,15,48,16],[48,17,48,18],[49,0,51,5],[49,6,51,11],[49,12,51,18],[46,0,46,18],[47,0,47,3],[47,4,47,6],[47,7,47,9],[47,10,48,11],[47,12,47,14],[47,15,47,16],[47,17,47,18],[48,0,48,3],[48,4,48,6],[54,0,54,16383],[55,0,55,5],[55,6,55,12],[55,13,55,18],[52,0,52,3],[52,4,52,5],[52,6,53,11],[52,12,53,18],[53,0,53,3],[53,4,53,5]]}
[null,null,null,null," EVALUACION DE DESEMPEÑO FUNCIONARIOS PROVISIONALES Y/O DE LIBRE NOMBRAMIENTO Y REMOCIÓN"]
[null,null,null,null,"GESTIÓN ESTRATÉGICA DE TALENTO HUMANO"]
[null,null,null,null,"UNIDAD NACIONAL DE PROTECCIÓN"]
[null,null,null,null,"NOTA: FRENTE A LA EVALUACION DE DESEMPEÑO REALIZADA PARA EL PERSONAL QUE SE ENCUENTRA CON VINCULACION LABORAL DE CARÁCTER PROVISIONAL, NO PROCEDE DERECHOS DE CARRERA ADMINISTRATIVA , EL OBJETIVO ES EVALUAR Y CONTROLAR LA GESTION LABORAL DE LOS FUNCIONARIOS"]
[]
[null,null,null,null,"PERÍODO DE EVALUACIÓN                                                                                 ANUAL",null,null,"DÍA","MES","AÑO","AL",null,"DÍA","MES","AÑO"]
[null,null,null,null,null,null,null,{"$f":"'F2. CALIFIC. COMPOR. (3)'!H6","v":1},{"$f":"'F2. CALIFIC. COMPOR. (3)'!I6","v":2},{"$f":"'F2. CALIFIC. COMPOR. (3)'!J6","v":0},null,null,{"$f":"'F2. CALIFIC. COMPOR. (3)'!M6","v":31},{"$f":"'F2. CALIFIC. COMPOR. (3)'!N6","v":1},{"$f":"'F2. CALIFIC. COMPOR. (3)'!O6","v":1}]
["PERÍODO DE EVALUACIÓN",null,null,"PROCESO: EVALUACIÓN DEL DESEMPEÑO LABORAL (PRIMER SEMESTRE)",null,null,null,null,null,null,null,null,"PROCESO: EVALUACIÓN DEL DESEMPEÑO LABORAL (SEGUNDO SEMESTRE)"]
[null,null,null,"DÍA","MES","AÑO","AL","DÍA","MES","AÑO",null,null,"DÍA","MES","AÑO","AL","DÍA","MES","AÑO"]
[null,null,null,null,null,null,null,null,null,null,null,null,null,null,null,null,null,null,null,null,{"$f":"IFERROR((DAYS360(DATE(F10,E10,D10),DATE(J10,I10,H10))+1),0)","v":0},{"$f":"IFERROR((DAYS360(DATE(O10,N10,M10),DATE(S10,R10,Q10)+1)),0)","v":0}]
["I. IDENTIFICACIÓN DEL EVALUADO"]
["Tipo de Documento",null,"Número de identificación",null,null,"Primer apellido",null,null,"Segundo apellido",null,null,"Primer nombre",null,null,null,"Otros nombres"]
["CEDULA DE CIUDADANIA",null,{"$f":"'F1. COMP.LAB Y COM COMPOR'!C13","v":0},null,null,{"$f":"'F1. COMP.LAB Y COM COMPOR'!F13","v":0},null,null,{"$f":"'F1. COMP.LAB Y COM COMPOR'!I13","v":0},null,null,{"$f":"'F1. COMP.LAB Y COM COMPOR'!L13","v":0},null,null,null,{"$f":"'F1. COMP.LAB Y COM COMPOR'!P13","v":0}]
["Tipo de Vinculación",null,null,null,"Dependencia o área a la que pertenece el evaluado",null,null,null,"Grupo Funcional al que pertenece el evaluado",null,null,"Denominación del empleo"]
[]
["Nivel jerárquico",null,null,null,null,"Propósito del empleo:  "]
[]
["II. IDENTIFICACIÓN EVALUADOR. (Jefe inmediato del evaluado )"]
["Tipo de documento",null,"Número de identificación",null,null,"Primer apellido",null,null,"Segundo apellido",null,null,"Primer nombre",null,null,null,"Otros nombres"]
["CEDULA DE CIUDADANIA"]
[" Área o Dependencia a la que pertenece el evaluador",null,null,null,"Grupo Funcional al que pertenece el evaluador",null,null,null,"Denominación del empleo",null,null,null,null,null,null,null,null,"Nivel jerárquico"]
[]
["IV. PARCIALES EVENTUALES"]
["Ajuste de compromisos",null,null,null,null,"Fecha:",null,"DIA","MES","AÑO","Causales de Calificación Eventual"]
[]
["V. CONCERTACIÓN DE COMPROMISOS LABORALES Y COMPETENCIAS COMPORTAMENTALES."]
["COMPROMISOS LABORALES"]
["Metas del Área o Dependencia a las cuales contribuye el empleo",null,null,null,null,null,null,"Compromisos Laborales.",null,null,null,null,null,null,null,null,"Peso porcentual del compromiso"]
[]
[null,null,null,null,null,null,null,null,null,null,null,null,null,null,null,null,"Semestre 1","Semestre 2","Total anual"]
[null,null,null,null,null,null,null,null,null,null,null,null,null,null,null,null,null,null,{"$f":"IF(COUNTA(Q31,R31)=2,AVERAGE(Q31:R31),IF(COUNTA(Q31,R31)=1,SUM(Q31:R31),\" \"))","v":" "}]
[null,null,null,null,null,null,null,null,null,null,null,null,null,null,null,null,null,null,{"$f":"IF(COUNTA(Q32,R32)=2,AVERAGE(Q32:R32),IF(COUNTA(Q32,R32)=1,SUM(Q32:R32),\" \"))","v":" "}]
[null,null,null,null,null,null,null,null,null,null,null,null,null,null,null,null,null,null,{"$f":"IF(COUNTA(Q33,R33)=2,AVERAGE(Q33:R33),IF(COUNTA(Q33,R33)=1,SUM(Q33:R33),\" \"))","v":" "}]
[null,null,null,null,null,null,null,null,null,null,null,null,null,null,null,null,null,null,{"$f":"IF(COUNTA(Q34,R34)=2,AVERAGE(Q34:R34),IF(COUNTA(Q34,R34)=1,SUM(Q34:R34),\" \"))","v":" "}]
[null,null,null,null,null,null,null,null,null,null,null,null,null,null,null,null,null,null,{"$f":"IF(COUNTA(Q35,R35)=2,AVERAGE(Q35:R35),IF(COUNTA(Q35,R35)=1,SUM(Q35:R35),\" \"))","v":" "}]
[" PESO TOTAL PONDERADO DE LOS COMPROMISOS",null,null,null,null,null,null,null,null,null,null,null,null,null,null,null,{"$f":"IF(COUNT(Q31:Q35)<3,\"MÍNIMO TRES (03) COMPROMISOS\",IF(SUM(Q31:Q35)>1,CONCATENATE(\"ERROR!!: Sumatoria mayor a 100% (\",TEXT(SUM(Q31:Q35),\"0%)\")),IF(SUM(Q31:Q35)<1,CONCATENATE(\"ERROR!!: Sumatoria menor a 100% (\",TEXT(SUM(Q31:Q35),\"0%)\")),SUM(Q31:Q35))))","v":"MÍNIMO TRES (03) COMPROMISOS"},{"$f":"IF(COUNT(R31:R35)<3,\"MÍNIMO TRES (03) COMPROMISOS\",IF(SUM(R31:R35)>1,CONCATENATE(\"ERROR!!: Sumatoria mayor a 100% (\",TEXT(SUM(R31:R35),\"0%)\")),IF(SUM(R31:R35)<1,CONCATENATE(\"ERROR!!: Sumatoria menor a 100% (\",TEXT(SUM(R31:R35),\"0%)\")),SUM(R31:R35))))","v":"MÍNIMO TRES (03) COMPROMISOS"},{"$f":"IF(COUNT(S31:T35)<3,\"MÍNIMO TRES (03) COMPROMISOS\",IF(SUM(S31:T35)>1,CONCATENATE(\"ERROR!!: Sumatoria mayor a 100% (\",TEXT(SUM(S31:T35),\"0%)\")),IF(SUM(S31:T35)<1,CONCATENATE(\"ERROR!!: Sumatoria menor a 100% (\",TEXT(SUM(S31:T35),\"0%)\")),SUM(S31:T35))))","v":"MÍNIMO TRES (03) COMPROMISOS"}]
["VI. FIJACIÓN DE COMPETENCIAS COMPORTAMENTALES"]
["N°","COMPETENCIA",null,null,"DEFINICIÓN ",null,null,null,null,null,null,"CONDUCTAS ASOCIADAS"]
[{"$f":"IF(B39=\"\",\"1.  \",IF(AND(B39<>B41,B39<>B43,B39<>B45)=TRUE,\"1.  \",\"REPETIDA\"))","v":"1.  "},null,null,null,{"$f":"IFERROR(VLOOKUP($A$17&B39,'COMPETENCIAS COMPORTAMENTALES'!$C:$E,2,FALSE),\" \")","v":" "},null,null,null,null,null,null,{"$f":"IFERROR(VLOOKUP($A$17&B39,'COMPETENCIAS COMPORTAMENTALES'!$C:$E,3,FALSE),\" \")","v":" "}]
[]
[{"$f":"IF(B39=\"\",\"2.  \",IF(AND(B39<>B41,B41<>B43,B41<>B45)=TRUE,\"2.  \",\"REPETIDA\"))","v":"2.  "},null,null,null,{"$f":"IFERROR(VLOOKUP($A$17&B41,'COMPETENCIAS COMPORTAMENTALES'!$C:$E,2,FALSE),\" \")","v":" "},null,null,null,null,null,null,{"$f":"IFERROR(VLOOKUP($A$17&B41,'COMPETENCIAS COMPORTAMENTALES'!$C:$E,3,FALSE),\" \")","v":" "}]
[]
[{"$f":"IF(B39=\"\",\"3.  \",IF(AND(B43<>B39,B41<>B43,B43<>B45)=TRUE,\"3.  \",\"REPETIDA\"))","v":"3.  "},null,null,null,{"$f":"IFERROR(VLOOKUP($A$17&B43,'COMPETENCIAS COMPORTAMENTALES'!$C:$E,2,FALSE),\" \")","v":" "},null,null,null,null,null,null,{"$f":"IFERROR(VLOOKUP($A$17&B43,'COMPETENCIAS COMPORTAMENTALES'!$C:$E,3,FALSE),\" \")","v":" "}]
[]
[{"$f":"IF(B39=\"\",\"4.  \",IF(AND(B45<>B41,B45<>B43,B39<>B45)=TRUE,\"4.  \",\"REPETIDA\"))","v":"4.  "},null,null,null,{"$f":"IFERROR(VLOOKUP($A$17&B45,'COMPETENCIAS COMPORTAMENTALES'!$C:$E,2,FALSE),\" \")","v":" "},null,null,null,null,null,null,{"$f":"IFERROR(VLOOKUP($A$17&B45,'COMPETENCIAS COMPORTAMENTALES'!$C:$E,3,FALSE),\" \")","v":" "}]
[]
["VII. FIRMAS, RECLAMACIÓN U OBJECIÓN."]
["FIRMA DEL EVALUADO",null,null,null,"FIRMA DEL JEFE INMEDIATO",null,null,"FIRMA DEL EVALUADOR EN COMISIÓN EVALUADORA",null,null,"Renuencia del Evaluado para firmar la concertación  de compromisos",null,"DATOS DEL TESTIGO",null,null,"FIRMA DEL TESTIGO",null,"FECHA"]
[]
["RECLAMACIÓN U OBJECIÓN EN ÚNICA INSTANCIA ANTE LA COMISIÓN DE PERSONAL (Parágrafo del articulo 3º, del Acuerdo 617 de 2018)",null,null,null,null,null,"DECISIÓN DE LA COMISIÓN DE PERSONAL",null,null,null,null,null,"MOTIVACIÓN DE LA DECISIÓN"]
[]
[]
["Número de Radicado"]
["Fecha Reclamación (dd/mm/aa)"]
["Archívese en: Carpeta historias laborales del funcionario"]
["GTH-FT-186/V1",null,null,null,null,null," Oficialización: 16/02/2021",null,null,null,null,null,null,"Página: 1 de 2 "]

{"sheet":"F2. CALIFIC. COMPOR. (4)","index":11,"n_rows":58,"n_cols":19,"rows_kept":58,"cut":false,"hidden":true,"merged":[[0,0,5,3],[0,4,0,14],[0,15,5,18],[1,4,1,14],[2,4,2,14],[3,4,3,14],[4,4,5,6],[4,10,5,11],[54,11,54,12],[54,13,54,14],[54,15,54,16],[54,17,54,18],[9,0,9,18],[10,0,10,1],[10,2,10,4],[10,5,10,7],[10,8,10,10],[10,11,10,14],[10,15,10,18],[6,0,8,2],[6,3,6,9],[6,10,8,11],[6,12,6,18],[7,6,8,6],[7,15,8,15],[12,0,12,3],[12,4,12,7],[12,8,12,10],[12,11,12,18],[13,0,13,3],[13,4,13,7],[13,8,13,10],[13,11,13,18],[11,0,11,1],[11,2,11,4],[11,5,11,7],[11,8,11,10],[11,11,11,14],[11,15,11,18],[14,0,14,4],[14,5,15,6],[14,7,15,18],[15,0,15,4],[16,0,16,18],[17,0,17,1],[17,2,17,4],[17,5,17,7],[17,8,17,10],[17,11,17,14],[19,0,19,3],[19,4,19,7],[19,8,19,16],[19,17,19,18],[20,0,20,3],[20,4,20,7],[20,8,20,16],[20,17,20,18],[17,15,17,18],[18,0,18,1],[18,2,18,4],[18,5,18,7],[18,8,18,10],[18,11,18,14],[18,15,18,18],[21,0,21,18],[22,0,25,3],[22,4,25,9],[22,10,25,10],[22,11,23,18],[24,11,24,14],[24,15,24,18],[25,13,25,14],[25,17,25,18],[28,0,28,3],[28,4,28,9],[28,13,28,14],[28,17,28,18],[29,0,29,3],[29,4,29,9],[29,13,29,14],[29,17,29,18],[26,0,26,3],[26,4,26,9],[26,13,26,14],[26,17,26,18],[27,0,27,3],[27,4,27,9],[27,13,27,14],[27,17,27,18],[30,0,30,3],[30,4,30,9],[30,13,30,14],[30,17,30,18],[31,0,31,9],[31,11,32,13],[31,14,32,14],[31,15,32,17],[31,18,32,18],[32,0,32,10],[37,0,37,18],[38,0,41,1],[38,2,41,4],[38,5,41,10],[38,11,41,14],[38,15,41,18],[33,0,34,10],[33,11,33,18],[34,11,34,14],[34,15,34,18],[35,0,36,10],[35,11,36,13],[35,14,36,14],[35,15,36,17],[35,18,36,18],[44,0,45,1],[44,2,45,4],[44,5,45,10],[44,11,44,14],[44,15,44,18],[45,11,45,14],[45,15,45,18],[42,0,43,1],[42,2,43,4],[42,5,43,10],[42,11,42,14],[42,15,42,18],[43,11,43,14],[43,15,43,18],[48,0,49,1],[48,2,49,4],[48,5,49,10],[48,11,48,14],[48,15,48,18],[49,11,49,14],[49,15,49,18],[46,0,47,1],[46,2,47,4],[46,5,47,10],[46,11,46,14],[46,15,46,18],[47,11,47,14],[47,15,47,18],[56,0,56,16383],[57,0,57,5],[57,6,57,12],[57,13,57,18],[55,0,55,10],[55,11,55,14],[55,15,55,18],[50,0,53,10],[50,11,51,14],[50,15,51,18],[52,11,53,14],[52,15,53,18],[54,0,54,10]]}
[null,null,null,null," EVALUACION DE DESEMPEÑO FUNCIONARIOS PROVISIONALES Y/O DE LIBRE NOMBRAMIENTO Y REMOCIÓN"]
[null,null,null,null,"GESTIÓN ESTRATÉGICA DE TALENTO HUMANO"]
[null,null,null,null,"UNIDAD NACIONAL DE PROTECCIÓN"]
[null,null,null,null,"NOTA: FRENTE A LA EVALUACION DE DESEMPEÑO REALIZADA PARA EL PERSONAL QUE SE ENCUENTRA CON VINCULACION LABORAL DE CARÁCTER PROVISIONAL, NO PROCEDE DERECHOS DE CARRERA ADMINISTRATIVA , EL OBJETIVO ES EVALUAR Y CONTROLAR LA GESTION LABORAL DE LOS FUNCIONARIOS"]
[null,null,null,null,"PERÍODO DE EVALUACIÓN                                                                                 ANUAL",null,null,"DÍA","MES","AÑO","AL",null,"DÍA","MES","AÑO"]
[null,null,null,null,null,null,null,{"$f":"'F1. COMP.LAB Y COM COMPOR  (4)'!H7","v":1},{"$f":"'F1. COMP.LAB Y COM COMPOR  (4)'!I7","v":2},{"$f":"'F1. COMP.LAB Y COM COMPOR  (4)'!J7","v":0},null,null,{"$f":"'F1. COMP.LAB Y COM COMPOR  (4)'!M7","v":31},{"$f":"'F1. COMP.LAB Y COM COMPOR  (4)'!N7","v":1},{"$f":"'F1. COMP.LAB Y COM COMPOR  (4)'!O7","v":1}]
["PERÍODO DE EVALUACIÓN",null,null,"PROCESO: EVALUACIÓN DEL DESEMPEÑO LABORAL (PRIMER SEMESTRE)",null,null,null,null,null,null,null,null,"PROCESO: EVALUACIÓN DEL DESEMPEÑO LABORAL (SEGUNDO SEMESTRE)"]
[null,null,null,"DÍA","MES","AÑO","AL","DÍA","MES","AÑO",null,null,"DÍA","MES","AÑO","AL","DÍA","MES","AÑO"]
[null,null,null,{"$f":"'F1. COMP.LAB Y COM COMPOR  (4)'!D10","v":0},{"$f":"'F1. COMP.LAB Y COM COMPOR  (4)'!E10","v":0},{"$f":"'F1. COMP.LAB Y COM COMPOR  (4)'!F10","v":0},null,{"$f":"'F1. COMP.LAB Y COM COMPOR  (4)'!H10","v":0},{"$f":"'F1. COMP.LAB Y COM COMPOR  (4)'!I10","v":0},{"$f":"'F1. COMP.LAB Y COM COMPOR  (4)'!J10","v":0},null,null,{"$f":"'F1. COMP.LAB Y COM COMPOR  (4)'!M10","v":0},{"$f":"'F1. COMP.LAB Y COM COMPOR  (4)'!N10","v":0},{"$f":"'F1. COMP.LAB Y COM COMPOR  (4)'!O10","v":0},null,{"$f":"'F1. COMP.LAB Y COM COMPOR  (4)'!Q10","v":0},{"$f":"'F1. COMP.LAB Y COM COMPOR  (4)'!R10","v":0},{"$f":"'F1. COMP.LAB Y COM COMPOR  (4)'!S10","v":0}]
["I. IDENTIFICACIÓN DEL EVALUADO"]
["Tipo de Documento",null,"Número de identificación",null,null,"Primer apellido",null,null,"Segundo apellido",null,null,"Primer nombre",null,null,null,"Otros nombres"]
["CEDULA DE CIUDADANIA",null,{"$f":"'F1. COMP.LAB Y COM COMPOR  (4)'!C13","v":0},null,null,{"$f":"'F1. COMP.LAB Y COM COMPOR  (4)'!F13","v":0},null,null,{"$f":"'F1. COMP.LAB Y COM COMPOR  (4)'!I13","v":0},null,null,{"$f":"'F1. COMP.LAB Y COM COMPOR  (4)'!L13","v":0},null,null,null,{"$f":"'F1. COMP.LAB Y COM COMPOR  (4)'!P13","v":0}]
["Tipo de Vinculación",null,null,null,"Dependencia o área a la que pertenece el evaluado",null,null,null,"Grupo Funcional al que pertenece el evaluado",null,null,"Denominación del empleo"]
[{"$f":"'F1. COMP.LAB Y COM COMPOR  (4)'!A15","v":0},null,null,null,{"$f":"'F1. COMP.LAB Y COM COMPOR  (4)'!E15","v":0},null,null,null,{"$f":"'F1. COMP.LAB Y COM COMPOR  (4)'!I15","v":0},null,null,{"$f":"'F1. COMP.LAB Y COM COMPOR  (4)'!L15","v":0}]
["Nivel jerárquico",null,null,null,null,"Propósito del empleo:  ",null,{"$f":"'F1. COMP.LAB Y COM COMPOR  (4)'!$H$16","v":0}]
[{"$f":"'F1. COMP.LAB Y COM COMPOR  (4)'!$A$17","v":0}]
["II. IDENTIFICACIÓN EVALUADOR. (Jefe inmediato del evaluado )"]
["Tipo de documento",null,"Número de identificación",null,null,"Primer apellido",null,null,"Segundo apellido",null,null,"Primer nombre",null,null,null,"Otros nombres"]
["CEDULA DE CIUDADANIA",null,{"$f":"'F1. COMP.LAB Y COM COMPOR  (4)'!C20","v":0},null,null,{"$f":"'F1. COMP.LAB Y COM COMPOR  (4)'!F20","v":0},null,null,{"$f":"'F1. COMP.LAB Y COM COMPOR  (4)'!I20","v":0},null,null,{"$f":"'F1. COMP.LAB Y COM COMPOR  (4)'!L20","v":0},null,null,null,{"$f":"'F1. COMP.LAB Y COM COMPOR  (4)'!$P$20","v":0}]
[" Área o Dependencia a la que pertenece el evaluador",null,null,null,"Grupo Funcional al que pertenece el evaluador",null,null,null,"Denominación del empleo",null,null,null,null,null,null,null,null,"Nivel jerárquico"]
[{"$f":"'F1. COMP.LAB Y COM COMPOR  (4)'!A22","v":0},null,null,null,{"$f":"'F1. COMP.LAB Y COM COMPOR  (4)'!E22","v":0},null,null,null,{"$f":"'F1. COMP.LAB Y COM COMPOR  (4)'!$I$22","v":0},null,null,null,null,null,null,null,null,{"$f":"'F1. COMP.LAB Y COM COMPOR  (4)'!$R$22","v":0}]
["III. COMPROMISOS LABORALES"]
["Metas de la Dependencia a las cuales contribuye el empleo",null,null,null,"Compromisos Laborales.",null,null,null,null,null,"Peso porcentual del compromiso en el año","Porcentaje de Cumplimiento. "]
[]
[null,null,null,null,null,null,null,null,null,null,null,"PRIMERA PARCIAL SEMESTRAL",null,null,null,"SEGUNDA PARCIAL SEMESTRAL"]
[null,null,null,null,null,null,null,null,null,null,null,"porcentaje de cumplimiento de objetivo logrado","CALIFICACIÓN DEL COMPROMISO","UBICACIÓN PORTAFOLIO DE EVIDENCIAS",null,"porcentaje de cumplimiento de objetivo logrado","CALIFICACIÓN DEL COMPROMISO","UBICACIÓN PORTAFOLIO DE EVIDENCIAS"]
[{"$f":"'F1. COMP.LAB Y COM COMPOR  (4)'!A31","v":0},null,null,null,{"$f":"'F1. COMP.LAB Y COM COMPOR  (4)'!H31","v":0},null,null,null,null,null,{"$f":"'F1. COMP.LAB Y COM COMPOR  (4)'!S31","v":" "},{"$f":"IFERROR(M27*K27/100,\" \")","v":" "},null,null,null,{"$f":"IFERROR(K27*Q27/100,\" \")","v":" "}]
[{"$f":"'F1. COMP.LAB Y COM COMPOR  (4)'!A32","v":0},null,null,null,{"$f":"'F1. COMP.LAB Y COM COMPOR  (4)'!H32","v":0},null,null,null,null,null,{"$f":"'F1. COMP.LAB Y COM COMPOR  (4)'!S32","v":" "},{"$f":"IFERROR(M28*K28/100,\" \")","v":" "},null,null,null,{"$f":"IFERROR(K28*Q28/100,\" \")","v":" "}]
[{"$f":"'F1. COMP.LAB Y COM COMPOR  (4)'!A33","v":0},null,null,null,{"$f":"'F1. COMP.LAB Y COM COMPOR  (4)'!H33","v":0},null,null,null,null,null,{"$f":"'F1. COMP.LAB Y COM COMPOR  (4)'!S33","v":" "},{"$f":"IFERROR(M29*K29/100,\" \")","v":" "},null,null,null,{"$f":"IFERROR(K29*Q29/100,\" \")","v":" "}]
[{"$f":"'F1. COMP.LAB Y COM COMPOR  (4)'!A34","v":0},null,null,null,{"$f":"'F1. COMP.LAB Y COM COMPOR  (4)'!H34","v":0},null,null,null,null,null,{"$f":"'F1. COMP.LAB Y COM COMPOR  (4)'!S34","v":" "},{"$f":"IFERROR(M30*K30/100,\" \")","v":" "},null,null,null,{"$f":"IFERROR(K30*Q30/100,\" \")","v":" "}]
[{"$f":"'F1. COMP.LAB Y COM COMPOR  (4)'!A35","v":0},null,null,null,{"$f":"'F1. COMP.LAB Y COM COMPOR  (4)'!H35","v":0},null,null,null,null,null,{"$f":"'F1. COMP.LAB Y COM COMPOR  (4)'!S35","v":" "},{"$f":"IFERROR(M31*K31/100,\" \")","v":" "},null,null,null,{"$f":"IFERROR(K31*Q31/100,\" \")","v":" "}]
[" TOTALES",null,null,null,null,null,null,null,null,null,{"$f":"SUM(K27:K31)","v":0},"Resultado total ",null,null,{"$f":"IFERROR(AVERAGE(M27:M31),0)","v":0},"Resultado total ",null,null,{"$f":"IFERROR(AVERAGE(Q27:Q31),0)","v":0}]
["TOTAL SEMESTRAL"]
["Calificaciones parciales semestrales compromisos laborales ",null,null,null,null,null,null,null,null,null,null,"Calificación total"]
[null,null,null,null,null,null,null,null,null,null,null,"Calificacion primer parcial",null,null,null,"Calificacion Segundo parcial"]
["CALIFICACIÒN TOTAL DE LOS COMPROMISOS LABORALES",null,null,null,null,null,null,null,null,null,null,"Peso porcentual del 85%",null,null,{"$f":"AVERAGE(O32*85%)","v":0},"Peso porcentual del 85%",null,null,{"$f":"AVERAGE(S32*85%)","v":0}]
[]
["IV. CALIFICACIÓN COMPETENCIAS COMPORTAMENTALES DEL EMPLEADO PÚBLICO."]
["COMPETENCIA",null,"DEFINICIÓN ",null,null,"CONDUCTAS ASOCIADAS",null,null,null,null,null," PRIMERA PARCIAL SEMESTRAL",null,null,null,"SEGUNDA PARCIAL SEMESTRAL"]
[]
[]
[]
[{"$f":"'F1. COMP.LAB Y COM COMPOR  (4)'!B39","v":0},null,{"$f":"'F1. COMP.LAB Y COM COMPOR  (4)'!E39","v":" "},null,null,{"$f":"'F1. COMP.LAB Y COM COMPOR  (4)'!L39","v":" "},null,null,null,null,null,{"$f":"IFERROR(VLOOKUP(L44,'CALIFICACION TOTAL'!$A$1:$B$12,2,FALSE),\" \")","v":" "},null,null,null,{"$f":"IFERROR(VLOOKUP(P44,'CALIFICACION TOTAL'!$A$1:$B$12,2,FALSE),\" \")","v":" "}]
[]
[{"$f":"'F1. COMP.LAB Y COM COMPOR  (4)'!B41","v":0},null,{"$f":"'F1. COMP.LAB Y COM COMPOR  (4)'!E41","v":" "},null,null,{"$f":"'F1. COMP.LAB Y COM COMPOR  (4)'!L41","v":" "},null,null,null,null,null,{"$f":"IFERROR(VLOOKUP(L46,'CALIFICACION TOTAL'!$A$1:$B$12,2,FALSE),\" \")","v":" "},null,null,null,{"$f":"IFERROR(VLOOKUP(P46,'CALIFICACION TOTAL'!$A$1:$B$12,2,FALSE),\" \")","v":" "}]
[]
[{"$f":"'F1. COMP.LAB Y COM COMPOR  (4)'!B43","v":0},null,{"$f":"'F1. COMP.LAB Y COM COMPOR  (4)'!E43","v":" "},null,null,{"$f":"'F1. COMP.LAB Y COM COMPOR  (4)'!L43","v":" "},null,null,null,null,null,{"$f":"IFERROR(VLOOKUP(L48,'CALIFICACION TOTAL'!$A$1:$B$12,2,FALSE),\" \")","v":" "},null,null,null,{"$f":"IFERROR(VLOOKUP(P48,'CALIFICACION TOTAL'!$A$1:$B$12,2,FALSE),\" \")","v":" "}]
[]
[{"$f":"'F1. COMP.LAB Y COM COMPOR  (4)'!B45","v":0},null,{"$f":"'F1. COMP.LAB Y COM COMPOR  (4)'!E45","v":" "},null,null,{"$f":"'F1. COMP.LAB Y COM COMPOR  (4)'!L45","v":" "},null,null,null,null,null,{"$f":"IFERROR(VLOOKUP(L50,'CALIFICACION TOTAL'!$A$1:$B$12,2,FALSE),\" \")","v":" "},null,null,null,{"$f":"IFERROR(VLOOKUP(P50,'CALIFICACION TOTAL'!$A$1:$B$12,2,FALSE),\" \")","v":" "}]
[]
["CALIFICACIÓN EVALUACIÓN  DE LAS COMPETENCIAS COMPORTAMENTALES.",null,null,null,null,null,null,null,null,null,null,"CALIFICACIÓN PRIMERA PARCIAL SEMESTRAL (15%)",null,null,null,"CALIFICACIÓN SEGUNDA PARCIAL SEMESTRAL (15%)"]
[]
[null,null,null,null,null,null,null,null,null,null,null,{"$f":"((SUM(L44,L46,L48,L50)*100)/60)*0.15","v":0},null,null,null,{"$f":"((SUM(P44,P46,P48,P50)*100)/60)*0.15","v":0}]
[]
["TOTAL DIAS LABORADOS",null,null,null,null,null,null,null,null,null,null,{"$f":"IFERROR((DAYS360(DATE(F9,E9,D9),DATE(J9,I9,H9))+1),0)","v":0},null,{"$f":"IFERROR(L55/(L55+'F2. CALIFIC. COMPOR. (2)'!L55+'F2. CALIFIC. COMPOR. (3)'!L55+'F2. CALIFIC. COMPOR.'!L55+'F2. CALIFIC. COMPOR. (5)'!L55+'F2. CALIFIC. COMPOR. (6)'!L55),0)","v":0},null,{"$f":"IFERROR((DAYS360(DATE(O9,N9,M9),DATE(S9,R9,Q9))+1),0)","v":0},null,{"$f":"IFERROR(P55/(P55+'F2. CALIFIC. COMPOR. (2)'!P55+'F2. CALIFIC. COMPOR. (3)'!P55+'F2. CALIFIC. COMPOR.'!P55+'F2. CALIFIC. COMPOR. (5)'!P55+'F2. CALIFIC. COMPOR. (6)'!P55),0)","v":0}]
["CALIFICACION DEFINITIVA COMPROMISOS FUNCIONALES Y COMPORTAMENTALES",null,null,null,null,null,null,null,null,null,null,{"$f":"AVERAGE(O36+L53)","v":0},null,null,null,{"$f":"IFERROR(S36+P53,0)","v":0}]
["Archívese en: Carpeta historias laborales del funcionario"]
["GTH-FT-186/V1",null,null,null,null,null," Oficialización: 16/02/2021",null,null,null,null,null,null,"Página: 1 de 2 "]

{"sheet":"F1. COMP.LAB Y COM COMPOR  (5)","index":12,"n_rows":56,"n_cols":22,"rows_kept":56,"cut":false,"hidden":true,"merged":[[0,0,6,3],[0,4,0,14],[0,15,6,18],[1,4,1,14],[2,4,2,14],[3,4,4,14],[5,4,6,6],[5,10,6,11],[10,0,10,18],[11,0,11,1],[11,2,11,4],[11,5,11,7],[11,8,11,10],[11,11,11,14],[11,15,11,18],[7,0,9,2],[7,3,7,9],[7,10,9,11],[7,12,7,18],[8,6,9,6],[8,15,9,15],[13,0,13,3],[13,4,13,7],[13,8,13,10],[13,11,13,18],[14,0,14,3],[14,4,14,7],[14,8,14,10],[14,11,14,18],[12,0,12,1],[12,2,12,4],[12,5,12,7],[12,8,12,10],[12,11,12,14],[12,15,12,18],[15,0,15,4],[15,5,16,6],[15,7,16,18],[16,0,16,4],[17,0,17,18],[18,0,18,1],[18,2,18,4],[18,5,18,7],[18,8,18,10],[18,11,18,14],[20,0,20,3],[20,4,20,7],[20,8,20,16],[20,17,20,18],[21,0,21,3],[21,4,21,7],[21,8,21,16],[21,17,21,18],[18,15,18,18],[19,0,19,1],[19,2,19,4],[19,5,19,7],[19,8,19,10],[19,11,19,14],[19,15,19,18],[25,0,25,18],[26,0,26,18],[27,0,29,6],[27,7,29,15],[27,16,28,18],[30,0,30,6],[30,7,30,15],[22,0,22,18],[23,0,24,3],[23,4,24,4],[23,5,24,6],[23,10,24,12],[23,13,24,18],[34,0,34,6],[34,7,34,15],[35,0,35,15],[36,0,36,18],[37,1,37,3],[37,4,37,10],[37,11,37,18],[31,0,31,6],[31,7,31,15],[32,0,32,6],[32,7,32,15],[33,0,33,6],[33,7,33,15],[42,0,43,0],[42,1,43,3],[42,4,43,10],[42,11,43,18],[44,0,45,0],[44,1,45,3],[44,4,45,10],[44,11,45,18],[38,0,39,0],[38,1,39,3],[38,4,39,10],[38,11,39,18],[40,0,41,0],[40,1,41,3],[40,4,41,10],[40,11,41,18],[48,7,48,9],[48,12,48,14],[48,15,48,16],[48,17,48,18],[49,0,51,5],[49,6,51,11],[49,12,51,18],[46,0,46,18],[47,0,47,3],[47,4,47,6],[47,7,47,9],[47,10,48,11],[47,12,47,14],[47,15,47,16],[47,17,47,18],[48,0,48,3],[48,4,48,6],[54,0,54,18],[55,0,55,5],[55,6,55,12],[55,13,55,18],[52,0,52,3],[52,4,52,5],[52,6,53,11],[52,12,53,18],[53,0,53,3],[53,4,53,5]]}
[null,null,null,null," EVALUACION DE DESEMPEÑO FUNCIONARIOS PROVISIONALES Y/O DE LIBRE NOMBRAMIENTO Y REMOCIÓN"]
[null,null,null,null,"GESTIÓN ESTRATÉGICA DE TALENTO HUMANO"]
[null,null,null,null,"UNIDAD NACIONAL DE PROTECCIÓN"]
[null,null,null,null,"NOTA: FRENTE A LA EVALUACION DE DESEMPEÑO REALIZADA PARA EL PERSONAL QUE SE ENCUENTRA CON VINCULACION LABORAL DE CARÁCTER PROVISIONAL, NO PROCEDE DERECHOS DE CARRERA ADMINISTRATIVA , EL OBJETIVO ES EVALUAR Y CONTROLAR LA GESTION LABORAL DE LOS FUNCIONARIOS"]
[]
[null,null,null,null,"PERÍODO DE EVALUACIÓN                                                                                 ANUAL",null,null,"DÍA","MES","AÑO","AL",null,"DÍA","MES","AÑO"]
[null,null,null,null,null,null,null,{"$f":"'F2. CALIFIC. COMPOR. (4)'!H6","v":1},{"$f":"'F2. CALIFIC. COMPOR. (4)'!I6","v":2},{"$f":"'F2. CALIFIC. COMPOR. (4)'!J6","v":0},null,null,{"$f":"'F2. CALIFIC. COMPOR. (4)'!M6","v":31},{"$f":"'F2. CALIFIC. COMPOR. (4)'!N6","v":1},{"$f":"'F2. CALIFIC. COMPOR. (4)'!O6","v":1}]
["PERÍODO DE EVALUACIÓN",null,null,"PROCESO: EVALUACIÓN DEL DESEMPEÑO LABORAL (PRIMER SEMESTRE)",null,null,null,null,null,null,null,null,"PROCESO: EVALUACIÓN DEL DESEMPEÑO LABORAL (SEGUNDO SEMESTRE)"]
[null,null,null,"DÍA","MES","AÑO","AL","DÍA","MES","AÑO",null,null,"DÍA","MES","AÑO","AL","DÍA","MES","AÑO"]
[null,null,null,null,null,null,null,null,null,null,null,null,null,null,null,null,null,null,null,null,{"$f":"IFERROR((DAYS360(DATE(F10,E10,D10),DATE(J10,I10,H10))+1),0)","v":0},{"$f":"IFERROR((DAYS360(DATE(O10,N10,M10),DATE(S10,R10,Q10)+1)),0)","v":0}]
["I. IDENTIFICACIÓN DEL EVALUADO"]
["Tipo de Documento",null,"Número de identificación",null,null,"Primer apellido",null,null,"Segundo apellido",null,null,"Primer nombre",null,null,null,"Otros nombres"]
["CEDULA DE CIUDADANIA",null,{"$f":"'F1. COMP.LAB Y COM COMPOR'!C13","v":0},null,null,{"$f":"'F1. COMP.LAB Y COM COMPOR'!F13","v":0},null,null,{"$f":"'F1. COMP.LAB Y COM COMPOR'!I13","v":0},null,null,{"$f":"'F1. COMP.LAB Y COM COMPOR'!L13","v":0},null,null,null,{"$f":"'F1. COMP.LAB Y COM COMPOR'!P13","v":0}]
["Tipo de Vinculación",null,null,null,"Dependencia o área a la que pertenece el evaluado",null,null,null,"Grupo Funcional al que pertenece el evaluado",null,null,"Denominación del empleo"]
[]
["Nivel jerárquico",null,null,null,null,"Propósito del empleo:  "]
[]
["II. IDENTIFICACIÓN EVALUADOR. (Jefe inmediato del evaluado )"]
["Tipo de documento",null,"Número de identificación",null,null,"Primer apellido",null,null,"Segundo apellido",null,null,"Primer nombre",null,null,null,"Otros nombres"]
["CEDULA DE CIUDADANIA"]
[" Área o Dependencia a la que pertenece el evaluador",null,null,null,"Grupo Funcional al que pertenece el evaluador",null,null,null,"Denominación del empleo",null,null,null,null,null,null,null,null,"Nivel jerárquico"]
[]
["IV. PARCIALES EVENTUALES"]
["Ajuste de compromisos",null,null,null,null,"Fecha:",null,"DIA","MES","AÑO","Causales de Calificación Eventual"]
[]
["V. CONCERTACIÓN DE COMPROMISOS LABORALES Y COMPETENCIAS COMPORTAMENTALES."]
["COMPROMISOS LABORALES"]
["Metas del Área o Dependencia a las cuales contribuye el empleo",null,null,null,null,null,null,"Compromisos Laborales.",null,null,null,null,null,null,null,null,"Peso porcentual del compromiso"]
[]
[null,null,null,null,null,null,null,null,null,null,null,null,null,null,null,null,"Semestre 1","Semestre 2","Total anual"]
[null,null,null,null,null,null,null,null,null,null,null,null,null,null,null,null,null,null,{"$f":"IF(COUNTA(Q31,R31)=2,AVERAGE(Q31:R31),IF(COUNTA(Q31,R31)=1,SUM(Q31:R31),\" \"))","v":" "}]
[null,null,null,null,null,null,null,null,null,null,null,null,null,null,null,null,null,null,{"$f":"IF(COUNTA(Q32,R32)=2,AVERAGE(Q32:R32),IF(COUNTA(Q32,R32)=1,SUM(Q32:R32),\" \"))","v":" "}]
[null,null,null,null,null,null,null,null,null,null,null,null,null,null,null,null,null,null,{"$f":"IF(COUNTA(Q33,R33)=2,AVERAGE(Q33:R33),IF(COUNTA(Q33,R33)=1,SUM(Q33:R33),\" \"))","v":" "}]
[null,null,null,null,null,null,null,null,null,null,null,null,null,null,null,null,null,null,{"$f":"IF(COUNTA(Q34,R34)=2,AVERAGE(Q34:R34),IF(COUNTA(Q34,R34)=1,SUM(Q34:R34),\" \"))","v":" "}]
[null,null,null,null,null,null,null,null,null,null,null,null,null,null,null,null,null,null,{"$f":"IF(COUNTA(Q35,R35)=2,AVERAGE(Q35:R35),IF(COUNTA(Q35,R35)=1,SUM(Q35:R35),\" \"))","v":" "}]
[" PESO TOTAL PONDERADO DE LOS COMPROMISOS",null,null,null,null,null,null,null,null,null,null,null,null,null,null,null,{"$f":"IF(COUNT(Q31:Q35)<3,\"MÍNIMO TRES (03) COMPROMISOS\",IF(SUM(Q31:Q35)>1,CONCATENATE(\"ERROR!!: Sumatoria mayor a 100% (\",TEXT(SUM(Q31:Q35),\"0%)\")),IF(SUM(Q31:Q35)<1,CONCATENATE(\"ERROR!!: Sumatoria menor a 100% (\",TEXT(SUM(Q31:Q35),\"0%)\")),SUM(Q31:Q35))))","v":"MÍNIMO TRES (03) COMPROMISOS"},{"$f":"IF(COUNT(R31:R35)<3,\"MÍNIMO TRES (03) COMPROMISOS\",IF(SUM(R31:R35)>1,CONCATENATE(\"ERROR!!: Sumatoria mayor a 100% (\",TEXT(SUM(R31:R35),\"0%)\")),IF(SUM(R31:R35)<1,CONCATENATE(\"ERROR!!: Sumatoria menor a 100% (\",TEXT(SUM(R31:R35),\"0%)\")),SUM(R31:R35))))","v":"MÍNIMO TRES (03) COMPROMISOS"},{"$f":"IF(COUNT(S31:T35)<3,\"MÍNIMO TRES (03) COMPROMISOS\",IF(SUM(S31:T35)>1,CONCATENATE(\"ERROR!!: Sumatoria mayor a 100% (\",TEXT(SUM(S31:T35),\"0%)\")),IF(SUM(S31:T35)<1,CONCATENATE(\"ERROR!!: Sumatoria menor a 100% (\",TEXT(SUM(S31:T35),\"0%)\")),SUM(S31:T35))))","v":"MÍNIMO TRES (03) COMPROMISOS"}]
["VI. FIJACIÓN DE COMPETENCIAS COMPORTAMENTALES"]
["N°","COMPETENCIA",null,null,"DEFINICIÓN ",null,null,null,null,null,null,"CONDUCTAS ASOCIADAS"]
[{"$f":"IF(B39=\"\",\"1.  \",IF(AND(B39<>B41,B39<>B43,B39<>B45)=TRUE,\"1.  \",\"REPETIDA\"))","v":"1.  "},null,null,null,{"$f":"IFERROR(VLOOKUP($A$17&B39,'COMPETENCIAS COMPORTAMENTALES'!$C:$E,2,FALSE),\" \")","v":" "},null,null,null,null,null,null,{"$f":"IFERROR(VLOOKUP($A$17&B39,'COMPETENCIAS COMPORTAMENTALES'!$C:$E,3,FALSE),\" \")","v":" "}]
[]
[{"$f":"IF(B39=\"\",\"2.  \",IF(AND(B39<>B41,B41<>B43,B41<>B45)=TRUE,\"2.  \",\"REPETIDA\"))","v":"2.  "},null,null,null,{"$f":"IFERROR(VLOOKUP($A$17&B41,'COMPETENCIAS COMPORTAMENTALES'!$C:$E,2,FALSE),\" \")","v":" "},null,null,null,null,null,null,{"$f":"IFERROR(VLOOKUP($A$17&B41,'COMPETENCIAS COMPORTAMENTALES'!$C:$E,3,FALSE),\" \")","v":" "}]
[]
[{"$f":"IF(B39=\"\",\"3.  \",IF(AND(B43<>B39,B41<>B43,B43<>B45)=TRUE,\"3.  \",\"REPETIDA\"))","v":"3.  "},null,null,null,{"$f":"IFERROR(VLOOKUP($A$17&B43,'COMPETENCIAS COMPORTAMENTALES'!$C:$E,2,FALSE),\" \")","v":" "},null,null,null,null,null,null,{"$f":"IFERROR(VLOOKUP($A$17&B43,'COMPETENCIAS COMPORTAMENTALES'!$C:$E,3,FALSE),\" \")","v":" "}]
[]
[{"$f":"IF(B39=\"\",\"4.  \",IF(AND(B45<>B41,B45<>B43,B39<>B45)=TRUE,\"4.  \",\"REPETIDA\"))","v":"4.  "},null,null,null,{"$f":"IFERROR(VLOOKUP($A$17&B45,'COMPETENCIAS COMPORTAMENTALES'!$C:$E,2,FALSE),\" \")","v":" "},null,null,null,null,null,null,{"$f":"IFERROR(VLOOKUP($A$17&B45,'COMPETENCIAS COMPORTAMENTALES'!$C:$E,3,FALSE),\" \")","v":" "}]
[]
["VII. FIRMAS, RECLAMACIÓN U OBJECIÓN."]
["FIRMA DEL EVALUADO",null,null,null,"FIRMA DEL JEFE INMEDIATO",null,null,"FIRMA DEL EVALUADOR EN COMISIÓN EVALUADORA",null,null,"Renuencia del Evaluado para firmar la concertación  de compromisos",null,"DATOS DEL TESTIGO",null,null,"FIRMA DEL TESTIGO",null,"FECHA"]
[]
["RECLAMACIÓN U OBJECIÓN EN ÚNICA INSTANCIA ANTE LA COMISIÓN DE PERSONAL (Parágrafo del articulo 3º, del Acuerdo 617 de 2018)",null,null,null,null,null,"DECISIÓN DE LA COMISIÓN DE PERSONAL",null,null,null,null,null,"MOTIVACIÓN DE LA DECISIÓN"]
[]
[]
["Número de Radicado"]
["Fecha Reclamación (dd/mm/aa)"]
["Archívese en: Carpeta historias laborales del funcionario"]
["GTH-FT-186/V1",null,null,null,null,null," Oficialización: 16/02/2021",null,null,null,null,null,null,"Página: 1 de 2 "]

{"sheet":"F2. CALIFIC. COMPOR. (5)","index":13,"n_rows":58,"n_cols":19,"rows_kept":58,"cut":false,"hidden":true,"merged":[[0,0,5,3],[0,4,0,14],[0,15,5,18],[1,4,1,14],[2,4,2,14],[3,4,3,14],[4,4,5,6],[4,10,5,11],[54,11,54,12],[54,13,54,14],[54,15,54,16],[54,17,54,18],[9,0,9,18],[10,0,10,1],[10,2,10,4],[10,5,10,7],[10,8,10,10],[10,11,10,14],[10,15,10,18],[6,0,8,2],[6,3,6,9],[6,10,8,11],[6,12,6,18],[7,6,8,6],[7,15,8,15],[12,0,12,3],[12,4,12,7],[12,8,12,10],[12,11,12,18],[13,0,13,3],[13,4,13,7],[13,8,13,10],[13,11,13,18],[11,0,11,1],[11,2,11,4],[11,5,11,7],[11,8,11,10],[11,11,11,14],[11,15,11,18],[14,0,14,4],[14,5,15,6],[14,7,15,18],[15,0,15,4],[16,0,16,18],[17,0,17,1],[17,2,17,4],[17,5,17,7],[17,8,17,10],[17,11,17,14],[19,0,19,3],[19,4,19,7],[19,8,19,16],[19,17,19,18],[20,0,20,3],[20,4,20,7],[20,8,20,16],[20,17,20,18],[17,15,17,18],[18,0,18,1],[18,2,18,4],[18,5,18,7],[18,8,18,10],[18,11,18,14],[18,15,18,18],[21,0,21,18],[22,0,25,3],[22,4,25,9],[22,10,25,10],[22,11,23,18],[24,11,24,14],[24,15,24,18],[25,13,25,14],[25,17,25,18],[28,0,28,3],[28,4,28,9],[28,13,28,14],[28,17,28,18],[29,0,29,3],[29,4,29,9],[29,13,29,14],[29,17,29,18],[26,0,26,3],[26,4,26,9],[26,13,26,14],[26,17,26,18],[27,0,27,3],[27,4,27,9],[27,13,27,14],[27,17,27,18],[30,0,30,3],[30,4,30,9],[30,13,30,14],[30,17,30,18],[31,0,31,9],[31,11,32,13],[31,14,32,14],[31,15,32,17],[31,18,32,18],[32,0,32,10],[37,0,37,18],[38,0,41,1],[38,2,41,4],[38,5,41,10],[38,11,41,14],[38,15,41,18],[33,0,34,10],[33,11,33,18],[34,11,34,14],[34,15,34,18],[35,0,36,10],[35,11,36,13],[35,14,36,14],[35,15,36,17],[35,18,36,18],[44,0,45,1],[44,2,45,4],[44,5,45,10],[44,11,44,14],[44,15,44,18],[45,11,45,14],[45,15,45,18],[42,0,43,1],[42,2,43,4],[42,5,43,10],[42,11,42,14],[42,15,42,18],[43,11,43,14],[43,15,43,18],[48,0,49,1],[48,2,49,4],[48,5,49,10],[48,11,48,14],[48,15,48,18],[49,11,49,14],[49,15,49,18],[46,0,47,1],[46,2,47,4],[46,5,47,10],[46,11,46,14],[46,15,46,18],[47,11,47,14],[47,15,47,18],[56,0,56,18],[57,0,57,5],[57,6,57,12],[57,13,57,18],[55,0,55,10],[55,11,55,14],[55,15,55,18],[50,0,53,10],[50,11,51,14],[50,15,51,18],[52,11,53,14],[52,15,53,18],[54,0,54,10]]}
[null,null,null,null," EVALUACION DE DESEMPEÑO FUNCIONARIOS PROVISIONALES Y/O DE LIBRE NOMBRAMIENTO Y REMOCIÓN"]
[null,null,null,null,"GESTIÓN ESTRATÉGICA DE TALENTO HUMANO"]
[null,null,null,null,"UNIDAD NACIONAL DE PROTECCIÓN"]
[null,null,null,null,"NOTA: FRENTE A LA EVALUACION DE DESEMPEÑO REALIZADA PARA EL PERSONAL QUE SE ENCUENTRA CON VINCULACION LABORAL DE CARÁCTER PROVISIONAL, NO PROCEDE DERECHOS DE CARRERA ADMINISTRATIVA , EL OBJETIVO ES EVALUAR Y CONTROLAR LA GESTION LABORAL DE LOS FUNCIONARIOS"]
[null,null,null,null,"PERÍODO DE EVALUACIÓN                                                                                 ANUAL",null,null,"DÍA","MES","AÑO","AL",null,"DÍA","MES","AÑO"]
[null,null,null,null,null,null,null,{"$f":"'F1. COMP.LAB Y COM COMPOR  (5)'!H7","v":1},{"$f":"'F1. COMP.LAB Y COM COMPOR  (5)'!I7","v":2},{"$f":"'F1. COMP.LAB Y COM COMPOR  (5)'!J7","v":0},null,null,{"$f":"'F1. COMP.LAB Y COM COMPOR  (5)'!M7","v":31},{"$f":"'F1. COMP.LAB Y COM COMPOR  (5)'!N7","v":1},{"$f":"'F1. COMP.LAB Y COM COMPOR  (5)'!O7","v":1}]
["PERÍODO DE EVALUACIÓN",null,null,"PROCESO: EVALUACIÓN DEL DESEMPEÑO LABORAL (PRIMER SEMESTRE)",null,null,null,null,null,null,null,null,"PROCESO: EVALUACIÓN DEL DESEMPEÑO LABORAL (SEGUNDO SEMESTRE)"]
[null,null,null,"DÍA","MES","AÑO","AL","DÍA","MES","AÑO",null,null,"DÍA","MES","AÑO","AL","DÍA","MES","AÑO"]
[null,null,null,{"$f":"'F1. COMP.LAB Y COM COMPOR  (5)'!D10","v":0},{"$f":"'F1. COMP.LAB Y COM COMPOR  (5)'!E10","v":0},{"$f":"'F1. COMP.LAB Y COM COMPOR  (5)'!F10","v":0},null,{"$f":"'F1. COMP.LAB Y COM COMPOR  (5)'!H10","v":0},{"$f":"'F1. COMP.LAB Y COM COMPOR  (5)'!I10","v":0},{"$f":"'F1. COMP.LAB Y COM COMPOR  (5)'!J10","v":0},null,null,{"$f":"'F1. COMP.LAB Y COM COMPOR  (5)'!M10","v":0},{"$f":"'F1. COMP.LAB Y COM COMPOR  (5)'!N10","v":0},{"$f":"'F1. COMP.LAB Y COM COMPOR  (5)'!O10","v":0},null,{"$f":"'F1. COMP.LAB Y COM COMPOR  (5)'!Q10","v":0},{"$f":"'F1. COMP.LAB Y COM COMPOR  (5)'!R10","v":0},{"$f":"'F1. COMP.LAB Y COM COMPOR  (5)'!S10","v":0}]
["I. IDENTIFICACIÓN DEL EVALUADO"]
["Tipo de Documento",null,"Número de identificación",null,null,"Primer apellido",null,null,"Segundo apellido",null,null,"Primer nombre",null,null,null,"Otros nombres"]
["CEDULA DE CIUDADANIA",null,{"$f":"'F1. COMP.LAB Y COM COMPOR  (5)'!C13","v":0},null,null,{"$f":"'F1. COMP.LAB Y COM COMPOR  (5)'!F13","v":0},null,null,{"$f":"'F1. COMP.LAB Y COM COMPOR  (5)'!I13","v":0},null,null,{"$f":"'F1. COMP.LAB Y COM COMPOR  (5)'!L13","v":0},null,null,null,{"$f":"'F1. COMP.LAB Y COM COMPOR  (5)'!P13","v":0}]
["TIPO DE VINCULACION",null,null,null,"Dependencia o área a la que pertenece el evaluado",null,null,null,"Grupo Funcional al que pertenece el evaluado",null,null,"Denominación del empleo"]
[{"$f":"'F1. COMP.LAB Y COM COMPOR  (5)'!A15","v":0},null,null,null,{"$f":"'F1. COMP.LAB Y COM COMPOR  (5)'!E15","v":0},null,null,null,{"$f":"'F1. COMP.LAB Y COM COMPOR  (5)'!I15","v":0},null,null,{"$f":"'F1. COMP.LAB Y COM COMPOR  (5)'!L15","v":0}]
["Nivel jerárquico",null,null,null,null,"Propósito del empleo:  ",null,{"$f":"'F1. COMP.LAB Y COM COMPOR  (5)'!H16","v":0}]
[{"$f":"'F1. COMP.LAB Y COM COMPOR  (5)'!A17","v":0}]
["II. IDENTIFICACIÓN EVALUADOR. (Jefe inmediato del evaluado )"]
["Tipo de documento",null,"Número de identificación",null,null,"Primer apellido",null,null,"Segundo apellido",null,null,"Primer nombre",null,null,null,"Otros nombres"]
["CEDULA DE CIUDADANIA",null,{"$f":"'F1. COMP.LAB Y COM COMPOR  (5)'!C20","v":0},null,null,{"$f":"'F1. COMP.LAB Y COM COMPOR  (5)'!F20","v":0},null,null,{"$f":"'F1. COMP.LAB Y COM COMPOR  (5)'!I20","v":0},null,null,{"$f":"'F1. COMP.LAB Y COM COMPOR  (5)'!L20","v":0},null,null,null,{"$f":"'F1. COMP.LAB Y COM COMPOR  (5)'!P20","v":0}]
[" Área o Dependencia a la que pertenece el evaluador",null,null,null,"Grupo Funcional al que pertenece el evaluador",null,null,null,"Denominación del empleo",null,null,null,null,null,null,null,null,"Nivel jerárquico"]
[{"$f":"'F1. COMP.LAB Y COM COMPOR  (5)'!A22","v":0},null,null,null,{"$f":"'F1. COMP.LAB Y COM COMPOR  (5)'!E22","v":0},null,null,null,{"$f":"'F1. COMP.LAB Y COM COMPOR  (5)'!I22","v":0},null,null,null,null,null,null,null,null,{"$f":"'F1. COMP.LAB Y COM COMPOR  (5)'!R22","v":0}]
["III. COMPROMISOS LABORALES"]
["Metas de la Dependencia a las cuales contribuye el empleo",null,null,null,"Compromisos Laborales.",null,null,null,null,null,"Peso porcentual del compromiso en el año","Porcentaje de Cumplimiento. "]
[]
[null,null,null,null,null,null,null,null,null,null,null,"PRIMERA PARCIAL SEMESTRAL",null,null,null,"SEGUNDA PARCIAL SEMESTRAL"]
[null,null,null,null,null,null,null,null,null,null,null,"porcentaje de cumplimiento de objetivo logrado","CALIFICACIÓN DEL COMPROMISO","UBICACIÓN PORTAFOLIO DE EVIDENCIAS",null,"porcentaje de cumplimiento de objetivo logrado","CALIFICACIÓN DEL COMPROMISO","UBICACIÓN PORTAFOLIO DE EVIDENCIAS"]
[{"$f":"'F1. COMP.LAB Y COM COMPOR  (5)'!A31","v":0},null,null,null,{"$f":"'F1. COMP.LAB Y COM COMPOR  (5)'!H31","v":0},null,null,null,null,null,{"$f":"'F1. COMP.LAB Y COM COMPOR  (5)'!S31","v":" "},{"$f":"IFERROR(M27*K27/100,\" \")","v":" "},null,null,null,{"$f":"IFERROR(K27*Q27/100,\" \")","v":" "}]
[{"$f":"'F1. COMP.LAB Y COM COMPOR  (5)'!A32","v":0},null,null,null,{"$f":"'F1. COMP.LAB Y COM COMPOR  (5)'!H32","v":0},null,null,null,null,null,{"$f":"'F1. COMP.LAB Y COM COMPOR  (5)'!S32","v":" "},{"$f":"IFERROR(M28*K28/100,\" \")","v":" "},null,null,null,{"$f":"IFERROR(K28*Q28/100,\" \")","v":" "}]
[{"$f":"'F1. COMP.LAB Y COM COMPOR  (5)'!A33","v":0},null,null,null,{"$f":"'F1. COMP.LAB Y COM COMPOR  (5)'!H33","v":0},null,null,null,null,null,{"$f":"'F1. COMP.LAB Y COM COMPOR  (5)'!S33","v":" "},{"$f":"IFERROR(M29*K29/100,\" \")","v":" "},null,null,null,{"$f":"IFERROR(K29*Q29/100,\" \")","v":" "}]
[{"$f":"'F1. COMP.LAB Y COM COMPOR  (5)'!A34","v":0},null,null,null,{"$f":"'F1. COMP.LAB Y COM COMPOR  (5)'!H34","v":0},null,null,null,null,null,{"$f":"'F1. COMP.LAB Y COM COMPOR  (5)'!S34","v":" "},{"$f":"IFERROR(M30*K30/100,\" \")","v":" "},null,null,null,{"$f":"IFERROR(K30*Q30/100,\" \")","v":" "}]
[{"$f":"'F1. COMP.LAB Y COM COMPOR  (5)'!A35","v":0},null,null,null,{"$f":"'F1. COMP.LAB Y COM COMPOR  (5)'!H35","v":0},null,null,null,null,null,{"$f":"'F1. COMP.LAB Y COM COMPOR  (5)'!S35","v":" "},{"$f":"IFERROR(M31*K31/100,\" \")","v":" "},null,null,null,{"$f":"IFERROR(K31*Q31/100,\" \")","v":" "}]
[" TOTALES",null,null,null,null,null,null,null,null,null,{"$f":"SUM(K27:K31)","v":0},"Resultado total ",null,null,{"$f":"IFERROR(AVERAGE(M27:M31),0)","v":0},"Resultado total ",null,null,{"$f":"IFERROR(AVERAGE(Q27:Q31),0)","v":0}]
["TOTAL SEMESTRAL"]
["Calificaciones parciales semestrales compromisos laborales ",null,null,null,null,null,null,null,null,null,null,"Calificación total"]
[null,null,null,null,null,null,null,null,null,null,null,"Calificacion primer parcial",null,null,null,"Calificacion Segundo parcial"]
["CALIFICACIÒN TOTAL DE LOS COMPROMISOS LABORALES",null,null,null,null,null,null,null,null,null,null,"Peso porcentual del 85%",null,null,{"$f":"AVERAGE(O32*85%)","v":0},"Peso porcentual del 85%",null,null,{"$f":"AVERAGE(S32*85%)","v":0}]
[]
["IV. CALIFICACIÓN COMPETENCIAS COMPORTAMENTALES DEL EMPLEADO PÚBLICO."]
["COMPETENCIA",null,"DEFINICIÓN ",null,null,"CONDUCTAS ASOCIADAS",null,null,null,null,null," PRIMERA PARCIAL SEMESTRAL",null,null,null,"SEGUNDA PARCIAL SEMESTRAL"]
[]
[]
[]
[{"$f":"'F1. COMP.LAB Y COM COMPOR  (5)'!B39","v":0},null,{"$f":"'F1. COMP.LAB Y COM COMPOR  (5)'!E39","v":" "},null,null,{"$f":"'F1. COMP.LAB Y COM COMPOR  (5)'!L39","v":" "},null,null,null,null,null,{"$f":"IFERROR(VLOOKUP(L44,'CALIFICACION TOTAL'!$A$1:$B$12,2,FALSE),\" \")","v":" "},null,null,null,{"$f":"IFERROR(VLOOKUP(P44,'CALIFICACION TOTAL'!$A$1:$B$12,2,FALSE),\" \")","v":" "}]
[]
[{"$f":"'F1. COMP.LAB Y COM COMPOR  (5)'!B41","v":0},null,{"$f":"'F1. COMP.LAB Y COM COMPOR  (5)'!E41","v":" "},null,null,{"$f":"'F1. COMP.LAB Y COM COMPOR  (5)'!L41","v":" "},null,null,null,null,null,{"$f":"IFERROR(VLOOKUP(L46,'CALIFICACION TOTAL'!$A$1:$B$12,2,FALSE),\" \")","v":" "},null,null,null,{"$f":"IFERROR(VLOOKUP(P46,'CALIFICACION TOTAL'!$A$1:$B$12,2,FALSE),\" \")","v":" "}]
[]
[{"$f":"'F1. COMP.LAB Y COM COMPOR  (5)'!B43","v":0},null,{"$f":"'F1. COMP.LAB Y COM COMPOR  (5)'!E43","v":" "},null,null,{"$f":"'F1. COMP.LAB Y COM COMPOR  (5)'!L43","v":" "},null,null,null,null,null,{"$f":"IFERROR(VLOOKUP(L48,'CALIFICACION TOTAL'!$A$1:$B$12,2,FALSE),\" \")","v":" "},null,null,null,{"$f":"IFERROR(VLOOKUP(P48,'CALIFICACION TOTAL'!$A$1:$B$12,2,FALSE),\" \")","v":" "}]
[]
[{"$f":"'F1. COMP.LAB Y COM COMPOR  (5)'!B45","v":0},null,{"$f":"'F1. COMP.LAB Y COM COMPOR  (5)'!E45","v":" "},null,null,{"$f":"'F1. COMP.LAB Y COM COMPOR  (5)'!L45","v":" "},null,null,null,null,null,{"$f":"IFERROR(VLOOKUP(L50,'CALIFICACION TOTAL'!$A$1:$B$12,2,FALSE),\" \")","v":" "},null,null,null,{"$f":"IFERROR(VLOOKUP(P50,'CALIFICACION TOTAL'!$A$1:$B$12,2,FALSE),\" \")","v":" "}]
[]
["CALIFICACIÓN EVALUACIÓN  DE LAS COMPETENCIAS COMPORTAMENTALES.",null,null,null,null,null,null,null,null,null,null,"CALIFICACIÓN PRIMERA PARCIAL SEMESTRAL (15%)",null,null,null,"CALIFICACIÓN SEGUNDA PARCIAL SEMESTRAL (15%)"]
[]
[null,null,null,null,null,null,null,null,null,null,null,{"$f":"((SUM(L44,L46,L48,L50)*100)/60)*0.15","v":0},null,null,null,{"$f":"((SUM(P44,P46,P48,P50)*100)/60)*0.15","v":0}]
[]
["TOTAL DIAS LABORADOS",null,null,null,null,null,null,null,null,null,null,{"$f":"IFERROR((DAYS360(DATE(F9,E9,D9),DATE(J9,I9,H9))+1),0)","v":0},null,{"$f":"IFERROR(L55/(L55+'F2. CALIFIC. COMPOR. (2)'!L55+'F2. CALIFIC. COMPOR. (3)'!L55+'F2. CALIFIC. COMPOR. (4)'!L55+'F2. CALIFIC. COMPOR.'!L55+'F2. CALIFIC. COMPOR. (6)'!L55),0)","v":0},null,{"$f":"IFERROR((DAYS360(DATE(O9,N9,M9),DATE(S9,R9,Q9))+1),0)","v":0},null,{"$f":"IFERROR(P55/(P55+'F2. CALIFIC. COMPOR. (2)'!P55+'F2. CALIFIC. COMPOR. (3)'!P55+'F2. CALIFIC. COMPOR. (4)'!P55+'F2. CALIFIC. COMPOR.'!P55+'F2. CALIFIC. COMPOR. (6)'!P55),0)","v":0}]
["CALIFICACION DEFINITIVA COMPROMISOS FUNCIONALES Y COMPORTAMENTALES",null,null,null,null,null,null,null,null,null,null,{"$f":"AVERAGE(O36+L53)","v":0},null,null,null,{"$f":"IFERROR(S36+P53,0)","v":0}]
["Archívese en: Carpeta historias laborales del funcionario"]
["GTH-FT-186/V1",null,null,null,null,null," Oficialización: 16/02/2021",null,null,null,null,null,null,"Página: 1 de 2 "]

{"sheet":"F1. COMP.LAB Y COM COMPOR  (6)","index":14,"n_rows":56,"n_cols":22,"rows_kept":56,"cut":false,"hidden":true,"merged":[[0,0,6,3],[0,4,0,14],[0,15,6,18],[1,4,1,14],[2,4,2,14],[3,4,4,14],[5,4,6,6],[5,10,6,11],[10,0,10,18],[11,0,11,1],[11,2,11,4],[11,5,11,7],[11,8,11,10],[11,11,11,14],[11,15,11,18],[7,0,9,2],[7,3,7,9],[7,10,9,11],[7,12,7,18],[8,6,9,6],[8,15,9,15],[13,0,13,3],[13,4,13,7],[13,8,13,10],[13,11,13,18],[14,0,14,3],[14,4,14,7],[14,8,14,10],[14,11,14,18],[12,0,12,1],[12,2,12,4],[12,5,12,7],[12,8,12,10],[12,11,12,14],[12,15,12,18],[15,0,15,4],[15,5,16,6],[15,7,16,18],[16,0,16,4],[17,0,17,18],[18,0,18,1],[18,2,18,4],[18,5,18,7],[18,8,18,10],[18,11,18,14],[20,0,20,3],[20,4,20,7],[20,8,20,16],[20,17,20,18],[21,0,21,3],[21,4,21,7],[21,8,21,16],[21,17,21,18],[18,15,18,18],[19,0,19,1],[19,2,19,4],[19,5,19,7],[19,8,19,10],[19,11,19,14],[19,15,19,18],[25,0,25,18],[26,0,26,18],[27,0,29,6],[27,7,29,15],[27,16,28,18],[30,0,30,6],[30,7,30,15],[22,0,22,18],[23,0,24,3],[23,4,24,4],[23,5,24,6],[23,10,24,12],[23,13,24,18],[34,0,34,6],[34,7,34,15],[35,0,35,15],[36,0,36,18],[37,1,37,3],[37,4,37,10],[37,11,37,18],[31,0,31,6],[31,7,31,15],[32,0,32,6],[32,7,32,15],[33,0,33,6],[33,7,33,15],[42,0,43,0],[42,1,43,3],[42,4,43,10],[42,11,43,18],[44,0,45,0],[44,1,45,3],[44,4,45,10],[44,11,45,18],[38,0,39,0],[38,1,39,3],[38,4,39,10],[38,11,39,18],[40,0,41,0],[40,1,41,3],[40,4,41,10],[40,11,41,18],[48,7,48,9],[48,12,48,14],[48,15,48,16],[48,17,48,18],[49,0,51,5],[49,6,51,11],[49,12,51,18],[46,0,46,18],[47,0,47,3],[47,4,47,6],[47,7,47,9],[47,10,48,11],[47,12,47,14],[47,15,47,16],[47,17,47,18],[48,0,48,3],[48,4,48,6],[54,0,54,18],[55,0,55,5],[55,6,55,12],[55,13,55,18],[52,0,52,3],[52,4,52,5],[52,6,53,11],[52,12,53,18],[53,0,53,3],[53,4,53,5]]}
[null,null,null,null," EVALUACION DE DESEMPEÑO FUNCIONARIOS PROVISIONALES Y/O DE LIBRE NOMBRAMIENTO Y REMOCIÓN"]
[null,null,null,null,"GESTIÓN ESTRATÉGICA DE TALENTO HUMANO"]
[null,null,null,null,"UNIDAD NACIONAL DE PROTECCIÓN"]
[null,null,null,null,"NOTA: FRENTE A LA EVALUACION DE DESEMPEÑO REALIZADA PARA EL PERSONAL QUE SE ENCUENTRA CON VINCULACION LABORAL DE CARÁCTER PROVISIONAL, NO PROCEDE DERECHOS DE CARRERA ADMINISTRATIVA , EL OBJETIVO ES EVALUAR Y CONTROLAR LA GESTION LABORAL DE LOS FUNCIONARIOS"]
[]
[null,null,null,null,"PERÍODO DE EVALUACIÓN                                                                                 ANUAL",null,null,"DÍA","MES","AÑO","AL",null,"DÍA","MES","AÑO"]
[null,null,null,null,null,null,null,{"$f":"'F2. CALIFIC. COMPOR. (5)'!H6","v":1},{"$f":"'F2. CALIFIC. COMPOR. (5)'!I6","v":2},{"$f":"'F2. CALIFIC. COMPOR. (5)'!J6","v":0},null,null,{"$f":"'F2. CALIFIC. COMPOR. (5)'!M6","v":31},{"$f":"'F2. CALIFIC. COMPOR. (5)'!N6","v":1},{"$f":"'F2. CALIFIC. COMPOR. (5)'!O6","v":1}]
["PERÍODO DE EVALUACIÓN",null,null,"PROCESO: EVALUACIÓN DEL DESEMPEÑO LABORAL (PRIMER SEMESTRE)",null,null,null,null,null,null,null,null,"PROCESO: EVALUACIÓN DEL DESEMPEÑO LABORAL (SEGUNDO SEMESTRE)"]
[null,null,null,"DÍA","MES","AÑO","AL","DÍA","MES","AÑO",null,null,"DÍA","MES","AÑO","AL","DÍA","MES","AÑO"]
[null,null,null,null,null,null,null,null,null,null,null,null,null,null,null,null,null,null,null,null,{"$f":"IFERROR((DAYS360(DATE(F10,E10,D10),DATE(J10,I10,H10))+1),0)","v":0},{"$f":"IFERROR((DAYS360(DATE(O10,N10,M10),DATE(S10,R10,Q10)+1)),0)","v":0}]
["I. IDENTIFICACIÓN DEL EVALUADO"]
["Tipo de Documento",null,"Número de identificación",null,null,"Primer apellido",null,null,"Segundo apellido",null,null,"Primer nombre",null,null,null,"Otros nombres"]
["CEDULA DE CIUDADANIA",null,{"$f":"'F1. COMP.LAB Y COM COMPOR'!C13","v":0},null,null,{"$f":"'F1. COMP.LAB Y COM COMPOR'!F13","v":0},null,null,{"$f":"'F1. COMP.LAB Y COM COMPOR'!I13","v":0},null,null,{"$f":"'F1. COMP.LAB Y COM COMPOR'!L13","v":0},null,null,null,{"$f":"'F1. COMP.LAB Y COM COMPOR'!P13","v":0}]
["Tipo de Vinculación",null,null,null,"Dependencia o área a la que pertenece el evaluado",null,null,null,"Grupo Funcional al que pertenece el evaluado",null,null,"Denominación del empleo"]
[]
["Nivel jerárquico",null,null,null,null,"Propósito del empleo:  "]
[]
["II. IDENTIFICACIÓN EVALUADOR. (Jefe inmediato del evaluado )"]
["Tipo de documento",null,"Número de identificación",null,null,"Primer apellido",null,null,"Segundo apellido",null,null,"Primer nombre",null,null,null,"Otros nombres"]
["CEDULA DE CIUDADANIA"]
[" Área o Dependencia a la que pertenece el evaluador",null,null,null,"Grupo Funcional al que pertenece el evaluador",null,null,null,"Denominación del empleo",null,null,null,null,null,null,null,null,"Nivel jerárquico"]
[]
["IV. PARCIALES EVENTUALES"]
["Ajuste de compromisos",null,null,null,null,"Fecha:",null,"DIA","MES","AÑO","Causales de Calificación Eventual"]
[]
["V. CONCERTACIÓN DE COMPROMISOS LABORALES Y COMPETENCIAS COMPORTAMENTALES."]
["COMPROMISOS LABORALES"]
["Metas del Área o Dependencia a las cuales contribuye el empleo",null,null,null,null,null,null,"Compromisos Laborales.",null,null,null,null,null,null,null,null,"Peso porcentual del compromiso"]
[]
[null,null,null,null,null,null,null,null,null,null,null,null,null,null,null,null,"Semestre 1","Semestre 2","Total anual"]
[null,null,null,null,null,null,null,null,null,null,null,null,null,null,null,null,null,null,{"$f":"IF(COUNTA(Q31,R31)=2,AVERAGE(Q31:R31),IF(COUNTA(Q31,R31)=1,SUM(Q31:R31),\" \"))","v":" "}]
[null,null,null,null,null,null,null,null,null,null,null,null,null,null,null,null,null,null,{"$f":"IF(COUNTA(Q32,R32)=2,AVERAGE(Q32:R32),IF(COUNTA(Q32,R32)=1,SUM(Q32:R32),\" \"))","v":" "}]
[null,null,null,null,null,null,null,null,null,null,null,null,null,null,null,null,null,null,{"$f":"IF(COUNTA(Q33,R33)=2,AVERAGE(Q33:R33),IF(COUNTA(Q33,R33)=1,SUM(Q33:R33),\" \"))","v":" "}]
[null,null,null,null,null,null,null,null,null,null,null,null,null,null,null,null,null,null,{"$f":"IF(COUNTA(Q34,R34)=2,AVERAGE(Q34:R34),IF(COUNTA(Q34,R34)=1,SUM(Q34:R34),\" \"))","v":" "}]
[null,null,null,null,null,null,null,null,null,null,null,null,null,null,null,null,null,null,{"$f":"IF(COUNTA(Q35,R35)=2,AVERAGE(Q35:R35),IF(COUNTA(Q35,R35)=1,SUM(Q35:R35),\" \"))","v":" "}]
[" PESO TOTAL PONDERADO DE LOS COMPROMISOS",null,null,null,null,null,null,null,null,null,null,null,null,null,null,null,{"$f":"IF(COUNT(Q31:Q35)<3,\"MÍNIMO TRES (03) COMPROMISOS\",IF(SUM(Q31:Q35)>1,CONCATENATE(\"ERROR!!: Sumatoria mayor a 100% (\",TEXT(SUM(Q31:Q35),\"0%)\")),IF(SUM(Q31:Q35)<1,CONCATENATE(\"ERROR!!: Sumatoria menor a 100% (\",TEXT(SUM(Q31:Q35),\"0%)\")),SUM(Q31:Q35))))","v":"MÍNIMO TRES (03) COMPROMISOS"},{"$f":"IF(COUNT(R31:R35)<3,\"MÍNIMO TRES (03) COMPROMISOS\",IF(SUM(R31:R35)>1,CONCATENATE(\"ERROR!!: Sumatoria mayor a 100% (\",TEXT(SUM(R31:R35),\"0%)\")),IF(SUM(R31:R35)<1,CONCATENATE(\"ERROR!!: Sumatoria menor a 100% (\",TEXT(SUM(R31:R35),\"0%)\")),SUM(R31:R35))))","v":"MÍNIMO TRES (03) COMPROMISOS"},{"$f":"IF(COUNT(S31:T35)<3,\"MÍNIMO TRES (03) COMPROMISOS\",IF(SUM(S31:T35)>1,CONCATENATE(\"ERROR!!: Sumatoria mayor a 100% (\",TEXT(SUM(S31:T35),\"0%)\")),IF(SUM(S31:T35)<1,CONCATENATE(\"ERROR!!: Sumatoria menor a 100% (\",TEXT(SUM(S31:T35),\"0%)\")),SUM(S31:T35))))","v":"MÍNIMO TRES (03) COMPROMISOS"}]
["VI. FIJACIÓN DE COMPETENCIAS COMPORTAMENTALES"]
["N°","COMPETENCIA",null,null,"DEFINICIÓN ",null,null,null,null,null,null,"CONDUCTAS ASOCIADAS"]
[{"$f":"IF(B39=\"\",\"1.  \",IF(AND(B39<>B41,B39<>B43,B39<>B45)=TRUE,\"1.  \",\"REPETIDA\"))","v":"1.  "},null,null,null,{"$f":"IFERROR(VLOOKUP($A$17&B39,'COMPETENCIAS COMPORTAMENTALES'!$C:$E,2,FALSE),\" \")","v":" "},null,null,null,null,null,null,{"$f":"IFERROR(VLOOKUP($A$17&B39,'COMPETENCIAS COMPORTAMENTALES'!$C:$E,3,FALSE),\" \")","v":" "}]
[]
[{"$f":"IF(B39=\"\",\"2.  \",IF(AND(B39<>B41,B41<>B43,B41<>B45)=TRUE,\"2.  \",\"REPETIDA\"))","v":"2.  "},null,null,null,{"$f":"IFERROR(VLOOKUP($A$17&B41,'COMPETENCIAS COMPORTAMENTALES'!$C:$E,2,FALSE),\" \")","v":" "},null,null,null,null,null,null,{"$f":"IFERROR(VLOOKUP($A$17&B41,'COMPETENCIAS COMPORTAMENTALES'!$C:$E,3,FALSE),\" \")","v":" "}]
[]
[{"$f":"IF(B39=\"\",\"3.  \",IF(AND(B43<>B39,B41<>B43,B43<>B45)=TRUE,\"3.  \",\"REPETIDA\"))","v":"3.  "},null,null,null,{"$f":"IFERROR(VLOOKUP($A$17&B43,'COMPETENCIAS COMPORTAMENTALES'!$C:$E,2,FALSE),\" \")","v":" "},null,null,null,null,null,null,{"$f":"IFERROR(VLOOKUP($A$17&B43,'COMPETENCIAS COMPORTAMENTALES'!$C:$E,3,FALSE),\" \")","v":" "}]
[]
[{"$f":"IF(B39=\"\",\"4.  \",IF(AND(B45<>B41,B45<>B43,B39<>B45)=TRUE,\"4.  \",\"REPETIDA\"))","v":"4.  "},null,null,null,{"$f":"IFERROR(VLOOKUP($A$17&B45,'COMPETENCIAS COMPORTAMENTALES'!$C:$E,2,FALSE),\" \")","v":" "},null,null,null,null,null,null,{"$f":"IFERROR(VLOOKUP($A$17&B45,'COMPETENCIAS COMPORTAMENTALES'!$C:$E,3,FALSE),\" \")","v":" "}]
[]
["VII. FIRMAS, RECLAMACIÓN U OBJECIÓN."]
["FIRMA DEL EVALUADO",null,null,null,"FIRMA DEL JEFE INMEDIATO",null,null,"FIRMA DEL EVALUADOR EN COMISIÓN EVALUADORA",null,null,"Renuencia del Evaluado para firmar la concertación  de compromisos",null,"DATOS DEL TESTIGO",null,null,"FIRMA DEL TESTIGO",null,"FECHA"]
[]
["RECLAMACIÓN U OBJECIÓN EN ÚNICA INSTANCIA ANTE LA COMISIÓN DE PERSONAL (Parágrafo del articulo 3º, del Acuerdo 617 de 2018)",null,null,null,null,null,"DECISIÓN DE LA COMISIÓN DE PERSONAL",null,null,null,null,null,"MOTIVACIÓN DE LA DECISIÓN"]
[]
[]
["Número de Radicado"]
["Fecha Reclamación (dd/mm/aa)"]
["Archívese en: Carpeta historias laborales del funcionario"]
["GTH-FT-186/V1",null,null,null,null,null," Oficialización: 16/02/2021",null,null,null,null,null,null,"Página: 1 de 2 "]

{"sheet":"F2. CALIFIC. COMPOR. (6)","index":15,"n_rows":58,"n_cols":19,"rows_kept":58,"cut":false,"hidden":true,"merged":[[0,0,5,3],[0,4,0,14],[0,15,5,18],[1,4,1,14],[2,4,2,14],[3,4,3,14],[4,4,5,6],[4,10,5,11],[54,11,54,12],[54,13,54,14],[54,15,54,16],[54,17,54,18],[9,0,9,18],[10,0,10,1],[10,2,10,4],[10,5,10,7],[10,8,10,10],[10,11,10,14],[10,15,10,18],[6,0,8,2],[6,3,6,9],[6,10,8,11],[6,12,6,18],[7,6,8,6],[7,15,8,15],[12,0,12,3],[12,4,12,7],[12,8,12,10],[12,11,12,18],[13,0,13,3],[13,4,13,7],[13,8,13,10],[13,11,13,18],[11,0,11,1],[11,2,11,4],[11,5,11,7],[11,8,11,10],[11,11,11,14],[11,15,11,18],[14,0,14,4],[14,5,15,6],[14,7,15,18],[15,0,15,4],[16,0,16,18],[17,0,17,1],[17,2,17,4],[17,5,17,7],[17,8,17,10],[17,11,17,14],[19,0,19,3],[19,4,19,7],[19,8,19,16],[19,17,19,18],[20,0,20,3],[20,4,20,7],[20,8,20,16],[20,17,20,18],[17,15,17,18],[18,0,18,1],[18,2,18,4],[18,5,18,7],[18,8,18,10],[18,11,18,14],[18,15,18,18],[21,0,21,18],[22,0,25,3],[22,4,25,9],[22,10,25,10],[22,11,23,18],[24,11,24,14],[24,15,24,18],[25,13,25,14],[25,17,25,18],[28,0,28,3],[28,4,28,9],[28,13,28,14],[28,17,28,18],[29,0,29,3],[29,4,29,9],[29,13,29,14],[29,17,29,18],[26,0,26,3],[26,4,26,9],[26,13,26,14],[26,17,26,18],[27,0,27,3],[27,4,27,9],[27,13,27,14],[27,17,27,18],[30,0,30,3],[30,4,30,9],[30,13,30,14],[30,17,30,18],[31,0,31,9],[31,11,32,13],[31,14,32,14],[31,15,32,17],[31,18,32,18],[32,0,32,10],[37,0,37,18],[38,0,41,1],[38,2,41,4],[38,5,41,10],[38,11,41,14],[38,15,41,18],[33,0,34,10],[33,11,33,18],[34,11,34,14],[34,15,34,18],[35,0,36,10],[35,11,36,13],[35,14,36,14],[35,15,36,17],[35,18,36,18],[44,0,45,1],[44,2,45,4],[44,5,45,10],[44,11,44,14],[44,15,44,18],[45,11,45,14],[45,15,45,18],[42,0,43,1],[42,2,43,4],[42,5,43,10],[42,11,42,14],[42,15,42,18],[43,11,43,14],[43,15,43,18],[48,0,49,1],[48,2,49,4],[48,5,49,10],[48,11,48,14],[48,15,48,18],[49,11,49,14],[49,15,49,18],[46,0,47,1],[46,2,47,4],[46,5,47,10],[46,11,46,14],[46,15,46,18],[47,11,47,14],[47,15,47,18],[56,0,56,18],[57,0,57,5],[57,6,57,12],[57,13,57,18],[55,0,55,10],[55,11,55,14],[55,15,55,18],[50,0,53,10],[50,11,51,14],[50,15,51,18],[52,11,53,14],[52,15,53,18],[54,0,54,10]]}
[null,null,null,null," EVALUACION DE DESEMPEÑO FUNCIONARIOS PROVISIONALES Y/O DE LIBRE NOMBRAMIENTO Y REMOCIÓN"]
[null,null,null,null,"GESTIÓN ESTRATÉGICA DE TALENTO HUMANO"]
[null,null,null,null,"UNIDAD NACIONAL DE PROTECCIÓN"]
[null,null,null,null,"NOTA: FRENTE A LA EVALUACION DE DESEMPEÑO REALIZADA PARA EL PERSONAL QUE SE ENCUENTRA CON VINCULACION LABORAL DE CARÁCTER PROVISIONAL, NO PROCEDE DERECHOS DE CARRERA ADMINISTRATIVA , EL OBJETIVO ES EVALUAR Y CONTROLAR LA GESTION LABORAL DE LOS FUNCIONARIOS"]
[null,null,null,null,"PERÍODO DE EVALUACIÓN                                                                                 ANUAL",null,null,"DÍA","MES","AÑO","AL",null,"DÍA","MES","AÑO"]
[null,null,null,null,null,null,null,{"$f":"'F1. COMP.LAB Y COM COMPOR  (6)'!H7","v":1},{"$f":"'F1. COMP.LAB Y COM COMPOR  (6)'!I7","v":2},{"$f":"'F1. COMP.LAB Y COM COMPOR  (6)'!J7","v":0},null,null,{"$f":"'F1. COMP.LAB Y COM COMPOR  (6)'!M7","v":31},{"$f":"'F1. COMP.LAB Y COM COMPOR  (6)'!N7","v":1},{"$f":"'F1. COMP.LAB Y COM COMPOR  (6)'!O7","v":1}]
["PERÍODO DE EVALUACIÓN",null,null,"PROCESO: EVALUACIÓN DEL DESEMPEÑO LABORAL (PRIMER SEMESTRE)",null,null,null,null,null,null,null,null,"PROCESO: EVALUACIÓN DEL DESEMPEÑO LABORAL (SEGUNDO SEMESTRE)"]
[null,null,null,"DÍA","MES","AÑO","AL","DÍA","MES","AÑO",null,null,"DÍA","MES","AÑO","AL","DÍA","MES","AÑO"]
[null,null,null,{"$f":"'F1. COMP.LAB Y COM COMPOR  (6)'!D10","v":0},{"$f":"'F1. COMP.LAB Y COM COMPOR  (6)'!E10","v":0},{"$f":"'F1. COMP.LAB Y COM COMPOR  (6)'!F10","v":0},null,{"$f":"'F1. COMP.LAB Y COM COMPOR  (6)'!H10","v":0},{"$f":"'F1. COMP.LAB Y COM COMPOR  (6)'!I10","v":0},{"$f":"'F1. COMP.LAB Y COM COMPOR  (6)'!J10","v":0},null,null,{"$f":"'F1. COMP.LAB Y COM COMPOR  (6)'!M10","v":0},{"$f":"'F1. COMP.LAB Y COM COMPOR  (6)'!N10","v":0},{"$f":"'F1. COMP.LAB Y COM COMPOR  (6)'!O10","v":0},null,{"$f":"'F1. COMP.LAB Y COM COMPOR  (6)'!Q10","v":0},{"$f":"'F1. COMP.LAB Y COM COMPOR  (6)'!R10","v":0},{"$f":"'F1. COMP.LAB Y COM COMPOR  (6)'!S10","v":0}]
["I. IDENTIFICACIÓN DEL EVALUADO"]
["Tipo de Documento",null,"Número de identificación",null,null,"Primer apellido",null,null,"Segundo apellido",null,null,"Primer nombre",null,null,null,"Otros nombres"]
["CEDULA DE CIUDADANIA",null,{"$f":"'F1. COMP.LAB Y COM COMPOR  (6)'!C13","v":0},null,null,{"$f":"'F1. COMP.LAB Y COM COMPOR  (6)'!F13","v":0},null,null,{"$f":"'F1. COMP.LAB Y COM COMPOR  (6)'!I13","v":0},null,null,{"$f":"'F1. COMP.LAB Y COM COMPOR  (6)'!L13","v":0},null,null,null,{"$f":"'F1. COMP.LAB Y COM COMPOR  (6)'!P13","v":0}]
["TIPO DE VINCULACION",null,null,null,"Dependencia o área a la que pertenece el evaluado",null,null,null,"Grupo Funcional al que pertenece el evaluado",null,null,"Denominación del empleo"]
[{"$f":"'F1. COMP.LAB Y COM COMPOR  (6)'!A15","v":0},null,null,null,{"$f":"'F1. COMP.LAB Y COM COMPOR  (6)'!E15","v":0},null,null,null,{"$f":"'F1. COMP.LAB Y COM COMPOR  (6)'!I15","v":0},null,null,{"$f":"'F1. COMP.LAB Y COM COMPOR  (6)'!L15","v":0}]
["Nivel jerárquico",null,null,null,null,"Propósito del empleo:  ",null,{"$f":"'F1. COMP.LAB Y COM COMPOR  (6)'!H16","v":0}]
[{"$f":"'F1. COMP.LAB Y COM COMPOR  (6)'!A17","v":0}]
["II. IDENTIFICACIÓN EVALUADOR. (Jefe inmediato del evaluado )"]
["Tipo de documento",null,"Número de identificación",null,null,"Primer apellido",null,null,"Segundo apellido",null,null,"Primer nombre",null,null,null,"Otros nombres"]
["CEDULA DE CIUDADANIA",null,{"$f":"'F1. COMP.LAB Y COM COMPOR  (6)'!C20","v":0},null,null,{"$f":"'F1. COMP.LAB Y COM COMPOR  (6)'!F20","v":0},null,null,{"$f":"'F1. COMP.LAB Y COM COMPOR  (6)'!I20","v":0},null,null,{"$f":"'F1. COMP.LAB Y COM COMPOR  (6)'!L20","v":0},null,null,null,{"$f":"'F1. COMP.LAB Y COM COMPOR  (6)'!P20","v":0}]
[" Área o Dependencia a la que pertenece el evaluador",null,null,null,"Grupo Funcional al que pertenece el evaluador",null,null,null,"Denominación del empleo",null,null,null,null,null,null,null,null,"Nivel jerárquico"]
[{"$f":"'F1. COMP.LAB Y COM COMPOR  (6)'!A22","v":0},null,null,null,{"$f":"'F1. COMP.LAB Y COM COMPOR  (6)'!E22","v":0},null,null,null,{"$f":"'F1. COMP.LAB Y COM COMPOR  (6)'!I22","v":0},null,null,null,null,null,null,null,null,{"$f":"'F1. COMP.LAB Y COM COMPOR  (6)'!R22","v":0}]
["III. COMPROMISOS LABORALES"]
["Metas de la Dependencia a las cuales contribuye el empleo",null,null,null,"Compromisos Laborales.",null,null,null,null,null,"Peso porcentual del compromiso en el año","Porcentaje de Cumplimiento. "]
[]
[null,null,null,null,null,null,null,null,null,null,null,"PRIMERA PARCIAL SEMESTRAL",null,null,null,"SEGUNDA PARCIAL SEMESTRAL"]
[null,null,null,null,null,null,null,null,null,null,null,"porcentaje de cumplimiento de objetivo logrado","CALIFICACIÓN DEL COMPROMISO","UBICACIÓN PORTAFOLIO DE EVIDENCIAS",null,"porcentaje de cumplimiento de objetivo logrado","CALIFICACIÓN DEL COMPROMISO","UBICACIÓN PORTAFOLIO DE EVIDENCIAS"]
[{"$f":"'F1. COMP.LAB Y COM COMPOR  (6)'!A31","v":0},null,null,null,{"$f":"'F1. COMP.LAB Y COM COMPOR  (6)'!H31","v":0},null,null,null,null,null,{"$f":"'F1. COMP.LAB Y COM COMPOR  (6)'!S31","v":" "},{"$f":"IFERROR(M27*K27/100,\" \")","v":" "},null,null,null,{"$f":"IFERROR(K27*Q27/100,\" \")","v":" "}]
[{"$f":"'F1. COMP.LAB Y COM COMPOR  (6)'!A32","v":0},null,null,null,{"$f":"'F1. COMP.LAB Y COM COMPOR  (6)'!H32","v":0},null,null,null,null,null,{"$f":"'F1. COMP.LAB Y COM COMPOR  (6)'!S32","v":" "},{"$f":"IFERROR(M28*K28/100,\" \")","v":" "},null,null,null,{"$f":"IFERROR(K28*Q28/100,\" \")","v":" "}]
[{"$f":"'F1. COMP.LAB Y COM COMPOR  (6)'!A33","v":0},null,null,null,{"$f":"'F1. COMP.LAB Y COM COMPOR  (6)'!H33","v":0},null,null,null,null,null,{"$f":"'F1. COMP.LAB Y COM COMPOR  (6)'!S33","v":" "},{"$f":"IFERROR(M29*K29/100,\" \")","v":" "},null,null,null,{"$f":"IFERROR(K29*Q29/100,\" \")","v":" "}]
[{"$f":"'F1. COMP.LAB Y COM COMPOR  (6)'!A34","v":0},null,null,null,{"$f":"'F1. COMP.LAB Y COM COMPOR  (6)'!H34","v":0},null,null,null,null,null,{"$f":"'F1. COMP.LAB Y COM COMPOR  (6)'!S34","v":" "},{"$f":"IFERROR(M30*K30/100,\" \")","v":" "},null,null,null,{"$f":"IFERROR(K30*Q30/100,\" \")","v":" "}]
[{"$f":"'F1. COMP.LAB Y COM COMPOR  (6)'!A35","v":0},null,null,null,{"$f":"'F1. COMP.LAB Y COM COMPOR  (6)'!H35","v":0},null,null,null,null,null,{"$f":"'F1. COMP.LAB Y COM COMPOR  (6)'!S35","v":" "},{"$f":"IFERROR(M31*K31/100,\" \")","v":" "},null,null,null,{"$f":"IFERROR(K31*Q31/100,\" \")","v":" "}]
[" TOTALES",null,null,null,null,null,null,null,null,null,{"$f":"SUM(K27:K31)","v":0},"Resultado total ",null,null,{"$f":"IFERROR(AVERAGE(M27:M31),0)","v":0},"Resultado total ",null,null,{"$f":"IFERROR(AVERAGE(Q27:Q31),0)","v":0}]
["TOTAL SEMESTRAL"]
["Calificaciones parciales semestrales compromisos laborales ",null,null,null,null,null,null,null,null,null,null,"Calificación total"]
[null,null,null,null,null,null,null,null,null,null,null,"Calificacion primer parcial",null,null,null,"Calificacion Segundo parcial"]
["CALIFICACIÒN TOTAL DE LOS COMPROMISOS LABORALES",null,null,null,null,null,null,null,null,null,null,"Peso porcentual del 85%",null,null,{"$f":"AVERAGE(O32*85%)","v":0},"Peso porcentual del 85%",null,null,{"$f":"AVERAGE(S32*85%)","v":0}]
[]
["IV. CALIFICACIÓN COMPETENCIAS COMPORTAMENTALES DEL EMPLEADO PÚBLICO."]
["COMPETENCIA",null,"DEFINICIÓN ",null,null,"CONDUCTAS ASOCIADAS",null,null,null,null,null," PRIMERA PARCIAL SEMESTRAL",null,null,null,"SEGUNDA PARCIAL SEMESTRAL"]
[]
[]
[]
[{"$f":"'F1. COMP.LAB Y COM COMPOR  (6)'!B39","v":0},null,{"$f":"'F1. COMP.LAB Y COM COMPOR  (6)'!E39","v":" "},null,null,{"$f":"'F1. COMP.LAB Y COM COMPOR  (6)'!L39","v":" "},null,null,null,null,null,{"$f":"IFERROR(VLOOKUP(L44,'CALIFICACION TOTAL'!$A$1:$B$12,2,FALSE),\" \")","v":" "},null,null,null,{"$f":"IFERROR(VLOOKUP(P44,'CALIFICACION TOTAL'!$A$1:$B$12,2,FALSE),\" \")","v":" "}]
[]
[{"$f":"'F1. COMP.LAB Y COM COMPOR  (6)'!B41","v":0},null,{"$f":"'F1. COMP.LAB Y COM COMPOR  (6)'!E41","v":" "},null,null,{"$f":"'F1. COMP.LAB Y COM COMPOR  (6)'!L41","v":" "},null,null,null,null,null,{"$f":"IFERROR(VLOOKUP(L46,'CALIFICACION TOTAL'!$A$1:$B$12,2,FALSE),\" \")","v":" "},null,null,null,{"$f":"IFERROR(VLOOKUP(P46,'CALIFICACION TOTAL'!$A$1:$B$12,2,FALSE),\" \")","v":" "}]
[]
[{"$f":"'F1. COMP.LAB Y COM COMPOR  (6)'!B43","v":0},null,{"$f":"'F1. COMP.LAB Y COM COMPOR  (6)'!E43","v":" "},null,null,{"$f":"'F1. COMP.LAB Y COM COMPOR  (6)'!L43","v":" "},null,null,null,null,null,{"$f":"IFERROR(VLOOKUP(L48,'CALIFICACION TOTAL'!$A$1:$B$12,2,FALSE),\" \")","v":" "},null,null,null,{"$f":"IFERROR(VLOOKUP(P48,'CALIFICACION TOTAL'!$A$1:$B$12,2,FALSE),\" \")","v":" "}]
[]
[{"$f":"'F1. COMP.LAB Y COM COMPOR  (6)'!B45","v":0},null,{"$f":"'F1. COMP.LAB Y COM COMPOR  (6)'!E45","v":" "},null,null,{"$f":"'F1. COMP.LAB Y COM COMPOR  (6)'!L45","v":" "},null,null,null,null,null,{"$f":"IFERROR(VLOOKUP(L50,'CALIFICACION TOTAL'!$A$1:$B$12,2,FALSE),\" \")","v":" "},null,null,null,{"$f":"IFERROR(VLOOKUP(P50,'CALIFICACION TOTAL'!$A$1:$B$12,2,FALSE),\" \")","v":" "}]
[]
["CALIFICACIÓN EVALUACIÓN  DE LAS COMPETENCIAS COMPORTAMENTALES.",null,null,null,null,null,null,null,null,null,null,"CALIFICACIÓN PRIMERA PARCIAL SEMESTRAL (15%)",null,null,null,"CALIFICACIÓN SEGUNDA PARCIAL SEMESTRAL (15%)"]
[]
[null,null,null,null,null,null,null,null,null,null,null,{"$f":"((SUM(L44,L46,L48,L50)*100)/60)*0.15","v":0},null,null,null,{"$f":"((SUM(P44,P46,P48,P50)*100)/60)*0.15","v":0}]
[]
["TOTAL DIAS LABORADOS",null,null,null,null,null,null,null,null,null,null,{"$f":"IFERROR((DAYS360(DATE(F9,E9,D9),DATE(J9,I9,H9))+1),0)","v":0},null,{"$f":"IFERROR(L55/(L55+'F2. CALIFIC. COMPOR. (2)'!L55+'F2. CALIFIC. COMPOR. (3)'!L55+'F2. CALIFIC. COMPOR. (4)'!L55+'F2. CALIFIC. COMPOR. (5)'!L55+'F2. CALIFIC. COMPOR.'!L55),0)","v":0},null,{"$f":"IFERROR((DAYS360(DATE(O9,N9,M9),DATE(S9,R9,Q9))+1),0)","v":0},null,{"$f":"IFERROR(P55/(P55+'F2. CALIFIC. COMPOR. (2)'!P55+'F2. CALIFIC. COMPOR. (3)'!P55+'F2. CALIFIC. COMPOR. (4)'!P55+'F2. CALIFIC. COMPOR. (5)'!P55+'F2. CALIFIC. COMPOR.'!P55),0)","v":0}]
["CALIFICACION DEFINITIVA COMPROMISOS FUNCIONALES Y COMPORTAMENTALES",null,null,null,null,null,null,null,null,null,null,{"$f":"AVERAGE(O36+L53)","v":0},null,null,null,{"$f":"IFERROR(S36+P53,0)","v":0}]
["Archívese en: Carpeta historias laborales del funcionario"]
["GTH-FT-186/V1",null,null,null,null,null," Oficialización: 16/02/2021",null,null,null,null,null,null,"Página: 1 de 2 "]

{"sheet":"F3.REPORTE CALIFICACION","index":16,"n_rows":62,"n_cols":37,"rows_kept":62,"cut":false,"hidden":false,"merged":[[0,0,6,3],[7,0,7,18],[8,0,8,1],[8,2,8,4],[8,5,8,7],[8,8,8,10],[8,11,8,14],[8,15,8,18],[16,0,16,1],[16,2,16,4],[16,5,16,7],[16,8,16,10],[16,11,16,14],[16,15,16,18],[12,0,12,4],[12,5,13,6],[12,7,13,18],[13,0,13,4],[14,0,14,18],[15,0,15,1],[15,2,15,4],[15,5,15,7],[15,8,15,10],[2,4,2,14],[18,17,18,18],[18,8,18,16],[17,0,17,3],[9,0,9,1],[9,2,9,4],[9,5,9,7],[9,8,9,10],[9,11,9,14],[9,15,9,18],[11,0,11,4],[11,5,11,8],[11,9,11,12],[11,13,11,18],[17,8,17,16],[10,0,10,3],[10,4,10,7],[10,8,10,10],[10,11,10,18],[0,15,6,18],[5,4,6,6],[5,10,6,11],[19,0,19,18],[20,13,20,18],[21,0,22,1],[21,13,22,14],[21,15,22,16],[31,0,32,1],[31,6,32,10],[31,11,32,18],[0,4,0,14],[1,4,1,14],[18,0,18,3],[23,17,26,18],[24,6,24,11],[23,2,23,4],[24,2,24,4],[21,6,22,12],[20,6,20,12],[20,0,20,5],[21,2,22,5],[23,6,23,11],[18,4,18,7],[40,0,41,1],[40,2,41,8],[40,9,41,11],[40,12,41,18],[26,0,26,4],[21,17,22,18],[23,0,25,1],[34,0,35,18],[33,0,33,18],[31,2,32,5],[29,0,30,1],[29,6,30,10],[27,0,28,1],[27,6,28,10],[27,11,28,18],[29,11,30,18],[27,2,28,5],[29,2,30,5],[53,15,55,18],[23,15,26,16],[23,13,26,14],[25,6,25,11],[26,6,26,11],[25,2,25,4],[50,0,50,8],[50,9,50,18],[51,0,51,8],[51,9,51,18],[52,0,52,18],[53,0,55,2],[53,3,55,3],[53,4,55,6],[53,7,55,10],[53,11,55,14],[45,0,46,3],[45,4,46,8],[45,9,46,13],[45,14,46,18],[47,0,49,3],[47,4,49,8],[39,6,39,8],[39,16,39,18],[57,0,57,19],[58,0,58,5],[58,6,58,12],[58,13,58,19],[17,4,17,7],[17,17,17,18],[15,15,15,18],[15,11,15,14],[3,4,4,14],[47,9,49,13],[47,14,49,18],[42,0,44,3],[42,9,44,13],[42,14,44,18],[42,4,44,8],[36,0,36,18],[37,0,37,8],[37,9,37,18],[38,0,39,2],[38,3,39,5],[38,6,38,8],[38,9,39,12],[38,13,39,15],[38,16,38,18],[59,0,59,18],[60,0,60,2],[60,3,60,12],[60,13,60,15],[61,0,61,2],[61,3,61,12],[61,13,61,15],[60,16,60,19],[61,16,61,19]]}
[null,null,null,null," EVALUACION DE DESEMPEÑO FUNCIONARIOS PROVISIONALES Y/O DE LIBRE NOMBRAMIENTO Y REMOCIÓN",null,null,null,null,null,null,null,null,null,null,null,null,null,null,null,null,"Número de identificación","Primer apellido","Segundo apellido","Primer nombre","Otros nombres"," Área o Dependencia a la que pertenece el evaluador","Grupo Funcional al que pertenece el evaluador","Denominación del empleo","Nivel jerárquico",null,"Número de identificación"," Área o Dependencia a la que pertenece el evaluador","Grupo Funcional al que pertenece el evaluador","Denominación del empleo","nivel","Propósito"]
[null,null,null,null,"GESTIÓN ESTRATÉGICA DE TALENTO HUMANO",null,null,null,null,null,null,null,null,null,null,null,null,null,null,null,null,{"$f":"'F1. COMP.LAB Y COM COMPOR  (6)'!C20","v":0},{"$f":"'F1. COMP.LAB Y COM COMPOR  (6)'!F20","v":0},{"$f":"'F1. COMP.LAB Y COM COMPOR  (6)'!I20","v":0},{"$f":"'F1. COMP.LAB Y COM COMPOR  (6)'!L20","v":0},{"$f":"'F1. COMP.LAB Y COM COMPOR  (6)'!P20","v":0},{"$f":"'F1. COMP.LAB Y COM COMPOR  (6)'!A22","v":0},{"$f":"'F1. COMP.LAB Y COM COMPOR  (6)'!E22","v":0},{"$f":"'F1. COMP.LAB Y COM COMPOR  (6)'!I22","v":0},{"$f":"'F1. COMP.LAB Y COM COMPOR  (6)'!R22","v":0},null,{"$f":"IF(AG2=0,\" \",'F1. COMP.LAB Y COM COMPOR'!$C$13)","v":" "},{"$f":"'F1. COMP.LAB Y COM COMPOR  (6)'!$E$15","v":0},{"$f":"'F1. COMP.LAB Y COM COMPOR  (6)'!$I$15","v":0},{"$f":"'F1. COMP.LAB Y COM COMPOR  (6)'!$L$15","v":0},{"$f":"'F1. COMP.LAB Y COM COMPOR  (6)'!$A$17","v":0},{"$f":"'F1. COMP.LAB Y COM COMPOR  (6)'!$H$16","v":0}]
[null,null,null,null,"UNIDAD NACIONAL DE PROTECCIÓN",null,null,null,null,null,null,null,null,null,null,null,null,null,null,null,null,{"$f":"'F1. COMP.LAB Y COM COMPOR  (5)'!C20","v":0},{"$f":"'F1. COMP.LAB Y COM COMPOR  (5)'!F20","v":0},{"$f":"'F1. COMP.LAB Y COM COMPOR  (5)'!I20","v":0},{"$f":"'F1. COMP.LAB Y COM COMPOR  (5)'!L20","v":0},{"$f":"'F1. COMP.LAB Y COM COMPOR  (5)'!P20","v":0},{"$f":"'F1. COMP.LAB Y COM COMPOR  (5)'!A22","v":0},{"$f":"'F1. COMP.LAB Y COM COMPOR  (5)'!E22","v":0},{"$f":"'F1. COMP.LAB Y COM COMPOR  (5)'!I22","v":0},{"$f":"'F1. COMP.LAB Y COM COMPOR  (5)'!R22","v":0},null,{"$f":"IF(AG3=0,\" \",'F1. COMP.LAB Y COM COMPOR  (2)'!$C$13)","v":" "},{"$f":"'F1. COMP.LAB Y COM COMPOR  (5)'!$E$15","v":0},{"$f":"'F1. COMP.LAB Y COM COMPOR  (5)'!$I$15","v":0},{"$f":"'F1. COMP.LAB Y COM COMPOR  (5)'!$L$15","v":0},{"$f":"'F1. COMP.LAB Y COM COMPOR  (5)'!$A$17","v":0},{"$f":"'F1. COMP.LAB Y COM COMPOR  (5)'!$H$16","v":0}]
[null,null,null,null,"NOTA: FRENTE A LA EVALUACION DE DESEMPEÑO REALIZADA PARA EL PERSONAL QUE SE ENCUENTRA CON VINCULACION LABORAL DE CARÁCTER PROVISIONAL, NO PROCEDE DERECHOS DE CARRERA ADMINISTRATIVA , EL OBJETIVO ES EVALUAR Y CONTROLAR LA GESTION LABORAL DE LOS FUNCIONARIOS",null,null,null,null,null,null,null,null,null,null,null,null,null,null,null,null,{"$f":"'F1. COMP.LAB Y COM COMPOR  (4)'!C20","v":0},{"$f":"'F1. COMP.LAB Y COM COMPOR  (4)'!F20","v":0},{"$f":"'F1. COMP.LAB Y COM COMPOR  (4)'!I20","v":0},{"$f":"'F1. COMP.LAB Y COM COMPOR  (4)'!L20","v":0},{"$f":"'F1. COMP.LAB Y COM COMPOR  (4)'!P20","v":0},{"$f":"'F1. COMP.LAB Y COM COMPOR  (4)'!A22","v":0},{"$f":"'F1. COMP.LAB Y COM COMPOR  (4)'!E22","v":0},{"$f":"'F1. COMP.LAB Y COM COMPOR  (4)'!I22","v":0},{"$f":"'F1. COMP.LAB Y COM COMPOR  (4)'!R22","v":0},null,{"$f":"IF(AG4=0,\" \",'F1. COMP.LAB Y COM COMPOR  (3)'!$C$13)","v":" "},{"$f":"'F1. COMP.LAB Y COM COMPOR  (4)'!$E$15","v":0},{"$f":"'F1. COMP.LAB Y COM COMPOR  (4)'!$I$15","v":0},{"$f":"'F1. COMP.LAB Y COM COMPOR  (4)'!$L$15","v":0},{"$f":"'F1. COMP.LAB Y COM COMPOR  (4)'!$A$17","v":0},{"$f":"'F1. COMP.LAB Y COM COMPOR  (4)'!$H$16","v":0}]
[null,null,null,null,null,null,null,null,null,null,null,null,null,null,null,null,null,null,null,null,null,{"$f":"'F1. COMP.LAB Y COM COMPOR  (3)'!C20","v":0},{"$f":"'F1. COMP.LAB Y COM COMPOR  (3)'!F20","v":0},{"$f":"'F1. COMP.LAB Y COM COMPOR  (3)'!I20","v":0},{"$f":"'F1. COMP.LAB Y COM COMPOR  (3)'!L20","v":0},{"$f":"'F1. COMP.LAB Y COM COMPOR  (3)'!P20","v":0},{"$f":"'F1. COMP.LAB Y COM COMPOR  (3)'!A22","v":0},{"$f":"'F1. COMP.LAB Y COM COMPOR  (3)'!E22","v":0},{"$f":"'F1. COMP.LAB Y COM COMPOR  (3)'!I22","v":0},{"$f":"'F1. COMP.LAB Y COM COMPOR  (3)'!R22","v":0},null,{"$f":"IF(AG5=0,\" \",'F1. COMP.LAB Y COM COMPOR  (4)'!$C$13)","v":" "},{"$f":"'F1. COMP.LAB Y COM COMPOR  (3)'!$E$15","v":0},{"$f":"'F1. COMP.LAB Y COM COMPOR  (3)'!$I$15","v":0},{"$f":"'F1. COMP.LAB Y COM COMPOR  (3)'!$L$15","v":0},{"$f":"'F1. COMP.LAB Y COM COMPOR  (3)'!$A$17","v":0},{"$f":"'F1. COMP.LAB Y COM COMPOR  (3)'!$H$16","v":0}]
[null,null,null,null,"PERÍODO DE EVALUACIÓN                                                                                 ANUAL",null,null,"DÍA","MES","AÑO","AL",null,"DÍA","MES","AÑO",null,null,null,null,null,null,{"$f":"'F1. COMP.LAB Y COM COMPOR  (2)'!C20","v":0},{"$f":"'F1. COMP.LAB Y COM COMPOR  (2)'!F20","v":0},{"$f":"'F1. COMP.LAB Y COM COMPOR  (2)'!I20","v":0},{"$f":"'F1. COMP.LAB Y COM COMPOR  (2)'!L20","v":0},{"$f":"'F1. COMP.LAB Y COM COMPOR  (2)'!P20","v":0},{"$f":"'F1. COMP.LAB Y COM COMPOR  (2)'!A22","v":0},{"$f":"'F1. COMP.LAB Y COM COMPOR  (2)'!E22","v":0},{"$f":"'F1. COMP.LAB Y COM COMPOR  (2)'!I22","v":0},{"$f":"'F1. COMP.LAB Y COM COMPOR  (2)'!R22","v":0},null,{"$f":"IF(AG6=0,\" \",'F1. COMP.LAB Y COM COMPOR  (5)'!$C$13)","v":" "},{"$f":"'F1. COMP.LAB Y COM COMPOR  (2)'!$E$15","v":0},{"$f":"'F1. COMP.LAB Y COM COMPOR  (2)'!$I$15","v":0},{"$f":"'F1. COMP.LAB Y COM COMPOR  (2)'!$L$15","v":0},{"$f":"'F1. COMP.LAB Y COM COMPOR  (2)'!$A$17","v":0},{"$f":"'F1. COMP.LAB Y COM COMPOR  (2)'!$H$16","v":0}]
[null,null,null,null,null,null,null,{"$f":"'F1. COMP.LAB Y COM COMPOR'!H7","v":1},{"$f":"'F1. COMP.LAB Y COM COMPOR'!I7","v":2},{"$f":"'F1. COMP.LAB Y COM COMPOR'!J7","v":0},null,null,{"$f":"'F1. COMP.LAB Y COM COMPOR'!M7","v":31},{"$f":"'F1. COMP.LAB Y COM COMPOR'!N7","v":1},{"$f":"'F1. COMP.LAB Y COM COMPOR'!O7","v":1},null,null,null,null,null,null,{"$f":"'F1. COMP.LAB Y COM COMPOR'!C20","v":0},{"$f":"'F1. COMP.LAB Y COM COMPOR'!F20","v":0},{"$f":"'F1. COMP.LAB Y COM COMPOR'!I20","v":0},{"$f":"'F1. COMP.LAB Y COM COMPOR'!L20","v":0},{"$f":"'F1. COMP.LAB Y COM COMPOR'!P20","v":0},{"$f":"'F1. COMP.LAB Y COM COMPOR'!A22","v":0},{"$f":"'F1. COMP.LAB Y COM COMPOR'!E22","v":0},{"$f":"'F1. COMP.LAB Y COM COMPOR'!I22","v":0},{"$f":"'F1. COMP.LAB Y COM COMPOR'!R22","v":0},null,{"$f":"IF(AG7=0,\" \",'F1. COMP.LAB Y COM COMPOR  (6)'!$C$13)","v":" "},{"$f":"'F1. COMP.LAB Y COM COMPOR'!$E$15","v":0},{"$f":"'F1. COMP.LAB Y COM COMPOR'!$I$15","v":0},{"$f":"'F1. COMP.LAB Y COM COMPOR'!$L$15","v":0},{"$f":"'F1. COMP.LAB Y COM COMPOR'!$A$17","v":0},{"$f":"'F1. COMP.LAB Y COM COMPOR'!$H$16","v":0}]
["I. IDENTIFICACIÓN DEL EVALUADO"]
["TIPO DE DOCUMENTO",null,"NÚMERO DE IDENTIFICACIÓN",null,null,"PRIMER APELLIDO",null,null,"SEGUNDO APELLIDO",null,null,"PRIMER NOMBRE",null,null,null,"OTROS NOMBRES"]
["CEDULA DE CIUDADANIA",null,{"$f":"'F1. COMP.LAB Y COM COMPOR'!$C$13","v":0},null,null,{"$f":"'F1. COMP.LAB Y COM COMPOR'!$F$13","v":0},null,null,{"$f":"'F1. COMP.LAB Y COM COMPOR'!$I$13","v":0},null,null,{"$f":"'F1. COMP.LAB Y COM COMPOR'!$L$13","v":0},null,null,null,{"$f":"'F1. COMP.LAB Y COM COMPOR'!$P$13","v":0}]
["TIPO DE VINCULACION",null,null,null,"DEPENDENCIA O ÁREA A LA QUE PERTENECE EL EVALUADO",null,null,null,"GRUPO FUNCIONAL AL QUE PERTNENCE EL EVALUADO",null,null,"DENOMINACIÓN DEL EMPLEO"]
[{"$f":"'F2. CALIFIC. COMPOR.'!$A$14","v":0},null,null,null,null,{"$f":"VLOOKUP(C10,$AF$2:$AI$7,2,FALSE)","v":{"$error":"#N/A"}},null,null,null,{"$f":"VLOOKUP(C10,$AF$2:$AI$7,3,FALSE)","v":{"$error":"#N/A"}},null,null,null,{"$f":"VLOOKUP(C10,$AF$2:$AI$7,4,FALSE)","v":{"$error":"#N/A"}}]
["NIVEL JERÁRQUICO",null,null,null,null,"PROPÓSITO DEL EMPLEO:  ",null,{"$f":"VLOOKUP(C10,$AF$1:$AK$7,6,FALSE)","v":{"$error":"#N/A"}}]
[{"$f":"VLOOKUP(C10,$AF$1:$AJ$7,5,FALSE)","v":{"$error":"#N/A"}}]
["II. IDENTIFICACIÓN EVALUADOR. (Jefe inmediato del evaluado )"]
["TIPO DE DOCUMENTO",null,"NÚMERO DE IDENTIFICACIÓN",null,null,"PRIMER APELLIDO",null,null,"SEGUNDO APELLIDO",null,null,"PRIMER NOMBRE",null,null,null,"OTROS NOMBRES"]
["CEDULA DE CIUDADANIA",null,{"$f":"IF(V2=0,IF(V3=0,IF(V4=0,IF(V5=0,IF(V6=0,IF(V7=0,\" \",V7),V6),V5),V4),V3),V2)","v":" "},null,null,{"$f":"VLOOKUP(C17,V1:$AD$7,2,FALSE)","v":{"$error":"#N/A"}},null,null,{"$f":"VLOOKUP(C17,V1:$AD$7,3,FALSE)","v":{"$error":"#N/A"}},null,null,{"$f":"VLOOKUP(C17,V1:$AD$7,4,FALSE)","v":{"$error":"#N/A"}},null,null,null,{"$f":"VLOOKUP(C17,V1:$AD$7,5,FALSE)","v":{"$error":"#N/A"}}]
["DEPENDENCIA O ÁREA A LA QUE PERTENECE EL EVALUADOR",null,null,null,"GRUPO FUNCIONAL AL QUE PERTNENCE EL EVALUADOR",null,null,null,"DENOMINACIÓN DEL EMPLEO",null,null,null,null,null,null,null,null,"NIVEL JERÁRQUICO"]
[{"$f":"VLOOKUP(C17,V1:$AD$7,6,FALSE)","v":{"$error":"#N/A"}},null,null,null,{"$f":"VLOOKUP(C17,V1:$AD$7,7,FALSE)","v":{"$error":"#N/A"}},null,null,null,{"$f":"VLOOKUP(C17,V1:$AD$7,8,FALSE)","v":{"$error":"#N/A"}},null,null,null,null,null,null,null,null,{"$f":"VLOOKUP(C17,V1:$AD$7,9,FALSE)","v":{"$error":"#N/A"}}]
["III. CONSOLIDACIÓN DE LAS EVALUACIONES"]
["EVALUACIÓN INDIVIDUAL DEL PRIMER SEMESTRE ",null,null,null,null,null,"EVALUACIÓN INDIVIDUAL DEL SEGUNDO SEMESTRE",null,null,null,null,null,null,"CALIFICACIÓN DEFINITIVA"]
["FECHA DE COMUNICACIÓN",null,"CALIFICACIÓN PRIMER SEMESTRE\n",null,null,null,"CALIFICACIÓN SEGUNDO SEMESTRE\n",null,null,null,null,null,null,"FECHA DE NOTIFICACIÓN",null,"CALIFICACIÓN DEFINITIVA\n",null,"NIVEL"]
[]
[null,null,"TIEMPO EFECTIVAMENTE LABORADO (DIAS)",null,null,{"$f":"IF(('F1. COMP.LAB Y COM COMPOR  (6)'!U10+'F1. COMP.LAB Y COM COMPOR  (5)'!U10+'F1. COMP.LAB Y COM COMPOR  (4)'!U10+'F1. COMP.LAB Y COM COMPOR  (3)'!U10+'F1. COMP.LAB Y COM COMPOR  (2)'!U10+'F1. COMP.LAB Y COM COMPOR'!U10)>180,\"REVISE TIEMPOS\",('F1. COMP.LAB Y COM COMPOR  (6)'!U10+'F1. COMP.LAB Y COM COMPOR  (5)'!U10+'F1. COMP.LAB Y COM COMPOR  (4)'!U10+'F1. COMP.LAB Y COM COMPOR  (3)'!U10+'F1. COMP.LAB Y COM COMPOR  (2)'!U10+'F1. COMP.LAB Y COM COMPOR'!U10))","v":0},"TIEMPO EFECTIVAMENTE LABORADO (DIAS)",null,null,null,null,null,{"$f":"IF(('F1. COMP.LAB Y COM COMPOR  (2)'!V10+'F1. COMP.LAB Y COM COMPOR'!V10+'F1. COMP.LAB Y COM COMPOR  (3)'!V10+'F1. COMP.LAB Y COM COMPOR  (4)'!V10+'F1. COMP.LAB Y COM COMPOR  (5)'!V10+'F1. COMP.LAB Y COM COMPOR  (6)'!V10)>180,\"REVISE LAS FECHAS\",('F1. COMP.LAB Y COM COMPOR  (2)'!V10+'F1. COMP.LAB Y COM COMPOR'!V10+'F1. COMP.LAB Y COM COMPOR  (3)'!V10+'F1. COMP.LAB Y COM COMPOR  (4)'!V10+'F1. COMP.LAB Y COM COMPOR  (5)'!V10+'F1. COMP.LAB Y COM COMPOR  (6)'!V10))","v":0},null,null,{"$f":"IF(F24>30,IF(AND($F$24<180,$F$24>30),$F$27,IF(($F$24+$M$24)>=210,AVERAGE($F$27,$M$27),$F$27)),IF($M$24>=30,$M$27,\"ERROR\"))/100","v":{"$error":"#VALUE!"}},null,{"$f":"IF(P24<=65%,\"NO SATISFACTORIO\",IF(AND(P24>65%,P24<=90%),\"SATISFACTORIO\",IF(P24>90%,\"SOBRESALIENTE\",\" \")))","v":{"$error":"#VALUE!"}}]
[null,null,"COMPROMISOS LABORALES (PESO ESPECIFICO 85%)",null,null,{"$f":"('F2. CALIFIC. COMPOR.'!O36*'F2. CALIFIC. COMPOR.'!N55)+('F2. CALIFIC. COMPOR. (2)'!O36*'F2. CALIFIC. COMPOR. (2)'!N55)+('F2. CALIFIC. COMPOR. (3)'!O36*'F2. CALIFIC. COMPOR. (3)'!N55)+('F2. CALIFIC. COMPOR. (4)'!O36*'F2. CALIFIC. COMPOR. (4)'!N55)+('F2. CALIFIC. COMPOR. (5)'!O36*'F2. CALIFIC. COMPOR. (5)'!N55)+('F2. CALIFIC. COMPOR. (6)'!O36*'F2. CALIFIC. COMPOR. (6)'!N55)","v":0},"COMPROMISOS LABORALES (PESO ESPECIFICO 85%)",null,null,null,null,null,{"$f":"('F2. CALIFIC. COMPOR.'!S36*'F2. CALIFIC. COMPOR.'!R55)+('F2. CALIFIC. COMPOR. (2)'!S36*'F2. CALIFIC. COMPOR. (2)'!R55)+('F2. CALIFIC. COMPOR. (3)'!S36*'F2. CALIFIC. COMPOR. (3)'!R55)+('F2. CALIFIC. COMPOR. (4)'!S36*'F2. CALIFIC. COMPOR. (4)'!R55)+('F2. CALIFIC. COMPOR. (5)'!S36*'F2. CALIFIC. COMPOR. (5)'!R55)+('F2. CALIFIC. COMPOR. (6)'!S36*'F2. CALIFIC. COMPOR. (6)'!R55)","v":0}]
[null,null,"COMPETENCIAS COMPORTAMENTALES (PESO ESPECIFICO 15%)",null,null,{"$f":"('F2. CALIFIC. COMPOR.'!L53*'F2. CALIFIC. COMPOR.'!N55)+('F2. CALIFIC. COMPOR. (2)'!L53*'F2. CALIFIC. COMPOR. (2)'!N55)+('F2. CALIFIC. COMPOR. (3)'!L53*'F2. CALIFIC. COMPOR. (3)'!N55)+('F2. CALIFIC. COMPOR. (4)'!L53*'F2. CALIFIC. COMPOR. (4)'!N55)+('F2. CALIFIC. COMPOR. (5)'!L53*'F2. CALIFIC. COMPOR. (5)'!N55)+('F2. CALIFIC. COMPOR. (6)'!L53*'F2. CALIFIC. COMPOR. (6)'!N55)","v":0},"COMPETENCIAS COMPORTAMENTALES (PESO ESPECIFICO 15%)",null,null,null,null,null,{"$f":"('F2. CALIFIC. COMPOR.'!P53*'F2. CALIFIC. COMPOR.'!R55)+('F2. CALIFIC. COMPOR. (2)'!P53*'F2. CALIFIC. COMPOR. (2)'!R55)+('F2. CALIFIC. COMPOR. (3)'!P53*'F2. CALIFIC. COMPOR. (3)'!R55)+('F2. CALIFIC. COMPOR. (4)'!P53*'F2. CALIFIC. COMPOR. (4)'!R55)+('F2. CALIFIC. COMPOR. (5)'!P53*'F2. CALIFIC. COMPOR. (5)'!R55)+('F2. CALIFIC. COMPOR. (6)'!P53*'F2. CALIFIC. COMPOR. (6)'!R55)","v":0}]
["TOTAL PRIMER SEMESTRE",null,null,null,null,{"$f":"F25+F26","v":0},"TOTAL SEGUNDO SEMESTRE",null,null,null,null,null,{"$f":"M25+M26","v":0}]
["FIRMA DEL EVALUADO",null,null,null,null,null,"FIRMA DEL EVALUADO",null,null,null,null," "]
[]
["FIRMA DEL JEFE INMEDIATO",null,null,null,null,null,"FIRMA DEL JEFE INMEDIATO"]
[]
["FIRMA DEL EVALUADOR EN COMISIÓN EVALUADORA",null,{"$f":"IF(C17=\"NO REQUERIDO\",\"NO APLICA\",\"\")","v":""},null,null,null,"FIRMA DEL EVALUADOR EN COMISIÓN EVALUADORA",null,null,null,null,{"$f":"IF(C17=\"NO REQUERIDO\",\"NO APLICA\",\"\")","v":""}]
[]
["INTERPONE RECURSOS"]
["NO"]
[]
["IV. DECISIÓN DE RECURSOS"]
["RECURSO DE REPOSICIÓN",null,null,null,null,null,null,null,null,"RECURSO DE APELACIÓN"]
["DECISIÓN",null,null,null,null,null,"FECHA",null,null,"DECISIÓN",null,null,null,null,null,null,"FECHA"]
[]
["Nombre del Evaluado:",null,{"$f":"IF(D39=\"\",\"\",UPPER(CONCATENATE(#REF!,\" \",#REF!,\" \",#REF!,\" \",#REF!)))","v":""},null,null,null,null,null,null,"Nombre del Evaluado:",null,null,{"$f":"IF(N39=\"\",\"\",UPPER(CONCATENATE(#REF!,\" \",#REF!,\" \",#REF!,\" \",#REF!)))","v":""}]
[]
["Firma",null,null,null,null,null,null,null,null,"Firma"]
[]
[]
["Nombre del Notificador:",null,null,null,null,null,null,null,null,"Nombre del Notificador:"]
[]
["Firma",null,null,null,null,null,null,null,null,"Firma"]
[]
[]
["MOTIVACIÓN (podrá relacionar anexos):",null,null,null,null,null,null,null,null,"MOTIVACIÓN (podrá relacionar anexos):"]
[]
["V. CALIFICACIÓN DEFINITIVA"]
["CALIFICACIÓN DEFINITIVA EN FIRME",null,null,{"$f":"$P$24","v":{"$error":"#VALUE!"}},"FIRMA Y NÚMERO DE CÉDULA DEL NOTIFICADO",null,null,null,null,null,null,"FIRMA Y NÚMERO DE CÉDULA DEL NOTIFICADOR"]
[]
[]
[]
["Archívese en: Carpeta historias laborales del funcionario"]
["GTH-FT- 186/V1 ",null,null,null,null,null," Oficialización: 16/02/2021",null,null,null,null,null,null,"Página: 1 de 2 "]
["CONTROL DE CAMBIOS"]
["VERSIÓN INICIAL ",null,null,"DESCRIPCIÓN DE LA CREACIÓN O CAMBIO\nDEL DOCUMENTO",null,null,null,null,null,null,null,null,null,"FECHA",null,null,"VERSIÓN FINAL"]
[0,null,null,"Se realiza creación del formato con el fin de unificar los formatos existentes del proceso de evaluación de desempeño.",null,null,null,null,null,null,null,null,null,"2021-02-16",null,null,1]

{"sheet":"NIVELES","index":17,"n_rows":111,"n_cols":6,"rows_kept":111,"cut":false,"hidden":true,"merged":[]}
[null,null,"AGENTE DE PROTECCIÓN Código 4071 Grado 16",null,null,"Tipo Nombramiento"]
[null,null,"AGENTE DE PROTECCIÓN Código 4071 Grado 20",null,null,"LIBRE NOMBRAMIENTO Y REMOCIÓN"]
[null,"DIRECTIVO","AGENTE DE PROTECCIÓN Código 4071 Grado 23",null,null,"PROVISIONAL"]
[null,"ASESOR","AGENTE ESCOLTA Código 4070 Grado --",null,null,"VACANCIA TEMPORAL"]
[null,"PROFESIONAL","ASESOR Código 1020 Grado 12"]
[null,"TECNICO","ASESOR Código 1020 Grado11"]
[null,"ASISTENCIAL","AUXILIAR ADMINISTRATIVO Código 4044 Grado 15"]
[null,null,"AUXILIAR ADMINISTRATIVO, Código 4044, Grado 11"]
[null,null,"CONDUCTOR MECÁNICO Código 4103 Grado 16"]
[null,null,"CONDUCTOR MECÁNICO Código 4103 Grado 18"]
[null,null,"CONDUCTOR MECÁNICO Código 4103 Grado 20"]
[null,1,"CONDUCTOR MECÁNICO Código 4103 Grado 22"]
[null,2,"DIRECTOR UNP Código 0015 Grado 24"]
[null,3,"JEFE DE OFICINA ASESORA Código 1045 Grado 14"]
[null,4,"JEFE DE OFICINA, Código 0137, Grado 20"]
[null,5,"OFICIAL DE PROTECCIÓN Código 3137 Grado 10"]
[null,6,"OFICIAL DE PROTECCIÓN Código 3137 Grado 11"]
[null,7,"OFICIAL DE PROTECCIÓN Código 3137 Grado 13"]
[null,8,"OFICIAL DE PROTECCIÓN Código 3137 Grado 14"]
[null,9,"OFICIAL DE PROTECCIÓN Código 3137 Grado 15"]
[null,10,"OFICIAL DE PROTECCIÓN Código 3137 Grado 16"]
[null,11,"OFICIAL DE PROTECCIÓN Código 3137 Grado 17"]
[null,12,"OFICIAL DE PROTECCIÓN Código 3137 Grado 18"]
[null,13,"PROFESIONAL DE PROTECCIÓN Código 2045 Grado 06"]
[null,14,"PROFESIONAL DE PROTECCIÓN Código 2045 Grado 10"]
[null,15,"PROFESIONAL ESPECIALIZADO Código 2028 Grado 18"]
[null,16,"PROFESIONAL ESPECIALIZADO Código 2028 Grado 22"]
[null,17,"PROFESIONAL ESPECIALIZADO Código 2028 Grado14"]
[null,18,"PROFESIONAL UNIVERSITARIO  Código 2044 Grado 1"]
[null,19,"PROFESIONAL UNIVERSITARIO  Código 2044 Grado 11"]
[null,20,"SECRETARIO EJECUTIVO  Código 4210 Grado 24"]
[null,21,"SECRETARIO EJECUTIVO Código 4210 Grado 15"]
[null,22,"SECRETARIO EJECUTIVO Código 4210 Grado 16"]
[null,23,"SECRETARIO EJECUTIVO Código 4210 Grado 18"]
[null,24,"SECRETARIO EJECUTIVO Código 4210 Grado 23"]
[null,25,"SECRETARIO GENERAL Código 0037 Grado 23"]
[null,26,"SUBDIRECTOR UNP Código  0040, Grado 21"]
[null,27,"TÉCNICO ADMINISTRATIVO Código 3124 Grado 09"]
[null,28,"TÉCNICO ADMINISTRATIVO Código 3124 Grado 10"]
[null,29,"TÉCNICO ADMINISTRATIVO Código 3124 Grado 11"]
[null,30,"TECNICO ADMINISTRATIVO Código 3124 Grado 12"]
[null,31,"TECNICO ADMINISTRATIVO Código 3124 Grado 13"]
[null,32,"TECNICO ADMINISTRATIVO Código 3124 Grado 15"]
[null,33,"TECNICO ADMINISTRATIVO Código 3124 Grado 16"]
[null,34]
[null,35]
[null,36]
[null,37]
[null,38]
[null,39]
[null,40]
[null,41]
[null,42]
[null,43]
[null,44]
[null,45]
[null,46]
[null,47]
[null,48]
[null,49]
[null,50]
[null,51]
[null,52]
[null,53]
[null,54]
[null,55]
[null,56]
[null,57]
[null,58]
[null,59]
[null,60]
[null,61]
[null,62]
[null,63]
[null,64]
[null,65]
[null,66]
[null,67]
[null,68]
[null,69]
[null,70]
[null,71]
[null,72]
[null,73]
[null,74]
[null,75]
[null,76]
[null,77]
[null,78]
[null,79]
[null,80]
[null,81]
[null,82]
[null,83]
[null,84]
[null,85]
[null,86]
[null,87]
[null,88]
[null,89]
[null,90]
[null,91]
[null,92]
[null,93]
[null,94]
[null,95]
[null,96]
[null,97]
[null,98]
[null,99]
[null,100]

{"sheet":"CAUSALES DE EVENTUAL","index":18,"n_rows":7,"n_cols":2,"rows_kept":7,"cut":false,"hidden":true,"merged":[]}
["CAUSAL ","CONDICION"]
["Ajuste de compromisos","SÍ"]
["Cambio de evaluador","NO"]
["Cambio del empleo (Grupo de trabajo)"]
["Lapso entre la última evaluación y el final del período"]
["Por período de prueba en otro empleo"]
["Separación temporal del empleo por más de 30 días calendario"]